Publisher Label,Publisher URI,"Directorate code","Directorate","Service code","Service","Revenue or capital code","Revenue capital","Cost centre","Cost centre description","Bvsub Category","Bvsub description","Bvsum code","Bvsum description","Account code","Account description","Transaction No","Period","Transaction Date","Amount","Classification code","Classification description","Supplier ID","Supplier description","Company registration number","Company registration number Uri","VAT registration number"
"London Borough of Redbridge","http://opendatacommunities.org/doc/london-borough-council/redbridge","2BENVIRONMEN","Environmental Services","2CCEMCREMMOR","Cemetery, Cremation & Mortuary Services","REV","Revenue","R6768","Bereavement Serv Client","05-THIRD","Third Party Payments","05C","Other local authorities","6650","Other Local Authorities","60157905","201206",22/06/2011 00:00:00,945,"42200","Health Authorities","REDACTED DATA","BARKING HAVERING & REDBRIDGE NHS TRUST","",,"654924414"
"London Borough of Redbridge","http://opendatacommunities.org/doc/london-borough-council/redbridge","9BNONBVO","Outside the BVACOP Objective Structure","9CNONBVO","Outside the BVACOP Objective Structure","REV","Revenue","R0027","General Fund Corporate Items","05-THIRD","Third Party Payments","05B","Joint authorities","6602","London Pension Fund Authority","60155918","201206",11/02/2011 00:00:00,31025.5,"56860","Pensions","REDACTED DATA","LONDON PENSIONS FUND AUTHORITY","",,""
"London Borough of Redbridge","http://opendatacommunities.org/doc/london-borough-council/redbridge","9BNONBVO","Outside the BVACOP Objective Structure","9CNONBVO","Outside the BVACOP Objective Structure","BAL","Balance Sheet","B0216","Little Heath Teachers Super","99-NONBV","Capital, Balance Sheet and Control","50Q","Other Balances & Reserves","9910","Personal Account - Debtor","70031411","201206",02/09/2011 00:00:00,25206.49,"56860","Pensions","REDACTED DATA","TEACHERS PENSION AGENCY","",,""
"London Borough of Redbridge","http://opendatacommunities.org/doc/london-borough-council/redbridge","9BNONBVO","Outside the BVACOP Objective Structure","9CNONBVO","Outside the BVACOP Objective Structure","BAL","Balance Sheet","B0339","NNDR Ilford Business Improvement District","99-NONBV","Capital, Balance Sheet and Control","50Q","Other Balances & Reserves","9912","Personal Account - Creditor","70031679","201206",06/09/2011 00:00:00,5333.3,"26450","Distribution Services","REDACTED DATA","ILFORD TOWN CENTRE MANAGEMENT LTD T/A ILFORD BID","3375025","http://opencorporates.com/companies/gb/3375025","830347939"
"London Borough of Redbridge","http://opendatacommunities.org/doc/london-borough-council/redbridge","9BNONBVO","Outside the BVACOP Objective Structure","9CNONBVO","Outside the BVACOP Objective Structure","BAL","Balance Sheet","B0133","LBR Teachers Pension","99-NONBV","Capital, Balance Sheet and Control","50Q","Other Balances & Reserves","9910","Personal Account - Debtor","70032326","201206",30/09/2011 00:00:00,-11533.13,"56860","Pensions","REDACTED DATA","TEACHERS PENSION AGENCY","",,""
"London Borough of Redbridge","http://opendatacommunities.org/doc/london-borough-council/redbridge","9BNONBVO","Outside the BVACOP Objective Structure","9CNONBVO","Outside the BVACOP Objective Structure","BAL","Balance Sheet","B0185","Avc-Prudential-Tch","99-NONBV","Capital, Balance Sheet and Control","50Q","Other Balances & Reserves","9910","Personal Account - Debtor","70031479","201206",02/09/2011 00:00:00,33622.43,"35240","Financial Services","REDACTED DATA","PRUDENTIAL TAVC","",,""
"London Borough of Redbridge","http://opendatacommunities.org/doc/london-borough-council/redbridge","9BNONBVO","Outside the BVACOP Objective Structure","9CNONBVO","Outside the BVACOP Objective Structure","BAL","Balance Sheet","B0185","Avc-Prudential-Tch","99-NONBV","Capital, Balance Sheet and Control","50Q","Other Balances & Reserves","9910","Personal Account - Debtor","70031479","201206",02/09/2011 00:00:00,1255.52,"35240","Financial Services","REDACTED DATA","PRUDENTIAL TAVC","",,""
"London Borough of Redbridge","http://opendatacommunities.org/doc/london-borough-council/redbridge","9BNONBVO","Outside the BVACOP Objective Structure","9CNONBVO","Outside the BVACOP Objective Structure","BAL","Balance Sheet","B0217","Little Heath Other Deductions","99-NONBV","Capital, Balance Sheet and Control","50Q","Other Balances & Reserves","9910","Personal Account - Debtor","70031479","201206",02/09/2011 00:00:00,429.37,"35240","Financial Services","REDACTED DATA","PRUDENTIAL TAVC","",,""
"London Borough of Redbridge","http://opendatacommunities.org/doc/london-borough-council/redbridge","9BNONBVO","Outside the BVACOP Objective Structure","9CNONBVO","Outside the BVACOP Objective Structure","CAP","Capital","C1666","Academy Project","99-NONBV","Capital, Balance Sheet and Control","50E","Capital - Contract Payments","9150","Main Contract","60157338","201206",06/06/2011 00:00:00,157.05,"17020","Charities and Voluntary Organisations","REDACTED DATA","VISION REDBRIDGE CULTURE AND LEISURE","6032714","http://opencorporates.com/companies/gb/6032714","906429031"
"London Borough of Redbridge","http://opendatacommunities.org/doc/london-borough-council/redbridge","9BNONBVO","Outside the BVACOP Objective Structure","9CNONBVO","Outside the BVACOP Objective Structure","CAP","Capital","C1841","Val PK Major Project","99-NONBV","Capital, Balance Sheet and Control","50E","Capital - Contract Payments","9150","Main Contract","60156174","201206",16/07/2011 00:00:00,657,"11040","Builders","REDACTED DATA","LAKEHOUSE CONTRACTS LTD","2603357","http://opencorporates.com/companies/gb/2603357",""
"London Borough of Redbridge","http://opendatacommunities.org/doc/london-borough-council/redbridge","3BINDSCHFUND","Individual School Funds","3CDELSECOND","Delegated Individual Secondary School Budgets","REV","Revenue","R3618","Seven Kings High School","02-PREMISES","Premises","02A","Repairs, alteration and maintenance of buildings","3037","Service Contracts","785550","201206",05/09/2011 00:00:00,568.96,"50275","Mechanical Engineers","REDACTED DATA","REAM CONTRACTS LTD","6246918","http://opencorporates.com/companies/gb/6246918","919210929"
"London Borough of Redbridge","http://opendatacommunities.org/doc/london-borough-council/redbridge","9BNONBVO","Outside the BVACOP Objective Structure","9CNONBVO","Outside the BVACOP Objective Structure","REV","Revenue","R5131","Repairs and Maintenance - MFS","02-PREMISES","Premises","02A","Repairs, alteration and maintenance of buildings","3038","Service Repairs","70031611","201206",31/07/2011 00:00:00,40.21,"47960","Lifts - Servicing & Repairs","REDACTED DATA","APOLLO LIFTS LTD","1449230","http://opencorporates.com/companies/gb/1449230","245558443"
"London Borough of Redbridge","http://opendatacommunities.org/doc/london-borough-council/redbridge","1BOTHEROPI&E","Other Operating Income & Expenditure","1CTRADSURDEF","Trading Account Surpluses & Deficits","REV","Revenue","R9276","Desktop Computing Strategy","04-SUPPLIES","Supplies And Services","04F","Communications and computing","5851","Computer Equipment - Purchases","60153959","201206",02/08/2011 00:00:00,64756,"20703","Computer Systems and Software","REDACTED DATA","SOLID STATE SOLUTIONS LTD","2301026","http://opencorporates.com/companies/gb/2301026","492989374"
"London Borough of Redbridge","http://opendatacommunities.org/doc/london-borough-council/redbridge","1BOTHEROPI&E","Other Operating Income & Expenditure","1CTRADSURDEF","Trading Account Surpluses & Deficits","REV","Revenue","R9600","Town Hall","02-PREMISES","Premises","02A","Repairs, alteration and maintenance of buildings","3001","Major Works Programme","785507","201206",19/08/2011 00:00:00,18950.1,"47960","Lifts - Servicing & Repairs","REDACTED DATA","GRIFFIN ELEVATORS LTD","3719819","http://opencorporates.com/companies/gb/3719819","731279340"
"London Borough of Redbridge","http://opendatacommunities.org/doc/london-borough-council/redbridge","5BGFHOUSING","General Fund Housing","5CHOUSADVICE","Housing Advice","REV","Revenue","R5533","Hylefords TA Refurbishment Project","04-SUPPLIES","Supplies And Services","04K","Miscellaneous expenses","6227","Furniture Removal & Storage","60156013","201206",17/08/2011 00:00:00,16091.95,"38790","Furniture - Retail","REDACTED DATA","OCN CONTRACT SERVICES","",,"726127250"
"London Borough of Redbridge","http://opendatacommunities.org/doc/london-borough-council/redbridge","5BGFHOUSING","General Fund Housing","5CHOUSBENADM","Housing Benefits Administration","REV","Revenue","R5771","Benefits Administration","01-EMPLOYEES","Employees","01A","Direct employee expenses","4","Agency Staff - Pay","60157319","201206",20/09/2011 00:00:00,5733,"79980","Training Services","REDACTED DATA","MERITEC LTD","3224622","http://opencorporates.com/companies/gb/3224622","675499571"
"London Borough of Redbridge","http://opendatacommunities.org/doc/london-borough-council/redbridge","5BGFHOUSING","General Fund Housing","5CHOUSBENADM","Housing Benefits Administration","REV","Revenue","R5771","Benefits Administration","01-EMPLOYEES","Employees","01A","Direct employee expenses","4","Agency Staff - Pay","60157859","201206",27/09/2011 00:00:00,5733,"79980","Training Services","REDACTED DATA","MERITEC LTD","3224622","http://opencorporates.com/companies/gb/3224622","675499571"
"London Borough of Redbridge","http://opendatacommunities.org/doc/london-borough-council/redbridge","5BGFHOUSING","General Fund Housing","5CHOUSBENADM","Housing Benefits Administration","REV","Revenue","R5771","Benefits Administration","01-EMPLOYEES","Employees","01A","Direct employee expenses","4","Agency Staff - Pay","60155837","201206",31/08/2011 00:00:00,5022.06,"79980","Training Services","REDACTED DATA","MERITEC LTD","3224622","http://opencorporates.com/companies/gb/3224622","675499571"
"London Borough of Redbridge","http://opendatacommunities.org/doc/london-borough-council/redbridge","5BGFHOUSING","General Fund Housing","5CHOUSBENADM","Housing Benefits Administration","REV","Revenue","R5771","Benefits Administration","01-EMPLOYEES","Employees","01A","Direct employee expenses","4","Agency Staff - Pay","60155573","201206",25/08/2011 00:00:00,4231.5,"79980","Training Services","REDACTED DATA","MERITEC LTD","3224622","http://opencorporates.com/companies/gb/3224622","675499571"
"London Borough of Redbridge","http://opendatacommunities.org/doc/london-borough-council/redbridge","2BPLAN&DEVEL","Planning & Development Services","2CCOMMDEVT","Community Development","REV","Revenue","R6528","LLPG - CMF","01-EMPLOYEES","Employees","01A","Direct employee expenses","4","Agency Staff - Pay","60157274","201206",30/08/2011 00:00:00,3600,"12100","Business and Management Consultants","REDACTED DATA","LOCAL AUTHORITY SOLUTIONS LTD","5871810","http://opencorporates.com/companies/gb/5871810","885662277"
"London Borough of Redbridge","http://opendatacommunities.org/doc/london-borough-council/redbridge","1BOTHEROPI&E","Other Operating Income & Expenditure","1CTRADSURDEF","Trading Account Surpluses & Deficits","REV","Revenue","R9256","Redbridge-i Technical Development Scheme","01-EMPLOYEES","Employees","01A","Direct employee expenses","4","Agency Staff - Pay","3201714","201206",28/09/2011 00:00:00,3179.5,"31230","Employment & Recruitment Agencies","REDACTED DATA","MATRIX SCM LTD","2227962","http://opencorporates.com/companies/gb/2227962","918498476"
"London Borough of Redbridge","http://opendatacommunities.org/doc/london-borough-council/redbridge","1BOTHEROPI&E","Other Operating Income & Expenditure","1CTRADSURDEF","Trading Account Surpluses & Deficits","REV","Revenue","R9256","Redbridge-i Technical Development Scheme","01-EMPLOYEES","Employees","01A","Direct employee expenses","4","Agency Staff - Pay","3201714","201206",28/09/2011 00:00:00,3179.5,"31230","Employment & Recruitment Agencies","REDACTED DATA","MATRIX SCM LTD","2227962","http://opencorporates.com/companies/gb/2227962","918498476"
"London Borough of Redbridge","http://opendatacommunities.org/doc/london-borough-council/redbridge","1BOTHEROPI&E","Other Operating Income & Expenditure","1CTRADSURDEF","Trading Account Surpluses & Deficits","REV","Revenue","R9152","Financial Services","01-EMPLOYEES","Employees","01A","Direct employee expenses","4","Agency Staff - Pay","3201714","201206",28/09/2011 00:00:00,2961.4,"31230","Employment & Recruitment Agencies","REDACTED DATA","MATRIX SCM LTD","2227962","http://opencorporates.com/companies/gb/2227962","918498476"
"London Borough of Redbridge","http://opendatacommunities.org/doc/london-borough-council/redbridge","3BNONSCHFUND","Non-School Funding","3CNONSCH","Non Schools","REV","Revenue","R2032","Central Cost Bus and Fin West DSG","01-EMPLOYEES","Employees","01A","Direct employee expenses","4","Agency Staff - Pay","3201714","201206",28/09/2011 00:00:00,2922.55,"31230","Employment & Recruitment Agencies","REDACTED DATA","MATRIX SCM LTD","2227962","http://opencorporates.com/companies/gb/2227962","918498476"
"London Borough of Redbridge","http://opendatacommunities.org/doc/london-borough-council/redbridge","3BNONSCHFUND","Non-School Funding","3CNONSCH","Non Schools","REV","Revenue","R2032","Central Cost Bus and Fin West DSG","01-EMPLOYEES","Employees","01A","Direct employee expenses","4","Agency Staff - Pay","3201714","201206",28/09/2011 00:00:00,2920.8,"31230","Employment & Recruitment Agencies","REDACTED DATA","MATRIX SCM LTD","2227962","http://opencorporates.com/companies/gb/2227962","918498476"
"London Borough of Redbridge","http://opendatacommunities.org/doc/london-borough-council/redbridge","3BNONSCHFUND","Non-School Funding","3CNONSCH","Non Schools","REV","Revenue","R2032","Central Cost Bus and Fin West DSG","01-EMPLOYEES","Employees","01A","Direct employee expenses","4","Agency Staff - Pay","3201714","201206",28/09/2011 00:00:00,2852.55,"31230","Employment & Recruitment Agencies","REDACTED DATA","MATRIX SCM LTD","2227962","http://opencorporates.com/companies/gb/2227962","918498476"
"London Borough of Redbridge","http://opendatacommunities.org/doc/london-borough-council/redbridge","3BNONSCHFUND","Non-School Funding","3CNONSCH","Non Schools","REV","Revenue","R2032","Central Cost Bus and Fin West DSG","01-EMPLOYEES","Employees","01A","Direct employee expenses","4","Agency Staff - Pay","3201714","201206",28/09/2011 00:00:00,2850.55,"31230","Employment & Recruitment Agencies","REDACTED DATA","MATRIX SCM LTD","2227962","http://opencorporates.com/companies/gb/2227962","918498476"
"London Borough of Redbridge","http://opendatacommunities.org/doc/london-borough-council/redbridge","1BOTHEROPI&E","Other Operating Income & Expenditure","1CTRADSURDEF","Trading Account Surpluses & Deficits","REV","Revenue","R9256","Redbridge-i Technical Development Scheme","01-EMPLOYEES","Employees","01A","Direct employee expenses","4","Agency Staff - Pay","3201714","201206",28/09/2011 00:00:00,2543.6,"31230","Employment & Recruitment Agencies","REDACTED DATA","MATRIX SCM LTD","2227962","http://opencorporates.com/companies/gb/2227962","918498476"
"London Borough of Redbridge","http://opendatacommunities.org/doc/london-borough-council/redbridge","9BNONBVO","Outside the BVACOP Objective Structure","9CNONBVO","Outside the BVACOP Objective Structure","REV","Revenue","R5041","Redbridge Homes Implementation","01-EMPLOYEES","Employees","01A","Direct employee expenses","4","Agency Staff - Pay","3201714","201206",28/09/2011 00:00:00,2481.85,"31230","Employment & Recruitment Agencies","REDACTED DATA","MATRIX SCM LTD","2227962","http://opencorporates.com/companies/gb/2227962","918498476"
"London Borough of Redbridge","http://opendatacommunities.org/doc/london-borough-council/redbridge","9BNONBVO","Outside the BVACOP Objective Structure","9CNONBVO","Outside the BVACOP Objective Structure","REV","Revenue","R5041","Redbridge Homes Implementation","01-EMPLOYEES","Employees","01A","Direct employee expenses","4","Agency Staff - Pay","3201714","201206",28/09/2011 00:00:00,2481.85,"31230","Employment & Recruitment Agencies","REDACTED DATA","MATRIX SCM LTD","2227962","http://opencorporates.com/companies/gb/2227962","918498476"
"London Borough of Redbridge","http://opendatacommunities.org/doc/london-borough-council/redbridge","9BNONBVO","Outside the BVACOP Objective Structure","9CNONBVO","Outside the BVACOP Objective Structure","REV","Revenue","R5041","Redbridge Homes Implementation","01-EMPLOYEES","Employees","01A","Direct employee expenses","4","Agency Staff - Pay","3201714","201206",28/09/2011 00:00:00,2481.85,"31230","Employment & Recruitment Agencies","REDACTED DATA","MATRIX SCM LTD","2227962","http://opencorporates.com/companies/gb/2227962","918498476"
"London Borough of Redbridge","http://opendatacommunities.org/doc/london-borough-council/redbridge","9BNONBVO","Outside the BVACOP Objective Structure","9CNONBVO","Outside the BVACOP Objective Structure","REV","Revenue","R5041","Redbridge Homes Implementation","01-EMPLOYEES","Employees","01A","Direct employee expenses","4","Agency Staff - Pay","3201714","201206",28/09/2011 00:00:00,2481.85,"31230","Employment & Recruitment Agencies","REDACTED DATA","MATRIX SCM LTD","2227962","http://opencorporates.com/companies/gb/2227962","918498476"
"London Borough of Redbridge","http://opendatacommunities.org/doc/london-borough-council/redbridge","6BSOCIALSERV","Social Services","6COTHC&FSERV","Other Children's & Families' Services","REV","Revenue","R2123","CLAFH - 13+ Team 1","05-THIRD","Third Party Payments","05H","Private contractors","6910","Care Packages","3201767","201206",23/09/2011 00:00:00,2400,"47846","Letting Agents","REDACTED DATA","XCHANGE PROPERTY SERVICES LTD","4331388","http://opencorporates.com/companies/gb/4331388",""
"London Borough of Redbridge","http://opendatacommunities.org/doc/london-borough-council/redbridge","1BOTHEROPI&E","Other Operating Income & Expenditure","1CTRADSURDEF","Trading Account Surpluses & Deficits","REV","Revenue","R9152","Financial Services","01-EMPLOYEES","Employees","01A","Direct employee expenses","4","Agency Staff - Pay","3201714","201206",28/09/2011 00:00:00,2369.12,"31230","Employment & Recruitment Agencies","REDACTED DATA","MATRIX SCM LTD","2227962","http://opencorporates.com/companies/gb/2227962","918498476"
"London Borough of Redbridge","http://opendatacommunities.org/doc/london-borough-council/redbridge","3BNONSCHFUND","Non-School Funding","3CNONSCH","Non Schools","REV","Revenue","R2032","Central Cost Bus and Fin West DSG","01-EMPLOYEES","Employees","01A","Direct employee expenses","4","Agency Staff - Pay","3201714","201206",28/09/2011 00:00:00,2294.82,"31230","Employment & Recruitment Agencies","REDACTED DATA","MATRIX SCM LTD","2227962","http://opencorporates.com/companies/gb/2227962","918498476"
"London Borough of Redbridge","http://opendatacommunities.org/doc/london-borough-council/redbridge","3BNONSCHFUND","Non-School Funding","3CNONSCH","Non Schools","REV","Revenue","R2032","Central Cost Bus and Fin West DSG","01-EMPLOYEES","Employees","01A","Direct employee expenses","4","Agency Staff - Pay","3201714","201206",28/09/2011 00:00:00,2294.82,"31230","Employment & Recruitment Agencies","REDACTED DATA","MATRIX SCM LTD","2227962","http://opencorporates.com/companies/gb/2227962","918498476"
"London Borough of Redbridge","http://opendatacommunities.org/doc/london-borough-council/redbridge","1BOTHEROPI&E","Other Operating Income & Expenditure","1CTRADSURDEF","Trading Account Surpluses & Deficits","REV","Revenue","R9152","Financial Services","01-EMPLOYEES","Employees","01A","Direct employee expenses","4","Agency Staff - Pay","3201714","201206",28/09/2011 00:00:00,2167.15,"31230","Employment & Recruitment Agencies","REDACTED DATA","MATRIX SCM LTD","2227962","http://opencorporates.com/companies/gb/2227962","918498476"
"London Borough of Redbridge","http://opendatacommunities.org/doc/london-borough-council/redbridge","1BOTHEROPI&E","Other Operating Income & Expenditure","1CTRADSURDEF","Trading Account Surpluses & Deficits","REV","Revenue","R9152","Financial Services","01-EMPLOYEES","Employees","01A","Direct employee expenses","4","Agency Staff - Pay","3201714","201206",28/09/2011 00:00:00,2167.15,"31230","Employment & Recruitment Agencies","REDACTED DATA","MATRIX SCM LTD","2227962","http://opencorporates.com/companies/gb/2227962","918498476"
"London Borough of Redbridge","http://opendatacommunities.org/doc/london-borough-council/redbridge","9BNONBVO","Outside the BVACOP Objective Structure","9CNONBVO","Outside the BVACOP Objective Structure","REV","Revenue","R5041","Redbridge Homes Implementation","01-EMPLOYEES","Employees","01A","Direct employee expenses","4","Agency Staff - Pay","3201714","201206",28/09/2011 00:00:00,1985.48,"31230","Employment & Recruitment Agencies","REDACTED DATA","MATRIX SCM LTD","2227962","http://opencorporates.com/companies/gb/2227962","918498476"
"London Borough of Redbridge","http://opendatacommunities.org/doc/london-borough-council/redbridge","3BNONSCHFUND","Non-School Funding","3CNONSCH","Non Schools","REV","Revenue","R3934","StLukes/Loxford CC","01-EMPLOYEES","Employees","01A","Direct employee expenses","4","Agency Staff - Pay","3201714","201206",28/09/2011 00:00:00,1829.1,"31230","Employment & Recruitment Agencies","REDACTED DATA","MATRIX SCM LTD","2227962","http://opencorporates.com/companies/gb/2227962","918498476"
"London Borough of Redbridge","http://opendatacommunities.org/doc/london-borough-council/redbridge","1BOTHEROPI&E","Other Operating Income & Expenditure","1CTRADSURDEF","Trading Account Surpluses & Deficits","REV","Revenue","R9152","Financial Services","01-EMPLOYEES","Employees","01A","Direct employee expenses","4","Agency Staff - Pay","60157462","201206",22/09/2011 00:00:00,1785.7,"31230","Employment & Recruitment Agencies","REDACTED DATA","MORGAN LAW PARTNERS LLP","OC352309","http://opencorporates.com/companies/gb/OC352309","974879541"
"London Borough of Redbridge","http://opendatacommunities.org/doc/london-borough-council/redbridge","1BOTHEROPI&E","Other Operating Income & Expenditure","1CTRADSURDEF","Trading Account Surpluses & Deficits","REV","Revenue","R9252","IT Services","01-EMPLOYEES","Employees","01A","Direct employee expenses","4","Agency Staff - Pay","3201714","201206",28/09/2011 00:00:00,1769.83,"31230","Employment & Recruitment Agencies","REDACTED DATA","MATRIX SCM LTD","2227962","http://opencorporates.com/companies/gb/2227962","918498476"
"London Borough of Redbridge","http://opendatacommunities.org/doc/london-borough-council/redbridge","1BOTHEROPI&E","Other Operating Income & Expenditure","1CTRADSURDEF","Trading Account Surpluses & Deficits","REV","Revenue","R9152","Financial Services","01-EMPLOYEES","Employees","01A","Direct employee expenses","4","Agency Staff - Pay","3201714","201206",28/09/2011 00:00:00,1733.72,"31230","Employment & Recruitment Agencies","REDACTED DATA","MATRIX SCM LTD","2227962","http://opencorporates.com/companies/gb/2227962","918498476"
"London Borough of Redbridge","http://opendatacommunities.org/doc/london-borough-council/redbridge","1BOTHEROPI&E","Other Operating Income & Expenditure","1CTRADSURDEF","Trading Account Surpluses & Deficits","REV","Revenue","R9252","IT Services","01-EMPLOYEES","Employees","01A","Direct employee expenses","4","Agency Staff - Pay","3201714","201206",28/09/2011 00:00:00,1701.75,"31230","Employment & Recruitment Agencies","REDACTED DATA","MATRIX SCM LTD","2227962","http://opencorporates.com/companies/gb/2227962","918498476"
"London Borough of Redbridge","http://opendatacommunities.org/doc/london-borough-council/redbridge","1BOTHEROPI&E","Other Operating Income & Expenditure","1CTRADSURDEF","Trading Account Surpluses & Deficits","REV","Revenue","R9471","Change Management Scheme","01-EMPLOYEES","Employees","01A","Direct employee expenses","4","Agency Staff - Pay","3201714","201206",28/09/2011 00:00:00,1634.34,"31230","Employment & Recruitment Agencies","REDACTED DATA","MATRIX SCM LTD","2227962","http://opencorporates.com/companies/gb/2227962","918498476"
"London Borough of Redbridge","http://opendatacommunities.org/doc/london-borough-council/redbridge","1BOTHEROPI&E","Other Operating Income & Expenditure","1CTRADSURDEF","Trading Account Surpluses & Deficits","REV","Revenue","R9252","IT Services","01-EMPLOYEES","Employees","01A","Direct employee expenses","4","Agency Staff - Pay","3201714","201206",28/09/2011 00:00:00,1623.52,"31230","Employment & Recruitment Agencies","REDACTED DATA","MATRIX SCM LTD","2227962","http://opencorporates.com/companies/gb/2227962","918498476"
"London Borough of Redbridge","http://opendatacommunities.org/doc/london-borough-council/redbridge","1BOTHEROPI&E","Other Operating Income & Expenditure","1CTRADSURDEF","Trading Account Surpluses & Deficits","REV","Revenue","R9471","Change Management Scheme","01-EMPLOYEES","Employees","01A","Direct employee expenses","4","Agency Staff - Pay","3201714","201206",28/09/2011 00:00:00,1604.62,"31230","Employment & Recruitment Agencies","REDACTED DATA","MATRIX SCM LTD","2227962","http://opencorporates.com/companies/gb/2227962","918498476"
"London Borough of Redbridge","http://opendatacommunities.org/doc/london-borough-council/redbridge","1BOTHEROPI&E","Other Operating Income & Expenditure","1CTRADSURDEF","Trading Account Surpluses & Deficits","REV","Revenue","R1430","Single Status","01-EMPLOYEES","Employees","01A","Direct employee expenses","4","Agency Staff - Pay","3201714","201206",28/09/2011 00:00:00,1595.52,"31230","Employment & Recruitment Agencies","REDACTED DATA","MATRIX SCM LTD","2227962","http://opencorporates.com/companies/gb/2227962","918498476"
"London Borough of Redbridge","http://opendatacommunities.org/doc/london-borough-council/redbridge","1BOTHEROPI&E","Other Operating Income & Expenditure","1CTRADSURDEF","Trading Account Surpluses & Deficits","REV","Revenue","R1430","Single Status","01-EMPLOYEES","Employees","01A","Direct employee expenses","4","Agency Staff - Pay","3201714","201206",28/09/2011 00:00:00,1595.52,"31230","Employment & Recruitment Agencies","REDACTED DATA","MATRIX SCM LTD","2227962","http://opencorporates.com/companies/gb/2227962","918498476"
"London Borough of Redbridge","http://opendatacommunities.org/doc/london-borough-council/redbridge","1BOTHEROPI&E","Other Operating Income & Expenditure","1CTRADSURDEF","Trading Account Surpluses & Deficits","REV","Revenue","R9252","IT Services","01-EMPLOYEES","Employees","01A","Direct employee expenses","4","Agency Staff - Pay","3201714","201206",28/09/2011 00:00:00,1505.19,"31230","Employment & Recruitment Agencies","REDACTED DATA","MATRIX SCM LTD","2227962","http://opencorporates.com/companies/gb/2227962","918498476"
"London Borough of Redbridge","http://opendatacommunities.org/doc/london-borough-council/redbridge","1BOTHEROPI&E","Other Operating Income & Expenditure","1CTRADSURDEF","Trading Account Surpluses & Deficits","REV","Revenue","R9471","Change Management Scheme","01-EMPLOYEES","Employees","01A","Direct employee expenses","4","Agency Staff - Pay","3201714","201206",28/09/2011 00:00:00,1459.64,"31230","Employment & Recruitment Agencies","REDACTED DATA","MATRIX SCM LTD","2227962","http://opencorporates.com/companies/gb/2227962","918498476"
"London Borough of Redbridge","http://opendatacommunities.org/doc/london-borough-council/redbridge","6BSOCIALSERV","Social Services","6CFAMSUPPSER","Family Support Services","REV","Revenue","R2159","CP and EI - Thackeray Drive Residential","01-EMPLOYEES","Employees","01A","Direct employee expenses","4","Agency Staff - Pay","3201714","201206",28/09/2011 00:00:00,1456,"31230","Employment & Recruitment Agencies","REDACTED DATA","MATRIX SCM LTD","2227962","http://opencorporates.com/companies/gb/2227962","918498476"
"London Borough of Redbridge","http://opendatacommunities.org/doc/london-borough-council/redbridge","6BSOCIALSERV","Social Services","6CFAMSUPPSER","Family Support Services","REV","Revenue","R2159","CP and EI - Thackeray Drive Residential","01-EMPLOYEES","Employees","01A","Direct employee expenses","4","Agency Staff - Pay","3201714","201206",28/09/2011 00:00:00,1456,"31230","Employment & Recruitment Agencies","REDACTED DATA","MATRIX SCM LTD","2227962","http://opencorporates.com/companies/gb/2227962","918498476"
"London Borough of Redbridge","http://opendatacommunities.org/doc/london-borough-council/redbridge","6BSOCIALSERV","Social Services","6CFAMSUPPSER","Family Support Services","REV","Revenue","R2159","CP and EI - Thackeray Drive Residential","01-EMPLOYEES","Employees","01A","Direct employee expenses","4","Agency Staff - Pay","3201714","201206",28/09/2011 00:00:00,1456,"31230","Employment & Recruitment Agencies","REDACTED DATA","MATRIX SCM LTD","2227962","http://opencorporates.com/companies/gb/2227962","918498476"
"London Borough of Redbridge","http://opendatacommunities.org/doc/london-borough-council/redbridge","6BSOCIALSERV","Social Services","6COTHC&FSERV","Other Children's & Families' Services","REV","Revenue","R2167","CP and EI - Increased Social Worker Establishment","01-EMPLOYEES","Employees","01A","Direct employee expenses","4","Agency Staff - Pay","3201714","201206",28/09/2011 00:00:00,1456,"31230","Employment & Recruitment Agencies","REDACTED DATA","MATRIX SCM LTD","2227962","http://opencorporates.com/companies/gb/2227962","918498476"
"London Borough of Redbridge","http://opendatacommunities.org/doc/london-borough-council/redbridge","1BOTHEROPI&E","Other Operating Income & Expenditure","1CTRADSURDEF","Trading Account Surpluses & Deficits","REV","Revenue","R9152","Financial Services","01-EMPLOYEES","Employees","01A","Direct employee expenses","4","Agency Staff - Pay","3201714","201206",28/09/2011 00:00:00,1453.28,"31230","Employment & Recruitment Agencies","REDACTED DATA","MATRIX SCM LTD","2227962","http://opencorporates.com/companies/gb/2227962","918498476"
"London Borough of Redbridge","http://opendatacommunities.org/doc/london-borough-council/redbridge","1BOTHEROPI&E","Other Operating Income & Expenditure","1CTRADSURDEF","Trading Account Surpluses & Deficits","REV","Revenue","R9152","Financial Services","01-EMPLOYEES","Employees","01A","Direct employee expenses","4","Agency Staff - Pay","3201714","201206",28/09/2011 00:00:00,1453.28,"31230","Employment & Recruitment Agencies","REDACTED DATA","MATRIX SCM LTD","2227962","http://opencorporates.com/companies/gb/2227962","918498476"
"London Borough of Redbridge","http://opendatacommunities.org/doc/london-borough-council/redbridge","1BOTHEROPI&E","Other Operating Income & Expenditure","1CTRADSURDEF","Trading Account Surpluses & Deficits","REV","Revenue","R9152","Financial Services","01-EMPLOYEES","Employees","01A","Direct employee expenses","4","Agency Staff - Pay","3201714","201206",28/09/2011 00:00:00,1453.28,"31230","Employment & Recruitment Agencies","REDACTED DATA","MATRIX SCM LTD","2227962","http://opencorporates.com/companies/gb/2227962","918498476"
"London Borough of Redbridge","http://opendatacommunities.org/doc/london-borough-council/redbridge","1BOTHEROPI&E","Other Operating Income & Expenditure","1CTRADSURDEF","Trading Account Surpluses & Deficits","REV","Revenue","R9471","Change Management Scheme","01-EMPLOYEES","Employees","01A","Direct employee expenses","4","Agency Staff - Pay","3201714","201206",28/09/2011 00:00:00,1426.34,"31230","Employment & Recruitment Agencies","REDACTED DATA","MATRIX SCM LTD","2227962","http://opencorporates.com/companies/gb/2227962","918498476"
"London Borough of Redbridge","http://opendatacommunities.org/doc/london-borough-council/redbridge","5BGFHOUSING","General Fund Housing","5CHOUSADVICE","Housing Advice","REV","Revenue","R5533","Hylefords TA Refurbishment Project","04-SUPPLIES","Supplies And Services","04K","Miscellaneous expenses","6227","Furniture Removal & Storage","60156015","201206",17/08/2011 00:00:00,1408.5,"38790","Furniture - Retail","REDACTED DATA","OCN CONTRACT SERVICES","",,"726127250"
"London Borough of Redbridge","http://opendatacommunities.org/doc/london-borough-council/redbridge","6BSOCIALSERV","Social Services","6COTHC&FSERV","Other Children's & Families' Services","REV","Revenue","R2167","CP and EI - Increased Social Worker Establishment","01-EMPLOYEES","Employees","01A","Direct employee expenses","4","Agency Staff - Pay","3201714","201206",28/09/2011 00:00:00,1400,"31230","Employment & Recruitment Agencies","REDACTED DATA","MATRIX SCM LTD","2227962","http://opencorporates.com/companies/gb/2227962","918498476"
"London Borough of Redbridge","http://opendatacommunities.org/doc/london-borough-council/redbridge","1BOTHEROPI&E","Other Operating Income & Expenditure","1CTRADSURDEF","Trading Account Surpluses & Deficits","REV","Revenue","R9252","IT Services","01-EMPLOYEES","Employees","01A","Direct employee expenses","4","Agency Staff - Pay","3201714","201206",28/09/2011 00:00:00,1386.35,"31230","Employment & Recruitment Agencies","REDACTED DATA","MATRIX SCM LTD","2227962","http://opencorporates.com/companies/gb/2227962","918498476"
"London Borough of Redbridge","http://opendatacommunities.org/doc/london-borough-council/redbridge","1BOTHEROPI&E","Other Operating Income & Expenditure","1CTRADSURDEF","Trading Account Surpluses & Deficits","REV","Revenue","R9252","IT Services","01-EMPLOYEES","Employees","01A","Direct employee expenses","4","Agency Staff - Pay","3201714","201206",28/09/2011 00:00:00,1386.35,"31230","Employment & Recruitment Agencies","REDACTED DATA","MATRIX SCM LTD","2227962","http://opencorporates.com/companies/gb/2227962","918498476"
"London Borough of Redbridge","http://opendatacommunities.org/doc/london-borough-council/redbridge","4BTRANSPORT","Transport Planning, Policy & Strategy","4CMANGT&SUPP","Management & Support Services","REV","Revenue","R7000","Highways Executive","01-EMPLOYEES","Employees","01A","Direct employee expenses","4","Agency Staff - Pay","3201714","201206",28/09/2011 00:00:00,1362.87,"31230","Employment & Recruitment Agencies","REDACTED DATA","MATRIX SCM LTD","2227962","http://opencorporates.com/companies/gb/2227962","918498476"
"London Borough of Redbridge","http://opendatacommunities.org/doc/london-borough-council/redbridge","6BADULTSOCIA","Adult Social Care","6CADLEARNDIS","Adults Under 65 with Learning Disabilities","REV","Revenue","R4368","Learn - Soc Care Tea","01-EMPLOYEES","Employees","01A","Direct employee expenses","4","Agency Staff - Pay","3201714","201206",28/09/2011 00:00:00,1362.72,"31230","Employment & Recruitment Agencies","REDACTED DATA","MATRIX SCM LTD","2227962","http://opencorporates.com/companies/gb/2227962","918498476"
"London Borough of Redbridge","http://opendatacommunities.org/doc/london-borough-council/redbridge","1BOTHEROPI&E","Other Operating Income & Expenditure","1CTRADSURDEF","Trading Account Surpluses & Deficits","REV","Revenue","R1430","Single Status","01-EMPLOYEES","Employees","01A","Direct employee expenses","4","Agency Staff - Pay","3201714","201206",28/09/2011 00:00:00,1359.02,"31230","Employment & Recruitment Agencies","REDACTED DATA","MATRIX SCM LTD","2227962","http://opencorporates.com/companies/gb/2227962","918498476"
"London Borough of Redbridge","http://opendatacommunities.org/doc/london-borough-council/redbridge","1BOTHEROPI&E","Other Operating Income & Expenditure","1CTRADSURDEF","Trading Account Surpluses & Deficits","REV","Revenue","R1430","Single Status","01-EMPLOYEES","Employees","01A","Direct employee expenses","4","Agency Staff - Pay","3201714","201206",28/09/2011 00:00:00,1359.02,"31230","Employment & Recruitment Agencies","REDACTED DATA","MATRIX SCM LTD","2227962","http://opencorporates.com/companies/gb/2227962","918498476"
"London Borough of Redbridge","http://opendatacommunities.org/doc/london-borough-council/redbridge","1BOTHEROPI&E","Other Operating Income & Expenditure","1CTRADSURDEF","Trading Account Surpluses & Deficits","REV","Revenue","R1430","Single Status","01-EMPLOYEES","Employees","01A","Direct employee expenses","4","Agency Staff - Pay","3201714","201206",28/09/2011 00:00:00,1359.01,"31230","Employment & Recruitment Agencies","REDACTED DATA","MATRIX SCM LTD","2227962","http://opencorporates.com/companies/gb/2227962","918498476"
"London Borough of Redbridge","http://opendatacommunities.org/doc/london-borough-council/redbridge","1BOTHEROPI&E","Other Operating Income & Expenditure","1CTRADSURDEF","Trading Account Surpluses & Deficits","REV","Revenue","R1430","Single Status","01-EMPLOYEES","Employees","01A","Direct employee expenses","4","Agency Staff - Pay","3201714","201206",28/09/2011 00:00:00,1359.01,"31230","Employment & Recruitment Agencies","REDACTED DATA","MATRIX SCM LTD","2227962","http://opencorporates.com/companies/gb/2227962","918498476"
"London Borough of Redbridge","http://opendatacommunities.org/doc/london-borough-council/redbridge","1BOTHEROPI&E","Other Operating Income & Expenditure","1CTRADSURDEF","Trading Account Surpluses & Deficits","REV","Revenue","R1430","Single Status","01-EMPLOYEES","Employees","01A","Direct employee expenses","4","Agency Staff - Pay","3201714","201206",28/09/2011 00:00:00,1359.01,"31230","Employment & Recruitment Agencies","REDACTED DATA","MATRIX SCM LTD","2227962","http://opencorporates.com/companies/gb/2227962","918498476"
"London Borough of Redbridge","http://opendatacommunities.org/doc/london-borough-council/redbridge","1BOTHEROPI&E","Other Operating Income & Expenditure","1CTRADSURDEF","Trading Account Surpluses & Deficits","REV","Revenue","R9460","Human Resources misc","01-EMPLOYEES","Employees","01A","Direct employee expenses","4","Agency Staff - Pay","3201714","201206",28/09/2011 00:00:00,1359.01,"31230","Employment & Recruitment Agencies","REDACTED DATA","MATRIX SCM LTD","2227962","http://opencorporates.com/companies/gb/2227962","918498476"
"London Borough of Redbridge","http://opendatacommunities.org/doc/london-borough-council/redbridge","1BOTHEROPI&E","Other Operating Income & Expenditure","1CTRADSURDEF","Trading Account Surpluses & Deficits","REV","Revenue","R9460","Human Resources misc","01-EMPLOYEES","Employees","01A","Direct employee expenses","4","Agency Staff - Pay","3201714","201206",28/09/2011 00:00:00,1359,"31230","Employment & Recruitment Agencies","REDACTED DATA","MATRIX SCM LTD","2227962","http://opencorporates.com/companies/gb/2227962","918498476"
"London Borough of Redbridge","http://opendatacommunities.org/doc/london-borough-council/redbridge","4BTRANSPORT","Transport Planning, Policy & Strategy","4CMANGT&SUPP","Management & Support Services","REV","Revenue","R7000","Highways Executive","01-EMPLOYEES","Employees","01A","Direct employee expenses","4","Agency Staff - Pay","3201714","201206",28/09/2011 00:00:00,1357.61,"31230","Employment & Recruitment Agencies","REDACTED DATA","MATRIX SCM LTD","2227962","http://opencorporates.com/companies/gb/2227962","918498476"
"London Borough of Redbridge","http://opendatacommunities.org/doc/london-borough-council/redbridge","4BTRANSPORT","Transport Planning, Policy & Strategy","4CMANGT&SUPP","Management & Support Services","REV","Revenue","R7000","Highways Executive","01-EMPLOYEES","Employees","01A","Direct employee expenses","4","Agency Staff - Pay","3201714","201206",28/09/2011 00:00:00,1357.61,"31230","Employment & Recruitment Agencies","REDACTED DATA","MATRIX SCM LTD","2227962","http://opencorporates.com/companies/gb/2227962","918498476"
"London Borough of Redbridge","http://opendatacommunities.org/doc/london-borough-council/redbridge","1BOTHEROPI&E","Other Operating Income & Expenditure","1CTRADSURDEF","Trading Account Surpluses & Deficits","REV","Revenue","R9152","Financial Services","01-EMPLOYEES","Employees","01A","Direct employee expenses","4","Agency Staff - Pay","60156357","201206",08/09/2011 00:00:00,1339.28,"31230","Employment & Recruitment Agencies","REDACTED DATA","MORGAN LAW PARTNERS LLP","OC352309","http://opencorporates.com/companies/gb/OC352309","974879541"
"London Borough of Redbridge","http://opendatacommunities.org/doc/london-borough-council/redbridge","3BNONSCHFUND","Non-School Funding","3CNONSCH","Non Schools","REV","Revenue","R3938","Orchard/Ray Lodge CC","04-SUPPLIES","Supplies And Services","04D","Printing, stationery and general office expenses","5706","Printing","60157838","201206",15/09/2011 00:00:00,1337.9,"57614","Photocopiers","REDACTED DATA","RICOH UK LTD","473236","http://opencorporates.com/companies/gb/473236","524161280"
"London Borough of Redbridge","http://opendatacommunities.org/doc/london-borough-council/redbridge","6BADULTSOCIA","Adult Social Care","6COLDINCMENT","Older People (65 or over) incl. Older Mentally Ill","REV","Revenue","R4360","Hospital and Health Team","01-EMPLOYEES","Employees","01A","Direct employee expenses","4","Agency Staff - Pay","3201714","201206",28/09/2011 00:00:00,1305.15,"31230","Employment & Recruitment Agencies","REDACTED DATA","MATRIX SCM LTD","2227962","http://opencorporates.com/companies/gb/2227962","918498476"
"London Borough of Redbridge","http://opendatacommunities.org/doc/london-borough-council/redbridge","6BADULTSOCIA","Adult Social Care","6COLDINCMENT","Older People (65 or over) incl. Older Mentally Ill","REV","Revenue","R4360","Hospital and Health Team","01-EMPLOYEES","Employees","01A","Direct employee expenses","4","Agency Staff - Pay","3201714","201206",28/09/2011 00:00:00,1305.15,"31230","Employment & Recruitment Agencies","REDACTED DATA","MATRIX SCM LTD","2227962","http://opencorporates.com/companies/gb/2227962","918498476"
"London Borough of Redbridge","http://opendatacommunities.org/doc/london-borough-council/redbridge","6BADULTSOCIA","Adult Social Care","6COLDINCMENT","Older People (65 or over) incl. Older Mentally Ill","REV","Revenue","R4360","Hospital and Health Team","01-EMPLOYEES","Employees","01A","Direct employee expenses","4","Agency Staff - Pay","3201714","201206",28/09/2011 00:00:00,1305.15,"31230","Employment & Recruitment Agencies","REDACTED DATA","MATRIX SCM LTD","2227962","http://opencorporates.com/companies/gb/2227962","918498476"
"London Borough of Redbridge","http://opendatacommunities.org/doc/london-borough-council/redbridge","5BGFHOUSING","General Fund Housing","5CHOUMGTSUPP","Housing Management & Support Services","REV","Revenue","R5529","HAC Assessment","01-EMPLOYEES","Employees","01A","Direct employee expenses","4","Agency Staff - Pay","3201714","201206",28/09/2011 00:00:00,1300.96,"31230","Employment & Recruitment Agencies","REDACTED DATA","MATRIX SCM LTD","2227962","http://opencorporates.com/companies/gb/2227962","918498476"
"London Borough of Redbridge","http://opendatacommunities.org/doc/london-borough-council/redbridge","1BOTHEROPI&E","Other Operating Income & Expenditure","1CTRADSURDEF","Trading Account Surpluses & Deficits","REV","Revenue","R9598","Asset Management","01-EMPLOYEES","Employees","01A","Direct employee expenses","4","Agency Staff - Pay","3201714","201206",28/09/2011 00:00:00,1298.17,"31230","Employment & Recruitment Agencies","REDACTED DATA","MATRIX SCM LTD","2227962","http://opencorporates.com/companies/gb/2227962","918498476"
"London Borough of Redbridge","http://opendatacommunities.org/doc/london-borough-council/redbridge","1BOTHEROPI&E","Other Operating Income & Expenditure","1CTRADSURDEF","Trading Account Surpluses & Deficits","REV","Revenue","R9256","Redbridge-i Technical Development Scheme","01-EMPLOYEES","Employees","01A","Direct employee expenses","4","Agency Staff - Pay","3201714","201206",28/09/2011 00:00:00,1271.8,"31230","Employment & Recruitment Agencies","REDACTED DATA","MATRIX SCM LTD","2227962","http://opencorporates.com/companies/gb/2227962","918498476"
"London Borough of Redbridge","http://opendatacommunities.org/doc/london-borough-council/redbridge","5BGFHOUSING","General Fund Housing","5CHOUSADVICE","Housing Advice","REV","Revenue","R5533","Hylefords TA Refurbishment Project","01-EMPLOYEES","Employees","01A","Direct employee expenses","4","Agency Staff - Pay","3201714","201206",28/09/2011 00:00:00,1267.82,"31230","Employment & Recruitment Agencies","REDACTED DATA","MATRIX SCM LTD","2227962","http://opencorporates.com/companies/gb/2227962","918498476"
"London Borough of Redbridge","http://opendatacommunities.org/doc/london-borough-council/redbridge","1BOTHEROPI&E","Other Operating Income & Expenditure","1CTRADSURDEF","Trading Account Surpluses & Deficits","REV","Revenue","R9252","IT Services","01-EMPLOYEES","Employees","01A","Direct employee expenses","4","Agency Staff - Pay","3201714","201206",28/09/2011 00:00:00,1267.53,"31230","Employment & Recruitment Agencies","REDACTED DATA","MATRIX SCM LTD","2227962","http://opencorporates.com/companies/gb/2227962","918498476"
"London Borough of Redbridge","http://opendatacommunities.org/doc/london-borough-council/redbridge","6BADULTSOCIA","Adult Social Care","6CADLEARNDIS","Adults Under 65 with Learning Disabilities","REV","Revenue","R4368","Learn - Soc Care Tea","01-EMPLOYEES","Employees","01A","Direct employee expenses","4","Agency Staff - Pay","3201714","201206",28/09/2011 00:00:00,1264.32,"31230","Employment & Recruitment Agencies","REDACTED DATA","MATRIX SCM LTD","2227962","http://opencorporates.com/companies/gb/2227962","918498476"
"London Borough of Redbridge","http://opendatacommunities.org/doc/london-borough-council/redbridge","6BADULTSOCIA","Adult Social Care","6CADLEARNDIS","Adults Under 65 with Learning Disabilities","REV","Revenue","R4368","Learn - Soc Care Tea","01-EMPLOYEES","Employees","01A","Direct employee expenses","4","Agency Staff - Pay","3201714","201206",28/09/2011 00:00:00,1264.32,"31230","Employment & Recruitment Agencies","REDACTED DATA","MATRIX SCM LTD","2227962","http://opencorporates.com/companies/gb/2227962","918498476"
"London Borough of Redbridge","http://opendatacommunities.org/doc/london-borough-council/redbridge","5BGFHOUSING","General Fund Housing","5CHOUSADVICE","Housing Advice","REV","Revenue","R5533","Hylefords TA Refurbishment Project","01-EMPLOYEES","Employees","01A","Direct employee expenses","4","Agency Staff - Pay","3201714","201206",28/09/2011 00:00:00,1261.5,"31230","Employment & Recruitment Agencies","REDACTED DATA","MATRIX SCM LTD","2227962","http://opencorporates.com/companies/gb/2227962","918498476"
"London Borough of Redbridge","http://opendatacommunities.org/doc/london-borough-council/redbridge","5BGFHOUSING","General Fund Housing","5CHOUMGTSUPP","Housing Management & Support Services","REV","Revenue","R5529","HAC Assessment","01-EMPLOYEES","Employees","01A","Direct employee expenses","4","Agency Staff - Pay","3201714","201206",28/09/2011 00:00:00,1255.84,"31230","Employment & Recruitment Agencies","REDACTED DATA","MATRIX SCM LTD","2227962","http://opencorporates.com/companies/gb/2227962","918498476"
"London Borough of Redbridge","http://opendatacommunities.org/doc/london-borough-council/redbridge","1BOTHEROPI&E","Other Operating Income & Expenditure","1CTRADSURDEF","Trading Account Surpluses & Deficits","REV","Revenue","R9252","IT Services","01-EMPLOYEES","Employees","01A","Direct employee expenses","4","Agency Staff - Pay","3201714","201206",28/09/2011 00:00:00,1233.88,"31230","Employment & Recruitment Agencies","REDACTED DATA","MATRIX SCM LTD","2227962","http://opencorporates.com/companies/gb/2227962","918498476"
"London Borough of Redbridge","http://opendatacommunities.org/doc/london-borough-council/redbridge","1BOTHEROPI&E","Other Operating Income & Expenditure","1CTRADSURDEF","Trading Account Surpluses & Deficits","REV","Revenue","R9252","IT Services","01-EMPLOYEES","Employees","01A","Direct employee expenses","4","Agency Staff - Pay","3201714","201206",28/09/2011 00:00:00,1233.87,"31230","Employment & Recruitment Agencies","REDACTED DATA","MATRIX SCM LTD","2227962","http://opencorporates.com/companies/gb/2227962","918498476"
"London Borough of Redbridge","http://opendatacommunities.org/doc/london-borough-council/redbridge","6BADULTSOCIA","Adult Social Care","6COLDINCMENT","Older People (65 or over) incl. Older Mentally Ill","REV","Revenue","R4360","Hospital and Health Team","01-EMPLOYEES","Employees","01A","Direct employee expenses","4","Agency Staff - Pay","3201714","201206",28/09/2011 00:00:00,1232.35,"31230","Employment & Recruitment Agencies","REDACTED DATA","MATRIX SCM LTD","2227962","http://opencorporates.com/companies/gb/2227962","918498476"
"London Borough of Redbridge","http://opendatacommunities.org/doc/london-borough-council/redbridge","6BSOCIALSERV","Social Services","6CCHILLOOKED","Children Looked After","REV","Revenue","R2158","Albert Road - Integrated Team Social Care","01-EMPLOYEES","Employees","01A","Direct employee expenses","4","Agency Staff - Pay","3201714","201206",28/09/2011 00:00:00,1226.05,"31230","Employment & Recruitment Agencies","REDACTED DATA","MATRIX SCM LTD","2227962","http://opencorporates.com/companies/gb/2227962","918498476"
"London Borough of Redbridge","http://opendatacommunities.org/doc/london-borough-council/redbridge","6BSOCIALSERV","Social Services","6CCHILLOOKED","Children Looked After","REV","Revenue","R2158","Albert Road - Integrated Team Social Care","01-EMPLOYEES","Employees","01A","Direct employee expenses","4","Agency Staff - Pay","3201714","201206",28/09/2011 00:00:00,1226.05,"31230","Employment & Recruitment Agencies","REDACTED DATA","MATRIX SCM LTD","2227962","http://opencorporates.com/companies/gb/2227962","918498476"
"London Borough of Redbridge","http://opendatacommunities.org/doc/london-borough-council/redbridge","6BSOCIALSERV","Social Services","6CCHILLOOKED","Children Looked After","REV","Revenue","R2171","Ray Lodge (W) - Integrated Team Social Care","01-EMPLOYEES","Employees","01A","Direct employee expenses","4","Agency Staff - Pay","3201714","201206",28/09/2011 00:00:00,1226.05,"31230","Employment & Recruitment Agencies","REDACTED DATA","MATRIX SCM LTD","2227962","http://opencorporates.com/companies/gb/2227962","918498476"
"London Borough of Redbridge","http://opendatacommunities.org/doc/london-borough-council/redbridge","6BSOCIALSERV","Social Services","6CCHILLOOKED","Children Looked After","REV","Revenue","R2171","Ray Lodge (W) - Integrated Team Social Care","01-EMPLOYEES","Employees","01A","Direct employee expenses","4","Agency Staff - Pay","3201714","201206",28/09/2011 00:00:00,1226.05,"31230","Employment & Recruitment Agencies","REDACTED DATA","MATRIX SCM LTD","2227962","http://opencorporates.com/companies/gb/2227962","918498476"
"London Borough of Redbridge","http://opendatacommunities.org/doc/london-borough-council/redbridge","6BSOCIALSERV","Social Services","6COTHC&FSERV","Other Children's & Families' Services","REV","Revenue","R2167","CP and EI - Increased Social Worker Establishment","01-EMPLOYEES","Employees","01A","Direct employee expenses","4","Agency Staff - Pay","3201714","201206",28/09/2011 00:00:00,1226.05,"31230","Employment & Recruitment Agencies","REDACTED DATA","MATRIX SCM LTD","2227962","http://opencorporates.com/companies/gb/2227962","918498476"
"London Borough of Redbridge","http://opendatacommunities.org/doc/london-borough-council/redbridge","6BSOCIALSERV","Social Services","6COTHC&FSERV","Other Children's & Families' Services","REV","Revenue","R2167","CP and EI - Increased Social Worker Establishment","01-EMPLOYEES","Employees","01A","Direct employee expenses","4","Agency Staff - Pay","3201714","201206",28/09/2011 00:00:00,1226.05,"31230","Employment & Recruitment Agencies","REDACTED DATA","MATRIX SCM LTD","2227962","http://opencorporates.com/companies/gb/2227962","918498476"
"London Borough of Redbridge","http://opendatacommunities.org/doc/london-borough-council/redbridge","6BSOCIALSERV","Social Services","6COTHC&FSERV","Other Children's & Families' Services","REV","Revenue","R2123","CLAFH - 13+ Team 1","01-EMPLOYEES","Employees","01A","Direct employee expenses","4","Agency Staff - Pay","3201714","201206",28/09/2011 00:00:00,1225.7,"31230","Employment & Recruitment Agencies","REDACTED DATA","MATRIX SCM LTD","2227962","http://opencorporates.com/companies/gb/2227962","918498476"
"London Borough of Redbridge","http://opendatacommunities.org/doc/london-borough-council/redbridge","6BSOCIALSERV","Social Services","6COTHC&FSERV","Other Children's & Families' Services","REV","Revenue","R2123","CLAFH - 13+ Team 1","01-EMPLOYEES","Employees","01A","Direct employee expenses","4","Agency Staff - Pay","3201714","201206",28/09/2011 00:00:00,1225.7,"31230","Employment & Recruitment Agencies","REDACTED DATA","MATRIX SCM LTD","2227962","http://opencorporates.com/companies/gb/2227962","918498476"
"London Borough of Redbridge","http://opendatacommunities.org/doc/london-borough-council/redbridge","6BSOCIALSERV","Social Services","6COTHC&FSERV","Other Children's & Families' Services","REV","Revenue","R2123","CLAFH - 13+ Team 1","01-EMPLOYEES","Employees","01A","Direct employee expenses","4","Agency Staff - Pay","3201714","201206",28/09/2011 00:00:00,1225.7,"31230","Employment & Recruitment Agencies","REDACTED DATA","MATRIX SCM LTD","2227962","http://opencorporates.com/companies/gb/2227962","918498476"
"London Borough of Redbridge","http://opendatacommunities.org/doc/london-borough-council/redbridge","1BOTHEROPI&E","Other Operating Income & Expenditure","1CTRADSURDEF","Trading Account Surpluses & Deficits","REV","Revenue","R9252","IT Services","01-EMPLOYEES","Employees","01A","Direct employee expenses","4","Agency Staff - Pay","3201714","201206",28/09/2011 00:00:00,1217.65,"31230","Employment & Recruitment Agencies","REDACTED DATA","MATRIX SCM LTD","2227962","http://opencorporates.com/companies/gb/2227962","918498476"
"London Borough of Redbridge","http://opendatacommunities.org/doc/london-borough-council/redbridge","1BOTHEROPI&E","Other Operating Income & Expenditure","1CTRADSURDEF","Trading Account Surpluses & Deficits","REV","Revenue","R9252","IT Services","01-EMPLOYEES","Employees","01A","Direct employee expenses","4","Agency Staff - Pay","3201714","201206",28/09/2011 00:00:00,1217.65,"31230","Employment & Recruitment Agencies","REDACTED DATA","MATRIX SCM LTD","2227962","http://opencorporates.com/companies/gb/2227962","918498476"
"London Borough of Redbridge","http://opendatacommunities.org/doc/london-borough-council/redbridge","1BOTHEROPI&E","Other Operating Income & Expenditure","1CTRADSURDEF","Trading Account Surpluses & Deficits","REV","Revenue","R9252","IT Services","01-EMPLOYEES","Employees","01A","Direct employee expenses","4","Agency Staff - Pay","3201714","201206",28/09/2011 00:00:00,1217.65,"31230","Employment & Recruitment Agencies","REDACTED DATA","MATRIX SCM LTD","2227962","http://opencorporates.com/companies/gb/2227962","918498476"
"London Borough of Redbridge","http://opendatacommunities.org/doc/london-borough-council/redbridge","6BSOCIALSERV","Social Services","6CFAMSUPPSER","Family Support Services","REV","Revenue","R2159","CP and EI - Thackeray Drive Residential","01-EMPLOYEES","Employees","01A","Direct employee expenses","4","Agency Staff - Pay","60156950","201206",14/09/2011 00:00:00,1212.64,"31230","Employment & Recruitment Agencies","REDACTED DATA","SWIIS UK LIMITED","4080903","http://opencorporates.com/companies/gb/4080903","761045353"
"London Borough of Redbridge","http://opendatacommunities.org/doc/london-borough-council/redbridge","5BGFHOUSING","General Fund Housing","5CHOUSADVICE","Housing Advice","REV","Revenue","R5533","Hylefords TA Refurbishment Project","01-EMPLOYEES","Employees","01A","Direct employee expenses","4","Agency Staff - Pay","3201714","201206",28/09/2011 00:00:00,1211.04,"31230","Employment & Recruitment Agencies","REDACTED DATA","MATRIX SCM LTD","2227962","http://opencorporates.com/companies/gb/2227962","918498476"
"London Borough of Redbridge","http://opendatacommunities.org/doc/london-borough-council/redbridge","1BOTHEROPI&E","Other Operating Income & Expenditure","1CTRADSURDEF","Trading Account Surpluses & Deficits","REV","Revenue","R9471","Change Management Scheme","01-EMPLOYEES","Employees","01A","Direct employee expenses","4","Agency Staff - Pay","3201714","201206",28/09/2011 00:00:00,1199.71,"31230","Employment & Recruitment Agencies","REDACTED DATA","MATRIX SCM LTD","2227962","http://opencorporates.com/companies/gb/2227962","918498476"
"London Borough of Redbridge","http://opendatacommunities.org/doc/london-borough-council/redbridge","6BSOCIALSERV","Social Services","6CCHILLOOKED","Children Looked After","REV","Revenue","R2166","CP and EI - Child Protection Assmt Team Soc Care","01-EMPLOYEES","Employees","01A","Direct employee expenses","4","Agency Staff - Pay","3201714","201206",28/09/2011 00:00:00,1190,"31230","Employment & Recruitment Agencies","REDACTED DATA","MATRIX SCM LTD","2227962","http://opencorporates.com/companies/gb/2227962","918498476"
"London Borough of Redbridge","http://opendatacommunities.org/doc/london-borough-council/redbridge","6BSOCIALSERV","Social Services","6CCHILLOOKED","Children Looked After","REV","Revenue","R2166","CP and EI - Child Protection Assmt Team Soc Care","01-EMPLOYEES","Employees","01A","Direct employee expenses","4","Agency Staff - Pay","3201714","201206",28/09/2011 00:00:00,1190,"31230","Employment & Recruitment Agencies","REDACTED DATA","MATRIX SCM LTD","2227962","http://opencorporates.com/companies/gb/2227962","918498476"
"London Borough of Redbridge","http://opendatacommunities.org/doc/london-borough-council/redbridge","6BSOCIALSERV","Social Services","6CCHILLOOKED","Children Looked After","REV","Revenue","R2166","CP and EI - Child Protection Assmt Team Soc Care","01-EMPLOYEES","Employees","01A","Direct employee expenses","4","Agency Staff - Pay","3201714","201206",28/09/2011 00:00:00,1190,"31230","Employment & Recruitment Agencies","REDACTED DATA","MATRIX SCM LTD","2227962","http://opencorporates.com/companies/gb/2227962","918498476"
"London Borough of Redbridge","http://opendatacommunities.org/doc/london-borough-council/redbridge","6BSOCIALSERV","Social Services","6CCHILLOOKED","Children Looked After","REV","Revenue","R2166","CP and EI - Child Protection Assmt Team Soc Care","01-EMPLOYEES","Employees","01A","Direct employee expenses","4","Agency Staff - Pay","3201714","201206",28/09/2011 00:00:00,1190,"31230","Employment & Recruitment Agencies","REDACTED DATA","MATRIX SCM LTD","2227962","http://opencorporates.com/companies/gb/2227962","918498476"
"London Borough of Redbridge","http://opendatacommunities.org/doc/london-borough-council/redbridge","6BSOCIALSERV","Social Services","6CCHILLOOKED","Children Looked After","REV","Revenue","R2166","CP and EI - Child Protection Assmt Team Soc Care","01-EMPLOYEES","Employees","01A","Direct employee expenses","4","Agency Staff - Pay","3201714","201206",28/09/2011 00:00:00,1190,"31230","Employment & Recruitment Agencies","REDACTED DATA","MATRIX SCM LTD","2227962","http://opencorporates.com/companies/gb/2227962","918498476"
"London Borough of Redbridge","http://opendatacommunities.org/doc/london-borough-council/redbridge","6BSOCIALSERV","Social Services","6CCHILLOOKED","Children Looked After","REV","Revenue","R2166","CP and EI - Child Protection Assmt Team Soc Care","01-EMPLOYEES","Employees","01A","Direct employee expenses","4","Agency Staff - Pay","3201714","201206",28/09/2011 00:00:00,1190,"31230","Employment & Recruitment Agencies","REDACTED DATA","MATRIX SCM LTD","2227962","http://opencorporates.com/companies/gb/2227962","918498476"
"London Borough of Redbridge","http://opendatacommunities.org/doc/london-borough-council/redbridge","6BSOCIALSERV","Social Services","6CCHILLOOKED","Children Looked After","REV","Revenue","R2166","CP and EI - Child Protection Assmt Team Soc Care","01-EMPLOYEES","Employees","01A","Direct employee expenses","4","Agency Staff - Pay","3201714","201206",28/09/2011 00:00:00,1190,"31230","Employment & Recruitment Agencies","REDACTED DATA","MATRIX SCM LTD","2227962","http://opencorporates.com/companies/gb/2227962","918498476"
"London Borough of Redbridge","http://opendatacommunities.org/doc/london-borough-council/redbridge","6BSOCIALSERV","Social Services","6CCHILLOOKED","Children Looked After","REV","Revenue","R2166","CP and EI - Child Protection Assmt Team Soc Care","01-EMPLOYEES","Employees","01A","Direct employee expenses","4","Agency Staff - Pay","3201714","201206",28/09/2011 00:00:00,1190,"31230","Employment & Recruitment Agencies","REDACTED DATA","MATRIX SCM LTD","2227962","http://opencorporates.com/companies/gb/2227962","918498476"
"London Borough of Redbridge","http://opendatacommunities.org/doc/london-borough-council/redbridge","6BSOCIALSERV","Social Services","6CCHILLOOKED","Children Looked After","REV","Revenue","R2171","Ray Lodge (W) - Integrated Team Social Care","01-EMPLOYEES","Employees","01A","Direct employee expenses","4","Agency Staff - Pay","3201714","201206",28/09/2011 00:00:00,1190,"31230","Employment & Recruitment Agencies","REDACTED DATA","MATRIX SCM LTD","2227962","http://opencorporates.com/companies/gb/2227962","918498476"
"London Borough of Redbridge","http://opendatacommunities.org/doc/london-borough-council/redbridge","6BSOCIALSERV","Social Services","6CCHILLOOKED","Children Looked After","REV","Revenue","R2171","Ray Lodge (W) - Integrated Team Social Care","01-EMPLOYEES","Employees","01A","Direct employee expenses","4","Agency Staff - Pay","3201714","201206",28/09/2011 00:00:00,1190,"31230","Employment & Recruitment Agencies","REDACTED DATA","MATRIX SCM LTD","2227962","http://opencorporates.com/companies/gb/2227962","918498476"
"London Borough of Redbridge","http://opendatacommunities.org/doc/london-borough-council/redbridge","6BSOCIALSERV","Social Services","6COTHC&FSERV","Other Children's & Families' Services","REV","Revenue","R2124","CLAFH - Under 13s Team","05-THIRD","Third Party Payments","05H","Private contractors","6910","Care Packages","3199871","201206",27/09/2011 00:00:00,1169.68,"43419","Home Care Services","REDACTED DATA","SHAMIT PATEL","",,""
"London Borough of Redbridge","http://opendatacommunities.org/doc/london-borough-council/redbridge","1BOTHEROPI&E","Other Operating Income & Expenditure","1CTRADSURDEF","Trading Account Surpluses & Deficits","REV","Revenue","R9471","Change Management Scheme","01-EMPLOYEES","Employees","01A","Direct employee expenses","4","Agency Staff - Pay","3201714","201206",28/09/2011 00:00:00,1168.8,"31230","Employment & Recruitment Agencies","REDACTED DATA","MATRIX SCM LTD","2227962","http://opencorporates.com/companies/gb/2227962","918498476"
"London Borough of Redbridge","http://opendatacommunities.org/doc/london-borough-council/redbridge","1BOTHEROPI&E","Other Operating Income & Expenditure","1CTRADSURDEF","Trading Account Surpluses & Deficits","REV","Revenue","R9471","Change Management Scheme","01-EMPLOYEES","Employees","01A","Direct employee expenses","4","Agency Staff - Pay","3201714","201206",28/09/2011 00:00:00,1159.72,"31230","Employment & Recruitment Agencies","REDACTED DATA","MATRIX SCM LTD","2227962","http://opencorporates.com/companies/gb/2227962","918498476"
"London Borough of Redbridge","http://opendatacommunities.org/doc/london-borough-council/redbridge","6BADULTSOCIA","Adult Social Care","6COLDINCMENT","Older People (65 or over) incl. Older Mentally Ill","REV","Revenue","R4136","Prevention and Well Being Team","01-EMPLOYEES","Employees","01A","Direct employee expenses","4","Agency Staff - Pay","3201714","201206",28/09/2011 00:00:00,1154.45,"31230","Employment & Recruitment Agencies","REDACTED DATA","MATRIX SCM LTD","2227962","http://opencorporates.com/companies/gb/2227962","918498476"
"London Borough of Redbridge","http://opendatacommunities.org/doc/london-borough-council/redbridge","6BADULTSOCIA","Adult Social Care","6COLDINCMENT","Older People (65 or over) incl. Older Mentally Ill","REV","Revenue","R4136","Prevention and Well Being Team","01-EMPLOYEES","Employees","01A","Direct employee expenses","4","Agency Staff - Pay","3201714","201206",28/09/2011 00:00:00,1150.86,"31230","Employment & Recruitment Agencies","REDACTED DATA","MATRIX SCM LTD","2227962","http://opencorporates.com/companies/gb/2227962","918498476"
"London Borough of Redbridge","http://opendatacommunities.org/doc/london-borough-council/redbridge","1BOTHEROPI&E","Other Operating Income & Expenditure","1CTRADSURDEF","Trading Account Surpluses & Deficits","REV","Revenue","R9471","Change Management Scheme","01-EMPLOYEES","Employees","01A","Direct employee expenses","4","Agency Staff - Pay","3201714","201206",28/09/2011 00:00:00,1148.98,"31230","Employment & Recruitment Agencies","REDACTED DATA","MATRIX SCM LTD","2227962","http://opencorporates.com/companies/gb/2227962","918498476"
"London Borough of Redbridge","http://opendatacommunities.org/doc/london-borough-council/redbridge","4BMANGT&SUPP","Management & Support Services","4CTRANSPP&S","Transport Planning, Policy & Strategy","REV","Revenue","R7001","London Permit Scheme","01-EMPLOYEES","Employees","01A","Direct employee expenses","4","Agency Staff - Pay","3201714","201206",28/09/2011 00:00:00,1148.12,"31230","Employment & Recruitment Agencies","REDACTED DATA","MATRIX SCM LTD","2227962","http://opencorporates.com/companies/gb/2227962","918498476"
"London Borough of Redbridge","http://opendatacommunities.org/doc/london-borough-council/redbridge","4BMANGT&SUPP","Management & Support Services","4CTRANSPP&S","Transport Planning, Policy & Strategy","REV","Revenue","R7001","London Permit Scheme","01-EMPLOYEES","Employees","01A","Direct employee expenses","4","Agency Staff - Pay","3201714","201206",28/09/2011 00:00:00,1144.12,"31230","Employment & Recruitment Agencies","REDACTED DATA","MATRIX SCM LTD","2227962","http://opencorporates.com/companies/gb/2227962","918498476"
"London Borough of Redbridge","http://opendatacommunities.org/doc/london-borough-council/redbridge","4BTRANSPORT","Transport Planning, Policy & Strategy","4CMANGT&SUPP","Management & Support Services","REV","Revenue","R7000","Highways Executive","01-EMPLOYEES","Employees","01A","Direct employee expenses","4","Agency Staff - Pay","3201714","201206",28/09/2011 00:00:00,1143,"31230","Employment & Recruitment Agencies","REDACTED DATA","MATRIX SCM LTD","2227962","http://opencorporates.com/companies/gb/2227962","918498476"
"London Borough of Redbridge","http://opendatacommunities.org/doc/london-borough-council/redbridge","4BTRANSPORT","Transport Planning, Policy & Strategy","4CMANGT&SUPP","Management & Support Services","REV","Revenue","R7000","Highways Executive","01-EMPLOYEES","Employees","01A","Direct employee expenses","4","Agency Staff - Pay","3201714","201206",28/09/2011 00:00:00,1143,"31230","Employment & Recruitment Agencies","REDACTED DATA","MATRIX SCM LTD","2227962","http://opencorporates.com/companies/gb/2227962","918498476"
"London Borough of Redbridge","http://opendatacommunities.org/doc/london-borough-council/redbridge","4BMANGT&SUPP","Management & Support Services","4CTRANSPP&S","Transport Planning, Policy & Strategy","REV","Revenue","R7001","London Permit Scheme","01-EMPLOYEES","Employees","01A","Direct employee expenses","4","Agency Staff - Pay","3201714","201206",28/09/2011 00:00:00,1137.33,"31230","Employment & Recruitment Agencies","REDACTED DATA","MATRIX SCM LTD","2227962","http://opencorporates.com/companies/gb/2227962","918498476"
"London Borough of Redbridge","http://opendatacommunities.org/doc/london-borough-council/redbridge","4BMANGT&SUPP","Management & Support Services","4CTRANSPP&S","Transport Planning, Policy & Strategy","REV","Revenue","R7001","London Permit Scheme","01-EMPLOYEES","Employees","01A","Direct employee expenses","4","Agency Staff - Pay","3201714","201206",28/09/2011 00:00:00,1135.36,"31230","Employment & Recruitment Agencies","REDACTED DATA","MATRIX SCM LTD","2227962","http://opencorporates.com/companies/gb/2227962","918498476"
"London Borough of Redbridge","http://opendatacommunities.org/doc/london-borough-council/redbridge","5BGFHOUSING","General Fund Housing","5CHOUSADVICE","Housing Advice","REV","Revenue","R5533","Hylefords TA Refurbishment Project","01-EMPLOYEES","Employees","01A","Direct employee expenses","4","Agency Staff - Pay","3201714","201206",28/09/2011 00:00:00,1135.35,"31230","Employment & Recruitment Agencies","REDACTED DATA","MATRIX SCM LTD","2227962","http://opencorporates.com/companies/gb/2227962","918498476"
"London Borough of Redbridge","http://opendatacommunities.org/doc/london-borough-council/redbridge","6BSOCIALSERV","Social Services","6COTHC&FSERV","Other Children's & Families' Services","REV","Revenue","R2125","CLAFH - 13+ Team 2","01-EMPLOYEES","Employees","01A","Direct employee expenses","4","Agency Staff - Pay","3201714","201206",28/09/2011 00:00:00,1131.9,"31230","Employment & Recruitment Agencies","REDACTED DATA","MATRIX SCM LTD","2227962","http://opencorporates.com/companies/gb/2227962","918498476"
"London Borough of Redbridge","http://opendatacommunities.org/doc/london-borough-council/redbridge","3BNONSCHFUND","Non-School Funding","3CNONSCH","Non Schools","REV","Revenue","R2035","FIND DSG","04-SUPPLIES","Supplies And Services","04F","Communications and computing","5854","Exchange Line Rental","3201679","201206",25/08/2011 00:00:00,1122.05,"76510","Telecommunication Services","REDACTED DATA","NTL/VIRGIN MEDIA PAYMENTS LTD(MAIN ACCT)","1785381","http://opencorporates.com/companies/gb/1785381","591819014"
"London Borough of Redbridge","http://opendatacommunities.org/doc/london-borough-council/redbridge","1BOTHEROPI&E","Other Operating Income & Expenditure","1CTRADSURDEF","Trading Account Surpluses & Deficits","REV","Revenue","R9252","IT Services","01-EMPLOYEES","Employees","01A","Direct employee expenses","4","Agency Staff - Pay","3201714","201206",28/09/2011 00:00:00,1120.24,"31230","Employment & Recruitment Agencies","REDACTED DATA","MATRIX SCM LTD","2227962","http://opencorporates.com/companies/gb/2227962","918498476"
"London Borough of Redbridge","http://opendatacommunities.org/doc/london-borough-council/redbridge","6BSOCIALSERV","Social Services","6COTHC&FSERV","Other Children's & Families' Services","REV","Revenue","R2167","CP and EI - Increased Social Worker Establishment","01-EMPLOYEES","Employees","01A","Direct employee expenses","4","Agency Staff - Pay","3201714","201206",28/09/2011 00:00:00,1120,"31230","Employment & Recruitment Agencies","REDACTED DATA","MATRIX SCM LTD","2227962","http://opencorporates.com/companies/gb/2227962","918498476"
"London Borough of Redbridge","http://opendatacommunities.org/doc/london-borough-council/redbridge","1BOTHEROPI&E","Other Operating Income & Expenditure","1CTRADSURDEF","Trading Account Surpluses & Deficits","REV","Revenue","R9252","IT Services","01-EMPLOYEES","Employees","01A","Direct employee expenses","4","Agency Staff - Pay","3201714","201206",28/09/2011 00:00:00,1118.88,"31230","Employment & Recruitment Agencies","REDACTED DATA","MATRIX SCM LTD","2227962","http://opencorporates.com/companies/gb/2227962","918498476"
"London Borough of Redbridge","http://opendatacommunities.org/doc/london-borough-council/redbridge","6BSOCIALSERV","Social Services","6CCHILLOOKED","Children Looked After","REV","Revenue","R2166","CP and EI - Child Protection Assmt Team Soc Care","01-EMPLOYEES","Employees","01A","Direct employee expenses","4","Agency Staff - Pay","3201714","201206",28/09/2011 00:00:00,1115.35,"31230","Employment & Recruitment Agencies","REDACTED DATA","MATRIX SCM LTD","2227962","http://opencorporates.com/companies/gb/2227962","918498476"
"London Borough of Redbridge","http://opendatacommunities.org/doc/london-borough-council/redbridge","6BSOCIALSERV","Social Services","6CCHILLOOKED","Children Looked After","REV","Revenue","R2140","CQ and F - Safeguarding and Care Planning Soc Care","01-EMPLOYEES","Employees","01A","Direct employee expenses","4","Agency Staff - Pay","3201714","201206",28/09/2011 00:00:00,1102.43,"31230","Employment & Recruitment Agencies","REDACTED DATA","MATRIX SCM LTD","2227962","http://opencorporates.com/companies/gb/2227962","918498476"
"London Borough of Redbridge","http://opendatacommunities.org/doc/london-borough-council/redbridge","4BTRANSPORT","Transport Planning, Policy & Strategy","4CMANGT&SUPP","Management & Support Services","REV","Revenue","R7000","Highways Executive","01-EMPLOYEES","Employees","01A","Direct employee expenses","4","Agency Staff - Pay","3201714","201206",28/09/2011 00:00:00,1090.77,"31230","Employment & Recruitment Agencies","REDACTED DATA","MATRIX SCM LTD","2227962","http://opencorporates.com/companies/gb/2227962","918498476"
"London Borough of Redbridge","http://opendatacommunities.org/doc/london-borough-council/redbridge","6BSOCIALSERV","Social Services","6CCHILLOOKED","Children Looked After","REV","Revenue","R2171","Ray Lodge (W) - Integrated Team Social Care","01-EMPLOYEES","Employees","01A","Direct employee expenses","4","Agency Staff - Pay","3201714","201206",28/09/2011 00:00:00,1089.05,"31230","Employment & Recruitment Agencies","REDACTED DATA","MATRIX SCM LTD","2227962","http://opencorporates.com/companies/gb/2227962","918498476"
"London Borough of Redbridge","http://opendatacommunities.org/doc/london-borough-council/redbridge","5BGFHOUSING","General Fund Housing","5CHOUSADVICE","Housing Advice","REV","Revenue","R5533","Hylefords TA Refurbishment Project","01-EMPLOYEES","Employees","01A","Direct employee expenses","4","Agency Staff - Pay","3201714","201206",28/09/2011 00:00:00,1084.89,"31230","Employment & Recruitment Agencies","REDACTED DATA","MATRIX SCM LTD","2227962","http://opencorporates.com/companies/gb/2227962","918498476"
"London Borough of Redbridge","http://opendatacommunities.org/doc/london-borough-council/redbridge","6BSOCIALSERV","Social Services","6CCHILLOOKED","Children Looked After","REV","Revenue","R2166","CP and EI - Child Protection Assmt Team Soc Care","01-EMPLOYEES","Employees","01A","Direct employee expenses","4","Agency Staff - Pay","3201714","201206",28/09/2011 00:00:00,1081.09,"31230","Employment & Recruitment Agencies","REDACTED DATA","MATRIX SCM LTD","2227962","http://opencorporates.com/companies/gb/2227962","918498476"
"London Borough of Redbridge","http://opendatacommunities.org/doc/london-borough-council/redbridge","6BSOCIALSERV","Social Services","6CCHILLOOKED","Children Looked After","REV","Revenue","R2171","Ray Lodge (W) - Integrated Team Social Care","01-EMPLOYEES","Employees","01A","Direct employee expenses","4","Agency Staff - Pay","3201714","201206",28/09/2011 00:00:00,1078.25,"31230","Employment & Recruitment Agencies","REDACTED DATA","MATRIX SCM LTD","2227962","http://opencorporates.com/companies/gb/2227962","918498476"
"London Borough of Redbridge","http://opendatacommunities.org/doc/london-borough-council/redbridge","1BOTHEROPI&E","Other Operating Income & Expenditure","1CTRADSURDEF","Trading Account Surpluses & Deficits","REV","Revenue","R7207","Building Services","01-EMPLOYEES","Employees","01A","Direct employee expenses","4","Agency Staff - Pay","3201714","201206",28/09/2011 00:00:00,1076.09,"31230","Employment & Recruitment Agencies","REDACTED DATA","MATRIX SCM LTD","2227962","http://opencorporates.com/companies/gb/2227962","918498476"
"London Borough of Redbridge","http://opendatacommunities.org/doc/london-borough-council/redbridge","5BGFHOUSING","General Fund Housing","5CHOUMGTSUPP","Housing Management & Support Services","REV","Revenue","R5529","HAC Assessment","01-EMPLOYEES","Employees","01A","Direct employee expenses","9","Agency Staff Sickness Cover","3201714","201206",28/09/2011 00:00:00,1073.94,"31230","Employment & Recruitment Agencies","REDACTED DATA","MATRIX SCM LTD","2227962","http://opencorporates.com/companies/gb/2227962","918498476"
"London Borough of Redbridge","http://opendatacommunities.org/doc/london-borough-council/redbridge","4BTRANSPORT","Transport Planning, Policy & Strategy","4CMANGT&SUPP","Management & Support Services","REV","Revenue","R7000","Highways Executive","01-EMPLOYEES","Employees","01A","Direct employee expenses","4","Agency Staff - Pay","3201714","201206",28/09/2011 00:00:00,1073.88,"31230","Employment & Recruitment Agencies","REDACTED DATA","MATRIX SCM LTD","2227962","http://opencorporates.com/companies/gb/2227962","918498476"
"London Borough of Redbridge","http://opendatacommunities.org/doc/london-borough-council/redbridge","6BSOCIALSERV","Social Services","6CCHILLOOKED","Children Looked After","REV","Revenue","R2158","Albert Road - Integrated Team Social Care","01-EMPLOYEES","Employees","01A","Direct employee expenses","4","Agency Staff - Pay","3201714","201206",28/09/2011 00:00:00,1065.9,"31230","Employment & Recruitment Agencies","REDACTED DATA","MATRIX SCM LTD","2227962","http://opencorporates.com/companies/gb/2227962","918498476"
"London Borough of Redbridge","http://opendatacommunities.org/doc/london-borough-council/redbridge","6BADULTSOCIA","Adult Social Care","6COLDINCMENT","Older People (65 or over) incl. Older Mentally Ill","REV","Revenue","R4136","Prevention and Well Being Team","01-EMPLOYEES","Employees","01A","Direct employee expenses","9","Agency Staff Sickness Cover","3201714","201206",28/09/2011 00:00:00,1061.85,"31230","Employment & Recruitment Agencies","REDACTED DATA","MATRIX SCM LTD","2227962","http://opencorporates.com/companies/gb/2227962","918498476"
"London Borough of Redbridge","http://opendatacommunities.org/doc/london-borough-council/redbridge","5BGFHOUSING","General Fund Housing","5CHOUSADVICE","Housing Advice","REV","Revenue","R5533","Hylefords TA Refurbishment Project","01-EMPLOYEES","Employees","01A","Direct employee expenses","4","Agency Staff - Pay","3201714","201206",28/09/2011 00:00:00,1059.66,"31230","Employment & Recruitment Agencies","REDACTED DATA","MATRIX SCM LTD","2227962","http://opencorporates.com/companies/gb/2227962","918498476"
"London Borough of Redbridge","http://opendatacommunities.org/doc/london-borough-council/redbridge","1BOTHEROPI&E","Other Operating Income & Expenditure","1CTRADSURDEF","Trading Account Surpluses & Deficits","REV","Revenue","R9353","Advisory Team","01-EMPLOYEES","Employees","01A","Direct employee expenses","4","Agency Staff - Pay","3201714","201206",28/09/2011 00:00:00,1059.5,"31230","Employment & Recruitment Agencies","REDACTED DATA","MATRIX SCM LTD","2227962","http://opencorporates.com/companies/gb/2227962","918498476"
"London Borough of Redbridge","http://opendatacommunities.org/doc/london-borough-council/redbridge","6BSOCIALSERV","Social Services","6CCHILLOOKED","Children Looked After","REV","Revenue","R2181","CLAFH - Increased Social Worker Establishment","01-EMPLOYEES","Employees","01A","Direct employee expenses","4","Agency Staff - Pay","3201714","201206",28/09/2011 00:00:00,1057.65,"31230","Employment & Recruitment Agencies","REDACTED DATA","MATRIX SCM LTD","2227962","http://opencorporates.com/companies/gb/2227962","918498476"
"London Borough of Redbridge","http://opendatacommunities.org/doc/london-borough-council/redbridge","6BSOCIALSERV","Social Services","6CCHILLOOKED","Children Looked After","REV","Revenue","R2166","CP and EI - Child Protection Assmt Team Soc Care","01-EMPLOYEES","Employees","01A","Direct employee expenses","4","Agency Staff - Pay","3201714","201206",28/09/2011 00:00:00,1051.05,"31230","Employment & Recruitment Agencies","REDACTED DATA","MATRIX SCM LTD","2227962","http://opencorporates.com/companies/gb/2227962","918498476"
"London Borough of Redbridge","http://opendatacommunities.org/doc/london-borough-council/redbridge","6BSOCIALSERV","Social Services","6CCHILLOOKED","Children Looked After","REV","Revenue","R2166","CP and EI - Child Protection Assmt Team Soc Care","01-EMPLOYEES","Employees","01A","Direct employee expenses","4","Agency Staff - Pay","3201714","201206",28/09/2011 00:00:00,1051.05,"31230","Employment & Recruitment Agencies","REDACTED DATA","MATRIX SCM LTD","2227962","http://opencorporates.com/companies/gb/2227962","918498476"
"London Borough of Redbridge","http://opendatacommunities.org/doc/london-borough-council/redbridge","6BSOCIALSERV","Social Services","6CCHILLOOKED","Children Looked After","REV","Revenue","R2166","CP and EI - Child Protection Assmt Team Soc Care","01-EMPLOYEES","Employees","01A","Direct employee expenses","4","Agency Staff - Pay","3201714","201206",28/09/2011 00:00:00,1051.05,"31230","Employment & Recruitment Agencies","REDACTED DATA","MATRIX SCM LTD","2227962","http://opencorporates.com/companies/gb/2227962","918498476"
"London Borough of Redbridge","http://opendatacommunities.org/doc/london-borough-council/redbridge","6BSOCIALSERV","Social Services","6CCHILLOOKED","Children Looked After","REV","Revenue","R2166","CP and EI - Child Protection Assmt Team Soc Care","01-EMPLOYEES","Employees","01A","Direct employee expenses","4","Agency Staff - Pay","3201714","201206",28/09/2011 00:00:00,1051.05,"31230","Employment & Recruitment Agencies","REDACTED DATA","MATRIX SCM LTD","2227962","http://opencorporates.com/companies/gb/2227962","918498476"
"London Borough of Redbridge","http://opendatacommunities.org/doc/london-borough-council/redbridge","6BSOCIALSERV","Social Services","6CCHILLOOKED","Children Looked After","REV","Revenue","R2166","CP and EI - Child Protection Assmt Team Soc Care","01-EMPLOYEES","Employees","01A","Direct employee expenses","4","Agency Staff - Pay","3201714","201206",28/09/2011 00:00:00,1051.05,"31230","Employment & Recruitment Agencies","REDACTED DATA","MATRIX SCM LTD","2227962","http://opencorporates.com/companies/gb/2227962","918498476"
"London Borough of Redbridge","http://opendatacommunities.org/doc/london-borough-council/redbridge","6BSOCIALSERV","Social Services","6CCHILLOOKED","Children Looked After","REV","Revenue","R2166","CP and EI - Child Protection Assmt Team Soc Care","01-EMPLOYEES","Employees","01A","Direct employee expenses","4","Agency Staff - Pay","3201714","201206",28/09/2011 00:00:00,1051.05,"31230","Employment & Recruitment Agencies","REDACTED DATA","MATRIX SCM LTD","2227962","http://opencorporates.com/companies/gb/2227962","918498476"
"London Borough of Redbridge","http://opendatacommunities.org/doc/london-borough-council/redbridge","6BSOCIALSERV","Social Services","6CCHILLOOKED","Children Looked After","REV","Revenue","R2166","CP and EI - Child Protection Assmt Team Soc Care","01-EMPLOYEES","Employees","01A","Direct employee expenses","4","Agency Staff - Pay","3201714","201206",28/09/2011 00:00:00,1051.05,"31230","Employment & Recruitment Agencies","REDACTED DATA","MATRIX SCM LTD","2227962","http://opencorporates.com/companies/gb/2227962","918498476"
"London Borough of Redbridge","http://opendatacommunities.org/doc/london-borough-council/redbridge","6BSOCIALSERV","Social Services","6CCHILLOOKED","Children Looked After","REV","Revenue","R2176","Ray Lodge (N) - Integrated Team Social Care","01-EMPLOYEES","Employees","01A","Direct employee expenses","4","Agency Staff - Pay","3201714","201206",28/09/2011 00:00:00,1050.7,"31230","Employment & Recruitment Agencies","REDACTED DATA","MATRIX SCM LTD","2227962","http://opencorporates.com/companies/gb/2227962","918498476"
"London Borough of Redbridge","http://opendatacommunities.org/doc/london-borough-council/redbridge","6BSOCIALSERV","Social Services","6CCHILLOOKED","Children Looked After","REV","Revenue","R2176","Ray Lodge (N) - Integrated Team Social Care","01-EMPLOYEES","Employees","01A","Direct employee expenses","4","Agency Staff - Pay","3201714","201206",28/09/2011 00:00:00,1050.7,"31230","Employment & Recruitment Agencies","REDACTED DATA","MATRIX SCM LTD","2227962","http://opencorporates.com/companies/gb/2227962","918498476"
"London Borough of Redbridge","http://opendatacommunities.org/doc/london-borough-council/redbridge","5BGFHOUSING","General Fund Housing","5CHOUSADVICE","Housing Advice","REV","Revenue","R5533","Hylefords TA Refurbishment Project","01-EMPLOYEES","Employees","01A","Direct employee expenses","4","Agency Staff - Pay","3201714","201206",28/09/2011 00:00:00,1047.06,"31230","Employment & Recruitment Agencies","REDACTED DATA","MATRIX SCM LTD","2227962","http://opencorporates.com/companies/gb/2227962","918498476"
"London Borough of Redbridge","http://opendatacommunities.org/doc/london-borough-council/redbridge","5BGFHOUSING","General Fund Housing","5CHOUMGTSUPP","Housing Management & Support Services","REV","Revenue","R5529","HAC Assessment","01-EMPLOYEES","Employees","01A","Direct employee expenses","4","Agency Staff - Pay","3201714","201206",28/09/2011 00:00:00,1044.23,"31230","Employment & Recruitment Agencies","REDACTED DATA","MATRIX SCM LTD","2227962","http://opencorporates.com/companies/gb/2227962","918498476"
"London Borough of Redbridge","http://opendatacommunities.org/doc/london-borough-council/redbridge","6BADULTSOCIA","Adult Social Care","6COLDINCMENT","Older People (65 or over) incl. Older Mentally Ill","REV","Revenue","R4360","Hospital and Health Team","01-EMPLOYEES","Employees","01A","Direct employee expenses","4","Agency Staff - Pay","3201714","201206",28/09/2011 00:00:00,1044.12,"31230","Employment & Recruitment Agencies","REDACTED DATA","MATRIX SCM LTD","2227962","http://opencorporates.com/companies/gb/2227962","918498476"
"London Borough of Redbridge","http://opendatacommunities.org/doc/london-borough-council/redbridge","5BGFHOUSING","General Fund Housing","5CHOUMGTSUPP","Housing Management & Support Services","REV","Revenue","R5529","HAC Assessment","01-EMPLOYEES","Employees","01A","Direct employee expenses","4","Agency Staff - Pay","3201714","201206",28/09/2011 00:00:00,1042.39,"31230","Employment & Recruitment Agencies","REDACTED DATA","MATRIX SCM LTD","2227962","http://opencorporates.com/companies/gb/2227962","918498476"
"London Borough of Redbridge","http://opendatacommunities.org/doc/london-borough-council/redbridge","6BSOCIALSERV","Social Services","6CCHILLOOKED","Children Looked After","REV","Revenue","R2176","Ray Lodge (N) - Integrated Team Social Care","01-EMPLOYEES","Employees","01A","Direct employee expenses","4","Agency Staff - Pay","3201714","201206",28/09/2011 00:00:00,1038.1,"31230","Employment & Recruitment Agencies","REDACTED DATA","MATRIX SCM LTD","2227962","http://opencorporates.com/companies/gb/2227962","918498476"
"London Borough of Redbridge","http://opendatacommunities.org/doc/london-borough-council/redbridge","6BSOCIALSERV","Social Services","6CCHILLOOKED","Children Looked After","REV","Revenue","R2176","Ray Lodge (N) - Integrated Team Social Care","01-EMPLOYEES","Employees","01A","Direct employee expenses","4","Agency Staff - Pay","3201714","201206",28/09/2011 00:00:00,1038.1,"31230","Employment & Recruitment Agencies","REDACTED DATA","MATRIX SCM LTD","2227962","http://opencorporates.com/companies/gb/2227962","918498476"
"London Borough of Redbridge","http://opendatacommunities.org/doc/london-borough-council/redbridge","6BADULTSOCIA","Adult Social Care","6CSUPPSERMGT","Support Service & Management Costs","REV","Revenue","R4468","Contracting","01-EMPLOYEES","Employees","01A","Direct employee expenses","4","Agency Staff - Pay","3201714","201206",28/09/2011 00:00:00,1035.72,"31230","Employment & Recruitment Agencies","REDACTED DATA","MATRIX SCM LTD","2227962","http://opencorporates.com/companies/gb/2227962","918498476"
"London Borough of Redbridge","http://opendatacommunities.org/doc/london-borough-council/redbridge","5BGFHOUSING","General Fund Housing","5CHOUSADVICE","Housing Advice","REV","Revenue","R5533","Hylefords TA Refurbishment Project","01-EMPLOYEES","Employees","01A","Direct employee expenses","4","Agency Staff - Pay","3201714","201206",28/09/2011 00:00:00,1034.43,"31230","Employment & Recruitment Agencies","REDACTED DATA","MATRIX SCM LTD","2227962","http://opencorporates.com/companies/gb/2227962","918498476"
"London Borough of Redbridge","http://opendatacommunities.org/doc/london-borough-council/redbridge","6BSOCIALSERV","Social Services","6COTHC&FSERV","Other Children's & Families' Services","REV","Revenue","R2125","CLAFH - 13+ Team 2","01-EMPLOYEES","Employees","01A","Direct employee expenses","4","Agency Staff - Pay","3201714","201206",28/09/2011 00:00:00,1034.15,"31230","Employment & Recruitment Agencies","REDACTED DATA","MATRIX SCM LTD","2227962","http://opencorporates.com/companies/gb/2227962","918498476"
"London Borough of Redbridge","http://opendatacommunities.org/doc/london-borough-council/redbridge","1BOTHEROPI&E","Other Operating Income & Expenditure","1CTRADSURDEF","Trading Account Surpluses & Deficits","REV","Revenue","R9353","Advisory Team","01-EMPLOYEES","Employees","01A","Direct employee expenses","4","Agency Staff - Pay","3201714","201206",28/09/2011 00:00:00,1032.85,"31230","Employment & Recruitment Agencies","REDACTED DATA","MATRIX SCM LTD","2227962","http://opencorporates.com/companies/gb/2227962","918498476"
"London Borough of Redbridge","http://opendatacommunities.org/doc/london-borough-council/redbridge","5BGFHOUSING","General Fund Housing","5CHOUMGTSUPP","Housing Management & Support Services","REV","Revenue","R5529","HAC Assessment","01-EMPLOYEES","Employees","01A","Direct employee expenses","4","Agency Staff - Pay","3201714","201206",28/09/2011 00:00:00,1029.61,"31230","Employment & Recruitment Agencies","REDACTED DATA","MATRIX SCM LTD","2227962","http://opencorporates.com/companies/gb/2227962","918498476"
"London Borough of Redbridge","http://opendatacommunities.org/doc/london-borough-council/redbridge","1BOTHEROPI&E","Other Operating Income & Expenditure","1CTRADSURDEF","Trading Account Surpluses & Deficits","REV","Revenue","R9351","Litigation Team","01-EMPLOYEES","Employees","01A","Direct employee expenses","4","Agency Staff - Pay","3201714","201206",28/09/2011 00:00:00,1029.14,"31230","Employment & Recruitment Agencies","REDACTED DATA","MATRIX SCM LTD","2227962","http://opencorporates.com/companies/gb/2227962","918498476"
"London Borough of Redbridge","http://opendatacommunities.org/doc/london-borough-council/redbridge","6BSOCIALSERV","Social Services","6COTHC&FSERV","Other Children's & Families' Services","REV","Revenue","R2125","CLAFH - 13+ Team 2","01-EMPLOYEES","Employees","01A","Direct employee expenses","4","Agency Staff - Pay","3201714","201206",28/09/2011 00:00:00,1026.95,"31230","Employment & Recruitment Agencies","REDACTED DATA","MATRIX SCM LTD","2227962","http://opencorporates.com/companies/gb/2227962","918498476"
"London Borough of Redbridge","http://opendatacommunities.org/doc/london-borough-council/redbridge","6BADULTSOCIA","Adult Social Care","6COLDINCMENT","Older People (65 or over) incl. Older Mentally Ill","REV","Revenue","R4136","Prevention and Well Being Team","01-EMPLOYEES","Employees","01A","Direct employee expenses","9","Agency Staff Sickness Cover","3201714","201206",28/09/2011 00:00:00,1024.48,"31230","Employment & Recruitment Agencies","REDACTED DATA","MATRIX SCM LTD","2227962","http://opencorporates.com/companies/gb/2227962","918498476"
"London Borough of Redbridge","http://opendatacommunities.org/doc/london-borough-council/redbridge","5BGFHOUSING","General Fund Housing","5CHOUSADVICE","Housing Advice","REV","Revenue","R5533","Hylefords TA Refurbishment Project","01-EMPLOYEES","Employees","01A","Direct employee expenses","4","Agency Staff - Pay","3201714","201206",28/09/2011 00:00:00,1021.82,"31230","Employment & Recruitment Agencies","REDACTED DATA","MATRIX SCM LTD","2227962","http://opencorporates.com/companies/gb/2227962","918498476"
"London Borough of Redbridge","http://opendatacommunities.org/doc/london-borough-council/redbridge","6BSOCIALSERV","Social Services","6CCHILLOOKED","Children Looked After","REV","Revenue","R2171","Ray Lodge (W) - Integrated Team Social Care","01-EMPLOYEES","Employees","01A","Direct employee expenses","4","Agency Staff - Pay","3201714","201206",28/09/2011 00:00:00,1020.97,"31230","Employment & Recruitment Agencies","REDACTED DATA","MATRIX SCM LTD","2227962","http://opencorporates.com/companies/gb/2227962","918498476"
"London Borough of Redbridge","http://opendatacommunities.org/doc/london-borough-council/redbridge","6BSOCIALSERV","Social Services","6CCHILLOOKED","Children Looked After","REV","Revenue","R2166","CP and EI - Child Protection Assmt Team Soc Care","01-EMPLOYEES","Employees","01A","Direct employee expenses","4","Agency Staff - Pay","3201714","201206",28/09/2011 00:00:00,1020.96,"31230","Employment & Recruitment Agencies","REDACTED DATA","MATRIX SCM LTD","2227962","http://opencorporates.com/companies/gb/2227962","918498476"
"London Borough of Redbridge","http://opendatacommunities.org/doc/london-borough-council/redbridge","6BSOCIALSERV","Social Services","6CCHILLOOKED","Children Looked After","REV","Revenue","R2166","CP and EI - Child Protection Assmt Team Soc Care","01-EMPLOYEES","Employees","01A","Direct employee expenses","4","Agency Staff - Pay","3201714","201206",28/09/2011 00:00:00,1020.95,"31230","Employment & Recruitment Agencies","REDACTED DATA","MATRIX SCM LTD","2227962","http://opencorporates.com/companies/gb/2227962","918498476"
"London Borough of Redbridge","http://opendatacommunities.org/doc/london-borough-council/redbridge","6BSOCIALSERV","Social Services","6CCHILLOOKED","Children Looked After","REV","Revenue","R2166","CP and EI - Child Protection Assmt Team Soc Care","01-EMPLOYEES","Employees","01A","Direct employee expenses","4","Agency Staff - Pay","3201714","201206",28/09/2011 00:00:00,1020.95,"31230","Employment & Recruitment Agencies","REDACTED DATA","MATRIX SCM LTD","2227962","http://opencorporates.com/companies/gb/2227962","918498476"
"London Borough of Redbridge","http://opendatacommunities.org/doc/london-borough-council/redbridge","6BSOCIALSERV","Social Services","6COTHC&FSERV","Other Children's & Families' Services","REV","Revenue","R2125","CLAFH - 13+ Team 2","01-EMPLOYEES","Employees","01A","Direct employee expenses","4","Agency Staff - Pay","3201714","201206",28/09/2011 00:00:00,1020.95,"31230","Employment & Recruitment Agencies","REDACTED DATA","MATRIX SCM LTD","2227962","http://opencorporates.com/companies/gb/2227962","918498476"
"London Borough of Redbridge","http://opendatacommunities.org/doc/london-borough-council/redbridge","6BSOCIALSERV","Social Services","6COTHC&FSERV","Other Children's & Families' Services","REV","Revenue","R2167","CP and EI - Increased Social Worker Establishment","01-EMPLOYEES","Employees","01A","Direct employee expenses","9","Agency Staff Sickness Cover","3201714","201206",28/09/2011 00:00:00,1020.95,"31230","Employment & Recruitment Agencies","REDACTED DATA","MATRIX SCM LTD","2227962","http://opencorporates.com/companies/gb/2227962","918498476"
"London Borough of Redbridge","http://opendatacommunities.org/doc/london-borough-council/redbridge","5BGFHOUSING","General Fund Housing","5CHOUMGTSUPP","Housing Management & Support Services","REV","Revenue","R5529","HAC Assessment","01-EMPLOYEES","Employees","01A","Direct employee expenses","4","Agency Staff - Pay","3201714","201206",28/09/2011 00:00:00,1010.42,"31230","Employment & Recruitment Agencies","REDACTED DATA","MATRIX SCM LTD","2227962","http://opencorporates.com/companies/gb/2227962","918498476"
"London Borough of Redbridge","http://opendatacommunities.org/doc/london-borough-council/redbridge","5BGFHOUSING","General Fund Housing","5CHOUSADVICE","Housing Advice","REV","Revenue","R5533","Hylefords TA Refurbishment Project","01-EMPLOYEES","Employees","01A","Direct employee expenses","4","Agency Staff - Pay","3201714","201206",28/09/2011 00:00:00,1009.2,"31230","Employment & Recruitment Agencies","REDACTED DATA","MATRIX SCM LTD","2227962","http://opencorporates.com/companies/gb/2227962","918498476"
"London Borough of Redbridge","http://opendatacommunities.org/doc/london-borough-council/redbridge","5BGFHOUSING","General Fund Housing","5CHOUSADVICE","Housing Advice","REV","Revenue","R5533","Hylefords TA Refurbishment Project","01-EMPLOYEES","Employees","01A","Direct employee expenses","4","Agency Staff - Pay","3201714","201206",28/09/2011 00:00:00,1009.2,"31230","Employment & Recruitment Agencies","REDACTED DATA","MATRIX SCM LTD","2227962","http://opencorporates.com/companies/gb/2227962","918498476"
"London Borough of Redbridge","http://opendatacommunities.org/doc/london-borough-council/redbridge","5BGFHOUSING","General Fund Housing","5CHOUSADVICE","Housing Advice","REV","Revenue","R5533","Hylefords TA Refurbishment Project","01-EMPLOYEES","Employees","01A","Direct employee expenses","4","Agency Staff - Pay","3201714","201206",28/09/2011 00:00:00,1009.2,"31230","Employment & Recruitment Agencies","REDACTED DATA","MATRIX SCM LTD","2227962","http://opencorporates.com/companies/gb/2227962","918498476"
"London Borough of Redbridge","http://opendatacommunities.org/doc/london-borough-council/redbridge","5BGFHOUSING","General Fund Housing","5CHOUSADVICE","Housing Advice","REV","Revenue","R5533","Hylefords TA Refurbishment Project","01-EMPLOYEES","Employees","01A","Direct employee expenses","4","Agency Staff - Pay","3201714","201206",28/09/2011 00:00:00,1009.2,"31230","Employment & Recruitment Agencies","REDACTED DATA","MATRIX SCM LTD","2227962","http://opencorporates.com/companies/gb/2227962","918498476"
"London Borough of Redbridge","http://opendatacommunities.org/doc/london-borough-council/redbridge","6BADULTSOCIA","Adult Social Care","6COLDINCMENT","Older People (65 or over) incl. Older Mentally Ill","REV","Revenue","R4136","Prevention and Well Being Team","01-EMPLOYEES","Employees","01A","Direct employee expenses","9","Agency Staff Sickness Cover","3201714","201206",28/09/2011 00:00:00,996.58,"31230","Employment & Recruitment Agencies","REDACTED DATA","MATRIX SCM LTD","2227962","http://opencorporates.com/companies/gb/2227962","918498476"
"London Borough of Redbridge","http://opendatacommunities.org/doc/london-borough-council/redbridge","4BTRANSPORT","Transport Planning, Policy & Strategy","4CMANGT&SUPP","Management & Support Services","REV","Revenue","R7000","Highways Executive","01-EMPLOYEES","Employees","01A","Direct employee expenses","4","Agency Staff - Pay","3201714","201206",28/09/2011 00:00:00,992.77,"31230","Employment & Recruitment Agencies","REDACTED DATA","MATRIX SCM LTD","2227962","http://opencorporates.com/companies/gb/2227962","918498476"
"London Borough of Redbridge","http://opendatacommunities.org/doc/london-borough-council/redbridge","1BOTHEROPI&E","Other Operating Income & Expenditure","1CTRADSURDEF","Trading Account Surpluses & Deficits","REV","Revenue","R9351","Litigation Team","01-EMPLOYEES","Employees","01A","Direct employee expenses","4","Agency Staff - Pay","3201714","201206",28/09/2011 00:00:00,989.82,"31230","Employment & Recruitment Agencies","REDACTED DATA","MATRIX SCM LTD","2227962","http://opencorporates.com/companies/gb/2227962","918498476"
"London Borough of Redbridge","http://opendatacommunities.org/doc/london-borough-council/redbridge","5BGFHOUSING","General Fund Housing","5CHOUMGTSUPP","Housing Management & Support Services","REV","Revenue","R5511","Homelessness Grants","01-EMPLOYEES","Employees","01A","Direct employee expenses","4","Agency Staff - Pay","3201714","201206",28/09/2011 00:00:00,988.59,"31230","Employment & Recruitment Agencies","REDACTED DATA","MATRIX SCM LTD","2227962","http://opencorporates.com/companies/gb/2227962","918498476"
"London Borough of Redbridge","http://opendatacommunities.org/doc/london-borough-council/redbridge","4BTRANSPORT","Transport Planning, Policy & Strategy","4CMANGT&SUPP","Management & Support Services","REV","Revenue","R7000","Highways Executive","01-EMPLOYEES","Employees","01A","Direct employee expenses","4","Agency Staff - Pay","3201714","201206",28/09/2011 00:00:00,985.97,"31230","Employment & Recruitment Agencies","REDACTED DATA","MATRIX SCM LTD","2227962","http://opencorporates.com/companies/gb/2227962","918498476"
"London Borough of Redbridge","http://opendatacommunities.org/doc/london-borough-council/redbridge","6BADULTSOCIA","Adult Social Care","6COLDINCMENT","Older People (65 or over) incl. Older Mentally Ill","REV","Revenue","R4360","Hospital and Health Team","01-EMPLOYEES","Employees","01A","Direct employee expenses","4","Agency Staff - Pay","3201714","201206",28/09/2011 00:00:00,985.88,"31230","Employment & Recruitment Agencies","REDACTED DATA","MATRIX SCM LTD","2227962","http://opencorporates.com/companies/gb/2227962","918498476"
"London Borough of Redbridge","http://opendatacommunities.org/doc/london-borough-council/redbridge","5BGFHOUSING","General Fund Housing","5CHOUMGTSUPP","Housing Management & Support Services","REV","Revenue","R5529","HAC Assessment","01-EMPLOYEES","Employees","01A","Direct employee expenses","9","Agency Staff Sickness Cover","3201714","201206",28/09/2011 00:00:00,984.45,"31230","Employment & Recruitment Agencies","REDACTED DATA","MATRIX SCM LTD","2227962","http://opencorporates.com/companies/gb/2227962","918498476"
"London Borough of Redbridge","http://opendatacommunities.org/doc/london-borough-council/redbridge","6BSOCIALSERV","Social Services","6CCHILLOOKED","Children Looked After","REV","Revenue","R2158","Albert Road - Integrated Team Social Care","01-EMPLOYEES","Employees","01A","Direct employee expenses","4","Agency Staff - Pay","3201714","201206",28/09/2011 00:00:00,980.84,"31230","Employment & Recruitment Agencies","REDACTED DATA","MATRIX SCM LTD","2227962","http://opencorporates.com/companies/gb/2227962","918498476"
"London Borough of Redbridge","http://opendatacommunities.org/doc/london-borough-council/redbridge","6BSOCIALSERV","Social Services","6CCHILLOOKED","Children Looked After","REV","Revenue","R2171","Ray Lodge (W) - Integrated Team Social Care","01-EMPLOYEES","Employees","01A","Direct employee expenses","4","Agency Staff - Pay","3201714","201206",28/09/2011 00:00:00,980.84,"31230","Employment & Recruitment Agencies","REDACTED DATA","MATRIX SCM LTD","2227962","http://opencorporates.com/companies/gb/2227962","918498476"
"London Borough of Redbridge","http://opendatacommunities.org/doc/london-borough-council/redbridge","6BSOCIALSERV","Social Services","6COTHC&FSERV","Other Children's & Families' Services","REV","Revenue","R2167","CP and EI - Increased Social Worker Establishment","01-EMPLOYEES","Employees","01A","Direct employee expenses","4","Agency Staff - Pay","3201714","201206",28/09/2011 00:00:00,980.84,"31230","Employment & Recruitment Agencies","REDACTED DATA","MATRIX SCM LTD","2227962","http://opencorporates.com/companies/gb/2227962","918498476"
"London Borough of Redbridge","http://opendatacommunities.org/doc/london-borough-council/redbridge","1BOTHEROPI&E","Other Operating Income & Expenditure","1CTRADSURDEF","Trading Account Surpluses & Deficits","REV","Revenue","R9353","Advisory Team","01-EMPLOYEES","Employees","01A","Direct employee expenses","4","Agency Staff - Pay","3201714","201206",28/09/2011 00:00:00,975.47,"31230","Employment & Recruitment Agencies","REDACTED DATA","MATRIX SCM LTD","2227962","http://opencorporates.com/companies/gb/2227962","918498476"
"London Borough of Redbridge","http://opendatacommunities.org/doc/london-borough-council/redbridge","4BTRANSPORT","Transport Planning, Policy & Strategy","4CMANGT&SUPP","Management & Support Services","REV","Revenue","R7000","Highways Executive","01-EMPLOYEES","Employees","01A","Direct employee expenses","4","Agency Staff - Pay","3201714","201206",28/09/2011 00:00:00,971.17,"31230","Employment & Recruitment Agencies","REDACTED DATA","MATRIX SCM LTD","2227962","http://opencorporates.com/companies/gb/2227962","918498476"
"London Borough of Redbridge","http://opendatacommunities.org/doc/london-borough-council/redbridge","1BOTHEROPI&E","Other Operating Income & Expenditure","1CTRADSURDEF","Trading Account Surpluses & Deficits","REV","Revenue","R9353","Advisory Team","01-EMPLOYEES","Employees","01A","Direct employee expenses","4","Agency Staff - Pay","3201714","201206",28/09/2011 00:00:00,967.74,"31230","Employment & Recruitment Agencies","REDACTED DATA","MATRIX SCM LTD","2227962","http://opencorporates.com/companies/gb/2227962","918498476"
"London Borough of Redbridge","http://opendatacommunities.org/doc/london-borough-council/redbridge","4BTRANSPORT","Transport Planning, Policy & Strategy","4CMANGT&SUPP","Management & Support Services","REV","Revenue","R7000","Highways Executive","01-EMPLOYEES","Employees","01A","Direct employee expenses","4","Agency Staff - Pay","3201714","201206",28/09/2011 00:00:00,965.2,"31230","Employment & Recruitment Agencies","REDACTED DATA","MATRIX SCM LTD","2227962","http://opencorporates.com/companies/gb/2227962","918498476"
"London Borough of Redbridge","http://opendatacommunities.org/doc/london-borough-council/redbridge","4BMANGT&SUPP","Management & Support Services","4CTRANSPP&S","Transport Planning, Policy & Strategy","REV","Revenue","R7001","London Permit Scheme","01-EMPLOYEES","Employees","01A","Direct employee expenses","4","Agency Staff - Pay","3201714","201206",28/09/2011 00:00:00,964,"31230","Employment & Recruitment Agencies","REDACTED DATA","MATRIX SCM LTD","2227962","http://opencorporates.com/companies/gb/2227962","918498476"
"London Borough of Redbridge","http://opendatacommunities.org/doc/london-borough-council/redbridge","5BGFHOUSING","General Fund Housing","5CHOUSBENADM","Housing Benefits Administration","REV","Revenue","R5771","Benefits Administration","01-EMPLOYEES","Employees","01A","Direct employee expenses","4","Agency Staff - Pay","3201714","201206",28/09/2011 00:00:00,963.89,"31230","Employment & Recruitment Agencies","REDACTED DATA","MATRIX SCM LTD","2227962","http://opencorporates.com/companies/gb/2227962","918498476"
"London Borough of Redbridge","http://opendatacommunities.org/doc/london-borough-council/redbridge","5BGFHOUSING","General Fund Housing","5CHOUMGTSUPP","Housing Management & Support Services","REV","Revenue","R5511","Homelessness Grants","01-EMPLOYEES","Employees","01A","Direct employee expenses","4","Agency Staff - Pay","3201714","201206",28/09/2011 00:00:00,958.02,"31230","Employment & Recruitment Agencies","REDACTED DATA","MATRIX SCM LTD","2227962","http://opencorporates.com/companies/gb/2227962","918498476"
"London Borough of Redbridge","http://opendatacommunities.org/doc/london-borough-council/redbridge","5BGFHOUSING","General Fund Housing","5CHOUSBENADM","Housing Benefits Administration","REV","Revenue","R5771","Benefits Administration","01-EMPLOYEES","Employees","01A","Direct employee expenses","4","Agency Staff - Pay","3201714","201206",28/09/2011 00:00:00,957.26,"31230","Employment & Recruitment Agencies","REDACTED DATA","MATRIX SCM LTD","2227962","http://opencorporates.com/companies/gb/2227962","918498476"
"London Borough of Redbridge","http://opendatacommunities.org/doc/london-borough-council/redbridge","5BGFHOUSING","General Fund Housing","5CHOUSBENADM","Housing Benefits Administration","REV","Revenue","R5771","Benefits Administration","01-EMPLOYEES","Employees","01A","Direct employee expenses","4","Agency Staff - Pay","3201714","201206",28/09/2011 00:00:00,957.26,"31230","Employment & Recruitment Agencies","REDACTED DATA","MATRIX SCM LTD","2227962","http://opencorporates.com/companies/gb/2227962","918498476"
"London Borough of Redbridge","http://opendatacommunities.org/doc/london-borough-council/redbridge","5BGFHOUSING","General Fund Housing","5CHOUSBENADM","Housing Benefits Administration","REV","Revenue","R5771","Benefits Administration","01-EMPLOYEES","Employees","01A","Direct employee expenses","4","Agency Staff - Pay","3201714","201206",28/09/2011 00:00:00,957.25,"31230","Employment & Recruitment Agencies","REDACTED DATA","MATRIX SCM LTD","2227962","http://opencorporates.com/companies/gb/2227962","918498476"
"London Borough of Redbridge","http://opendatacommunities.org/doc/london-borough-council/redbridge","5BGFHOUSING","General Fund Housing","5CHOUSBENADM","Housing Benefits Administration","REV","Revenue","R5771","Benefits Administration","01-EMPLOYEES","Employees","01A","Direct employee expenses","4","Agency Staff - Pay","3201714","201206",28/09/2011 00:00:00,957.24,"31230","Employment & Recruitment Agencies","REDACTED DATA","MATRIX SCM LTD","2227962","http://opencorporates.com/companies/gb/2227962","918498476"
"London Borough of Redbridge","http://opendatacommunities.org/doc/london-borough-council/redbridge","5BGFHOUSING","General Fund Housing","5CHOUMGTSUPP","Housing Management & Support Services","REV","Revenue","R5511","Homelessness Grants","01-EMPLOYEES","Employees","01A","Direct employee expenses","4","Agency Staff - Pay","3201714","201206",28/09/2011 00:00:00,955.89,"31230","Employment & Recruitment Agencies","REDACTED DATA","MATRIX SCM LTD","2227962","http://opencorporates.com/companies/gb/2227962","918498476"
"London Borough of Redbridge","http://opendatacommunities.org/doc/london-borough-council/redbridge","4BTRANSPORT","Transport Planning, Policy & Strategy","4CMANGT&SUPP","Management & Support Services","REV","Revenue","R7000","Highways Executive","01-EMPLOYEES","Employees","01A","Direct employee expenses","4","Agency Staff - Pay","3201714","201206",28/09/2011 00:00:00,952.89,"31230","Employment & Recruitment Agencies","REDACTED DATA","MATRIX SCM LTD","2227962","http://opencorporates.com/companies/gb/2227962","918498476"
"London Borough of Redbridge","http://opendatacommunities.org/doc/london-borough-council/redbridge","6BSOCIALSERV","Social Services","6CCHILLOOKED","Children Looked After","REV","Revenue","R2166","CP and EI - Child Protection Assmt Team Soc Care","01-EMPLOYEES","Employees","01A","Direct employee expenses","4","Agency Staff - Pay","3201714","201206",28/09/2011 00:00:00,952,"31230","Employment & Recruitment Agencies","REDACTED DATA","MATRIX SCM LTD","2227962","http://opencorporates.com/companies/gb/2227962","918498476"
"London Borough of Redbridge","http://opendatacommunities.org/doc/london-borough-council/redbridge","6BSOCIALSERV","Social Services","6CCHILLOOKED","Children Looked After","REV","Revenue","R2166","CP and EI - Child Protection Assmt Team Soc Care","01-EMPLOYEES","Employees","01A","Direct employee expenses","4","Agency Staff - Pay","3201714","201206",28/09/2011 00:00:00,952,"31230","Employment & Recruitment Agencies","REDACTED DATA","MATRIX SCM LTD","2227962","http://opencorporates.com/companies/gb/2227962","918498476"
"London Borough of Redbridge","http://opendatacommunities.org/doc/london-borough-council/redbridge","6BSOCIALSERV","Social Services","6CCHILLOOKED","Children Looked After","REV","Revenue","R2166","CP and EI - Child Protection Assmt Team Soc Care","01-EMPLOYEES","Employees","01A","Direct employee expenses","4","Agency Staff - Pay","3201714","201206",28/09/2011 00:00:00,952,"31230","Employment & Recruitment Agencies","REDACTED DATA","MATRIX SCM LTD","2227962","http://opencorporates.com/companies/gb/2227962","918498476"
"London Borough of Redbridge","http://opendatacommunities.org/doc/london-borough-council/redbridge","6BSOCIALSERV","Social Services","6CCHILLOOKED","Children Looked After","REV","Revenue","R2166","CP and EI - Child Protection Assmt Team Soc Care","01-EMPLOYEES","Employees","01A","Direct employee expenses","4","Agency Staff - Pay","3201714","201206",28/09/2011 00:00:00,952,"31230","Employment & Recruitment Agencies","REDACTED DATA","MATRIX SCM LTD","2227962","http://opencorporates.com/companies/gb/2227962","918498476"
"London Borough of Redbridge","http://opendatacommunities.org/doc/london-borough-council/redbridge","5BGFHOUSING","General Fund Housing","5CHOUMGTSUPP","Housing Management & Support Services","REV","Revenue","R5511","Homelessness Grants","01-EMPLOYEES","Employees","01A","Direct employee expenses","4","Agency Staff - Pay","3201714","201206",28/09/2011 00:00:00,949.89,"31230","Employment & Recruitment Agencies","REDACTED DATA","MATRIX SCM LTD","2227962","http://opencorporates.com/companies/gb/2227962","918498476"
"London Borough of Redbridge","http://opendatacommunities.org/doc/london-borough-council/redbridge","4BTRANSPORT","Transport Planning, Policy & Strategy","4CMANGT&SUPP","Management & Support Services","REV","Revenue","R7000","Highways Executive","01-EMPLOYEES","Employees","01A","Direct employee expenses","4","Agency Staff - Pay","3201714","201206",28/09/2011 00:00:00,946.2,"31230","Employment & Recruitment Agencies","REDACTED DATA","MATRIX SCM LTD","2227962","http://opencorporates.com/companies/gb/2227962","918498476"
"London Borough of Redbridge","http://opendatacommunities.org/doc/london-borough-council/redbridge","1BOTHEROPI&E","Other Operating Income & Expenditure","1CTRADSURDEF","Trading Account Surpluses & Deficits","REV","Revenue","R7207","Building Services","01-EMPLOYEES","Employees","01A","Direct employee expenses","4","Agency Staff - Pay","3201714","201206",28/09/2011 00:00:00,938.49,"31230","Employment & Recruitment Agencies","REDACTED DATA","MATRIX SCM LTD","2227962","http://opencorporates.com/companies/gb/2227962","918498476"
"London Borough of Redbridge","http://opendatacommunities.org/doc/london-borough-council/redbridge","1BOTHEROPI&E","Other Operating Income & Expenditure","1CTRADSURDEF","Trading Account Surpluses & Deficits","REV","Revenue","R7207","Building Services","01-EMPLOYEES","Employees","01A","Direct employee expenses","4","Agency Staff - Pay","3201714","201206",28/09/2011 00:00:00,938.49,"31230","Employment & Recruitment Agencies","REDACTED DATA","MATRIX SCM LTD","2227962","http://opencorporates.com/companies/gb/2227962","918498476"
"London Borough of Redbridge","http://opendatacommunities.org/doc/london-borough-council/redbridge","1BOTHEROPI&E","Other Operating Income & Expenditure","1CTRADSURDEF","Trading Account Surpluses & Deficits","REV","Revenue","R9351","Litigation Team","01-EMPLOYEES","Employees","01A","Direct employee expenses","4","Agency Staff - Pay","3201714","201206",28/09/2011 00:00:00,937.38,"31230","Employment & Recruitment Agencies","REDACTED DATA","MATRIX SCM LTD","2227962","http://opencorporates.com/companies/gb/2227962","918498476"
"London Borough of Redbridge","http://opendatacommunities.org/doc/london-borough-council/redbridge","3BNONSCHFUND","Non-School Funding","3CNONSCH","Non Schools","REV","Revenue","R2041","South Childrens Centre","01-EMPLOYEES","Employees","01A","Direct employee expenses","4","Agency Staff - Pay","3201714","201206",28/09/2011 00:00:00,928.6,"31230","Employment & Recruitment Agencies","REDACTED DATA","MATRIX SCM LTD","2227962","http://opencorporates.com/companies/gb/2227962","918498476"
"London Borough of Redbridge","http://opendatacommunities.org/doc/london-borough-council/redbridge","5BGFHOUSING","General Fund Housing","5CHOUMGTSUPP","Housing Management & Support Services","REV","Revenue","R5511","Homelessness Grants","01-EMPLOYEES","Employees","01A","Direct employee expenses","4","Agency Staff - Pay","3201714","201206",28/09/2011 00:00:00,927.76,"31230","Employment & Recruitment Agencies","REDACTED DATA","MATRIX SCM LTD","2227962","http://opencorporates.com/companies/gb/2227962","918498476"
"London Borough of Redbridge","http://opendatacommunities.org/doc/london-borough-council/redbridge","5BGFHOUSING","General Fund Housing","5CHOUSADVICE","Housing Advice","REV","Revenue","R5530","HAC Temporary Accomodation","01-EMPLOYEES","Employees","01A","Direct employee expenses","4","Agency Staff - Pay","3201714","201206",28/09/2011 00:00:00,926.95,"31230","Employment & Recruitment Agencies","REDACTED DATA","MATRIX SCM LTD","2227962","http://opencorporates.com/companies/gb/2227962","918498476"
"London Borough of Redbridge","http://opendatacommunities.org/doc/london-borough-council/redbridge","5BGFHOUSING","General Fund Housing","5CHOUSADVICE","Housing Advice","REV","Revenue","R5530","HAC Temporary Accomodation","01-EMPLOYEES","Employees","01A","Direct employee expenses","4","Agency Staff - Pay","3201714","201206",28/09/2011 00:00:00,922.09,"31230","Employment & Recruitment Agencies","REDACTED DATA","MATRIX SCM LTD","2227962","http://opencorporates.com/companies/gb/2227962","918498476"
"London Borough of Redbridge","http://opendatacommunities.org/doc/london-borough-council/redbridge","2BPLAN&DEVEL","Planning & Development Services","2CCOMMDEVT","Community Development","REV","Revenue","R6528","LLPG - CMF","01-EMPLOYEES","Employees","01A","Direct employee expenses","4","Agency Staff - Pay","3201714","201206",28/09/2011 00:00:00,918.72,"31230","Employment & Recruitment Agencies","REDACTED DATA","MATRIX SCM LTD","2227962","http://opencorporates.com/companies/gb/2227962","918498476"
"London Borough of Redbridge","http://opendatacommunities.org/doc/london-borough-council/redbridge","2BPLAN&DEVEL","Planning & Development Services","2CCOMMDEVT","Community Development","REV","Revenue","R6528","LLPG - CMF","01-EMPLOYEES","Employees","01A","Direct employee expenses","4","Agency Staff - Pay","3201714","201206",28/09/2011 00:00:00,918.72,"31230","Employment & Recruitment Agencies","REDACTED DATA","MATRIX SCM LTD","2227962","http://opencorporates.com/companies/gb/2227962","918498476"
"London Borough of Redbridge","http://opendatacommunities.org/doc/london-borough-council/redbridge","1BOTHEROPI&E","Other Operating Income & Expenditure","1CTRADSURDEF","Trading Account Surpluses & Deficits","REV","Revenue","R9252","IT Services","01-EMPLOYEES","Employees","01A","Direct employee expenses","4","Agency Staff - Pay","3201714","201206",28/09/2011 00:00:00,917,"31230","Employment & Recruitment Agencies","REDACTED DATA","MATRIX SCM LTD","2227962","http://opencorporates.com/companies/gb/2227962","918498476"
"London Borough of Redbridge","http://opendatacommunities.org/doc/london-borough-council/redbridge","5BGFHOUSING","General Fund Housing","5CHOUSADVICE","Housing Advice","REV","Revenue","R5530","HAC Temporary Accomodation","01-EMPLOYEES","Employees","01A","Direct employee expenses","4","Agency Staff - Pay","3201714","201206",28/09/2011 00:00:00,915.29,"31230","Employment & Recruitment Agencies","REDACTED DATA","MATRIX SCM LTD","2227962","http://opencorporates.com/companies/gb/2227962","918498476"
"London Borough of Redbridge","http://opendatacommunities.org/doc/london-borough-council/redbridge","4BMANGT&SUPP","Management & Support Services","4CTRANSPP&S","Transport Planning, Policy & Strategy","REV","Revenue","R7001","London Permit Scheme","01-EMPLOYEES","Employees","01A","Direct employee expenses","4","Agency Staff - Pay","3201714","201206",28/09/2011 00:00:00,914,"31230","Employment & Recruitment Agencies","REDACTED DATA","MATRIX SCM LTD","2227962","http://opencorporates.com/companies/gb/2227962","918498476"
"London Borough of Redbridge","http://opendatacommunities.org/doc/london-borough-council/redbridge","5BGFHOUSING","General Fund Housing","5CHOUMGTSUPP","Housing Management & Support Services","REV","Revenue","R5529","HAC Assessment","01-EMPLOYEES","Employees","01A","Direct employee expenses","4","Agency Staff - Pay","3201714","201206",28/09/2011 00:00:00,906.32,"31230","Employment & Recruitment Agencies","REDACTED DATA","MATRIX SCM LTD","2227962","http://opencorporates.com/companies/gb/2227962","918498476"
"London Borough of Redbridge","http://opendatacommunities.org/doc/london-borough-council/redbridge","5BGFHOUSING","General Fund Housing","5CHOUMGTSUPP","Housing Management & Support Services","REV","Revenue","R5529","HAC Assessment","01-EMPLOYEES","Employees","01A","Direct employee expenses","4","Agency Staff - Pay","3201714","201206",28/09/2011 00:00:00,906.32,"31230","Employment & Recruitment Agencies","REDACTED DATA","MATRIX SCM LTD","2227962","http://opencorporates.com/companies/gb/2227962","918498476"
"London Borough of Redbridge","http://opendatacommunities.org/doc/london-borough-council/redbridge","5BGFHOUSING","General Fund Housing","5CHOUMGTSUPP","Housing Management & Support Services","REV","Revenue","R5529","HAC Assessment","01-EMPLOYEES","Employees","01A","Direct employee expenses","4","Agency Staff - Pay","3201714","201206",28/09/2011 00:00:00,906.31,"31230","Employment & Recruitment Agencies","REDACTED DATA","MATRIX SCM LTD","2227962","http://opencorporates.com/companies/gb/2227962","918498476"
"London Borough of Redbridge","http://opendatacommunities.org/doc/london-borough-council/redbridge","1BOTHEROPI&E","Other Operating Income & Expenditure","1CTRADSURDEF","Trading Account Surpluses & Deficits","REV","Revenue","R9152","Financial Services","01-EMPLOYEES","Employees","01A","Direct employee expenses","4","Agency Staff - Pay","3201714","201206",28/09/2011 00:00:00,905.57,"31230","Employment & Recruitment Agencies","REDACTED DATA","MATRIX SCM LTD","2227962","http://opencorporates.com/companies/gb/2227962","918498476"
"London Borough of Redbridge","http://opendatacommunities.org/doc/london-borough-council/redbridge","5BGFHOUSING","General Fund Housing","5CHOUSBENADM","Housing Benefits Administration","REV","Revenue","R5771","Benefits Administration","01-EMPLOYEES","Employees","01A","Direct employee expenses","4","Agency Staff - Pay","3201714","201206",28/09/2011 00:00:00,904.08,"31230","Employment & Recruitment Agencies","REDACTED DATA","MATRIX SCM LTD","2227962","http://opencorporates.com/companies/gb/2227962","918498476"
"London Borough of Redbridge","http://opendatacommunities.org/doc/london-borough-council/redbridge","5BGFHOUSING","General Fund Housing","5CHOUSADVICE","Housing Advice","REV","Revenue","R5530","HAC Temporary Accomodation","01-EMPLOYEES","Employees","01A","Direct employee expenses","4","Agency Staff - Pay","3201714","201206",28/09/2011 00:00:00,900.37,"31230","Employment & Recruitment Agencies","REDACTED DATA","MATRIX SCM LTD","2227962","http://opencorporates.com/companies/gb/2227962","918498476"
"London Borough of Redbridge","http://opendatacommunities.org/doc/london-borough-council/redbridge","6BSOCIALSERV","Social Services","6COTHC&FSERV","Other Children's & Families' Services","REV","Revenue","R2168","CP and EI - No recourse to Public Funds","06-TRANSFER","Transfer Payments","06B","Social Services Clients","7055","Habitual Residents","60156012","201206",05/09/2011 00:00:00,900,"47846","Letting Agents","REDACTED DATA","FINEFAIR CONSULTANCY  LTD(NIGHTLY LETS)","4661895","http://opencorporates.com/companies/gb/4661895","809945391"
"London Borough of Redbridge","http://opendatacommunities.org/doc/london-borough-council/redbridge","2BPLAN&DEVEL","Planning & Development Services","2CCOMMDEVT","Community Development","REV","Revenue","R6528","LLPG - CMF","01-EMPLOYEES","Employees","01A","Direct employee expenses","4","Agency Staff - Pay","3201714","201206",28/09/2011 00:00:00,899.58,"31230","Employment & Recruitment Agencies","REDACTED DATA","MATRIX SCM LTD","2227962","http://opencorporates.com/companies/gb/2227962","918498476"
"London Borough of Redbridge","http://opendatacommunities.org/doc/london-borough-council/redbridge","1BOTHEROPI&E","Other Operating Income & Expenditure","1CTRADSURDEF","Trading Account Surpluses & Deficits","REV","Revenue","R9252","IT Services","01-EMPLOYEES","Employees","01A","Direct employee expenses","4","Agency Staff - Pay","3201714","201206",28/09/2011 00:00:00,894.77,"31230","Employment & Recruitment Agencies","REDACTED DATA","MATRIX SCM LTD","2227962","http://opencorporates.com/companies/gb/2227962","918498476"
"London Borough of Redbridge","http://opendatacommunities.org/doc/london-borough-council/redbridge","1BOTHEROPI&E","Other Operating Income & Expenditure","1CTRADSURDEF","Trading Account Surpluses & Deficits","REV","Revenue","R9252","IT Services","01-EMPLOYEES","Employees","01A","Direct employee expenses","4","Agency Staff - Pay","3201714","201206",28/09/2011 00:00:00,894.77,"31230","Employment & Recruitment Agencies","REDACTED DATA","MATRIX SCM LTD","2227962","http://opencorporates.com/companies/gb/2227962","918498476"
"London Borough of Redbridge","http://opendatacommunities.org/doc/london-borough-council/redbridge","5BGFHOUSING","General Fund Housing","5CHOUMGTSUPP","Housing Management & Support Services","REV","Revenue","R5529","HAC Assessment","01-EMPLOYEES","Employees","01A","Direct employee expenses","4","Agency Staff - Pay","3201714","201206",28/09/2011 00:00:00,894,"31230","Employment & Recruitment Agencies","REDACTED DATA","MATRIX SCM LTD","2227962","http://opencorporates.com/companies/gb/2227962","918498476"
"London Borough of Redbridge","http://opendatacommunities.org/doc/london-borough-council/redbridge","1BOTHEROPI&E","Other Operating Income & Expenditure","1CTRADSURDEF","Trading Account Surpluses & Deficits","REV","Revenue","R9152","Financial Services","01-EMPLOYEES","Employees","01A","Direct employee expenses","4","Agency Staff - Pay","3201714","201206",28/09/2011 00:00:00,893.41,"31230","Employment & Recruitment Agencies","REDACTED DATA","MATRIX SCM LTD","2227962","http://opencorporates.com/companies/gb/2227962","918498476"
"London Borough of Redbridge","http://opendatacommunities.org/doc/london-borough-council/redbridge","1BOTHEROPI&E","Other Operating Income & Expenditure","1CTRADSURDEF","Trading Account Surpluses & Deficits","REV","Revenue","R9252","IT Services","01-EMPLOYEES","Employees","01A","Direct employee expenses","4","Agency Staff - Pay","3201714","201206",28/09/2011 00:00:00,889.2,"31230","Employment & Recruitment Agencies","REDACTED DATA","MATRIX SCM LTD","2227962","http://opencorporates.com/companies/gb/2227962","918498476"
"London Borough of Redbridge","http://opendatacommunities.org/doc/london-borough-council/redbridge","6BSOCIALSERV","Social Services","6CCHILLOOKED","Children Looked After","REV","Revenue","R2176","Ray Lodge (N) - Integrated Team Social Care","01-EMPLOYEES","Employees","01B","Indirect employee expenses","2403","External Training","60157460","201206",20/09/2011 00:00:00,885,"25820","Disability & Special Needs - Services","REDACTED DATA","AME(ACCESS MADE EASY) DISABILITY CONSULTANTS LTD","7277685","http://opencorporates.com/companies/gb/7277685","792095795"
"London Borough of Redbridge","http://opendatacommunities.org/doc/london-borough-council/redbridge","4BMANGT&SUPP","Management & Support Services","4CTRANSPP&S","Transport Planning, Policy & Strategy","REV","Revenue","R7001","London Permit Scheme","01-EMPLOYEES","Employees","01A","Direct employee expenses","4","Agency Staff - Pay","3201714","201206",28/09/2011 00:00:00,880.77,"31230","Employment & Recruitment Agencies","REDACTED DATA","MATRIX SCM LTD","2227962","http://opencorporates.com/companies/gb/2227962","918498476"
"London Borough of Redbridge","http://opendatacommunities.org/doc/london-borough-council/redbridge","1BOTHEROPI&E","Other Operating Income & Expenditure","1CTRADSURDEF","Trading Account Surpluses & Deficits","REV","Revenue","R1430","Single Status","04-SUPPLIES","Supplies And Services","04E","Services","5754","Consultancy","60156884","201206",17/08/2011 00:00:00,880,"72460","Solicitors","REDACTED DATA","EVERATT & CO LLP T/AS PLEXUS LAW","OC329843","http://opencorporates.com/companies/gb/OC329843","109885339"
"London Borough of Redbridge","http://opendatacommunities.org/doc/london-borough-council/redbridge","4BMANGT&SUPP","Management & Support Services","4CTRANSPP&S","Transport Planning, Policy & Strategy","REV","Revenue","R7001","London Permit Scheme","01-EMPLOYEES","Employees","01A","Direct employee expenses","4","Agency Staff - Pay","3201714","201206",28/09/2011 00:00:00,878.08,"31230","Employment & Recruitment Agencies","REDACTED DATA","MATRIX SCM LTD","2227962","http://opencorporates.com/companies/gb/2227962","918498476"
"London Borough of Redbridge","http://opendatacommunities.org/doc/london-borough-council/redbridge","4BTRANSPORT","Transport Planning, Policy & Strategy","4CMANGT&SUPP","Management & Support Services","REV","Revenue","R7000","Highways Executive","01-EMPLOYEES","Employees","01A","Direct employee expenses","4","Agency Staff - Pay","3201714","201206",28/09/2011 00:00:00,877.16,"31230","Employment & Recruitment Agencies","REDACTED DATA","MATRIX SCM LTD","2227962","http://opencorporates.com/companies/gb/2227962","918498476"
"London Borough of Redbridge","http://opendatacommunities.org/doc/london-borough-council/redbridge","4BTRANSPORT","Transport Planning, Policy & Strategy","4CMANGT&SUPP","Management & Support Services","REV","Revenue","R7000","Highways Executive","01-EMPLOYEES","Employees","01A","Direct employee expenses","4","Agency Staff - Pay","3201714","201206",28/09/2011 00:00:00,876.12,"31230","Employment & Recruitment Agencies","REDACTED DATA","MATRIX SCM LTD","2227962","http://opencorporates.com/companies/gb/2227962","918498476"
"London Borough of Redbridge","http://opendatacommunities.org/doc/london-borough-council/redbridge","5BGFHOUSING","General Fund Housing","5CHOUMGTSUPP","Housing Management & Support Services","REV","Revenue","R5529","HAC Assessment","01-EMPLOYEES","Employees","01A","Direct employee expenses","4","Agency Staff - Pay","3201714","201206",28/09/2011 00:00:00,876.12,"31230","Employment & Recruitment Agencies","REDACTED DATA","MATRIX SCM LTD","2227962","http://opencorporates.com/companies/gb/2227962","918498476"
"London Borough of Redbridge","http://opendatacommunities.org/doc/london-borough-council/redbridge","5BGFHOUSING","General Fund Housing","5CHOUMGTSUPP","Housing Management & Support Services","REV","Revenue","R5511","Homelessness Grants","01-EMPLOYEES","Employees","01A","Direct employee expenses","4","Agency Staff - Pay","3201714","201206",28/09/2011 00:00:00,873.2,"31230","Employment & Recruitment Agencies","REDACTED DATA","MATRIX SCM LTD","2227962","http://opencorporates.com/companies/gb/2227962","918498476"
"London Borough of Redbridge","http://opendatacommunities.org/doc/london-borough-council/redbridge","5BGFHOUSING","General Fund Housing","5CHOUSADVICE","Housing Advice","REV","Revenue","R5533","Hylefords TA Refurbishment Project","01-EMPLOYEES","Employees","01A","Direct employee expenses","4","Agency Staff - Pay","3201714","201206",28/09/2011 00:00:00,870.45,"31230","Employment & Recruitment Agencies","REDACTED DATA","MATRIX SCM LTD","2227962","http://opencorporates.com/companies/gb/2227962","918498476"
"London Borough of Redbridge","http://opendatacommunities.org/doc/london-borough-council/redbridge","4BTRANSPORT","Transport Planning, Policy & Strategy","4CMANGT&SUPP","Management & Support Services","REV","Revenue","R7000","Highways Executive","01-EMPLOYEES","Employees","01A","Direct employee expenses","4","Agency Staff - Pay","3201714","201206",28/09/2011 00:00:00,870.16,"31230","Employment & Recruitment Agencies","REDACTED DATA","MATRIX SCM LTD","2227962","http://opencorporates.com/companies/gb/2227962","918498476"
"London Borough of Redbridge","http://opendatacommunities.org/doc/london-borough-council/redbridge","4BTRANSPORT","Transport Planning, Policy & Strategy","4CMANGT&SUPP","Management & Support Services","REV","Revenue","R7000","Highways Executive","01-EMPLOYEES","Employees","01A","Direct employee expenses","4","Agency Staff - Pay","3201714","201206",28/09/2011 00:00:00,867.28,"31230","Employment & Recruitment Agencies","REDACTED DATA","MATRIX SCM LTD","2227962","http://opencorporates.com/companies/gb/2227962","918498476"
"London Borough of Redbridge","http://opendatacommunities.org/doc/london-borough-council/redbridge","1BOTHEROPI&E","Other Operating Income & Expenditure","1CTRADSURDEF","Trading Account Surpluses & Deficits","REV","Revenue","R9252","IT Services","01-EMPLOYEES","Employees","01A","Direct employee expenses","4","Agency Staff - Pay","3201714","201206",28/09/2011 00:00:00,866.97,"31230","Employment & Recruitment Agencies","REDACTED DATA","MATRIX SCM LTD","2227962","http://opencorporates.com/companies/gb/2227962","918498476"
"London Borough of Redbridge","http://opendatacommunities.org/doc/london-borough-council/redbridge","2BPLAN&DEVEL","Planning & Development Services","2CCOMMDEVT","Community Development","REV","Revenue","R6528","LLPG - CMF","01-EMPLOYEES","Employees","01A","Direct employee expenses","4","Agency Staff - Pay","3201714","201206",28/09/2011 00:00:00,866.87,"31230","Employment & Recruitment Agencies","REDACTED DATA","MATRIX SCM LTD","2227962","http://opencorporates.com/companies/gb/2227962","918498476"
"London Borough of Redbridge","http://opendatacommunities.org/doc/london-borough-council/redbridge","6BADULTSOCIA","Adult Social Care","6COLDINCMENT","Older People (65 or over) incl. Older Mentally Ill","REV","Revenue","R4169","Intermediate Care","01-EMPLOYEES","Employees","01A","Direct employee expenses","4","Agency Staff - Pay","3201714","201206",28/09/2011 00:00:00,865.45,"31230","Employment & Recruitment Agencies","REDACTED DATA","MATRIX SCM LTD","2227962","http://opencorporates.com/companies/gb/2227962","918498476"
"London Borough of Redbridge","http://opendatacommunities.org/doc/london-borough-council/redbridge","6BADULTSOCIA","Adult Social Care","6COLDINCMENT","Older People (65 or over) incl. Older Mentally Ill","REV","Revenue","R4169","Intermediate Care","01-EMPLOYEES","Employees","01A","Direct employee expenses","4","Agency Staff - Pay","3201714","201206",28/09/2011 00:00:00,865.43,"31230","Employment & Recruitment Agencies","REDACTED DATA","MATRIX SCM LTD","2227962","http://opencorporates.com/companies/gb/2227962","918498476"
"London Borough of Redbridge","http://opendatacommunities.org/doc/london-borough-council/redbridge","5BGFHOUSING","General Fund Housing","5CHOUMGTSUPP","Housing Management & Support Services","REV","Revenue","R5511","Homelessness Grants","01-EMPLOYEES","Employees","01A","Direct employee expenses","4","Agency Staff - Pay","3201714","201206",28/09/2011 00:00:00,864,"31230","Employment & Recruitment Agencies","REDACTED DATA","MATRIX SCM LTD","2227962","http://opencorporates.com/companies/gb/2227962","918498476"
"London Borough of Redbridge","http://opendatacommunities.org/doc/london-borough-council/redbridge","4BMANGT&SUPP","Management & Support Services","4CTRANSPP&S","Transport Planning, Policy & Strategy","REV","Revenue","R7001","London Permit Scheme","01-EMPLOYEES","Employees","01A","Direct employee expenses","4","Agency Staff - Pay","3201714","201206",28/09/2011 00:00:00,862.59,"31230","Employment & Recruitment Agencies","REDACTED DATA","MATRIX SCM LTD","2227962","http://opencorporates.com/companies/gb/2227962","918498476"
"London Borough of Redbridge","http://opendatacommunities.org/doc/london-borough-council/redbridge","5BGFHOUSING","General Fund Housing","5CHOUMGTSUPP","Housing Management & Support Services","REV","Revenue","R5511","Homelessness Grants","01-EMPLOYEES","Employees","01A","Direct employee expenses","4","Agency Staff - Pay","3201714","201206",28/09/2011 00:00:00,861.3,"31230","Employment & Recruitment Agencies","REDACTED DATA","MATRIX SCM LTD","2227962","http://opencorporates.com/companies/gb/2227962","918498476"
"London Borough of Redbridge","http://opendatacommunities.org/doc/london-borough-council/redbridge","4BMANGT&SUPP","Management & Support Services","4CTRANSPP&S","Transport Planning, Policy & Strategy","REV","Revenue","R7001","London Permit Scheme","01-EMPLOYEES","Employees","01A","Direct employee expenses","4","Agency Staff - Pay","3201714","201206",28/09/2011 00:00:00,857.5,"31230","Employment & Recruitment Agencies","REDACTED DATA","MATRIX SCM LTD","2227962","http://opencorporates.com/companies/gb/2227962","918498476"
"London Borough of Redbridge","http://opendatacommunities.org/doc/london-borough-council/redbridge","6BSOCIALSERV","Social Services","6CCHILLOOKED","Children Looked After","REV","Revenue","R2171","Ray Lodge (W) - Integrated Team Social Care","01-EMPLOYEES","Employees","01A","Direct employee expenses","4","Agency Staff - Pay","3201714","201206",28/09/2011 00:00:00,850.04,"31230","Employment & Recruitment Agencies","REDACTED DATA","MATRIX SCM LTD","2227962","http://opencorporates.com/companies/gb/2227962","918498476"
"London Borough of Redbridge","http://opendatacommunities.org/doc/london-borough-council/redbridge","6BSOCIALSERV","Social Services","6CCHILLOOKED","Children Looked After","REV","Revenue","R2158","Albert Road - Integrated Team Social Care","01-EMPLOYEES","Employees","01A","Direct employee expenses","4","Agency Staff - Pay","3201714","201206",28/09/2011 00:00:00,845.36,"31230","Employment & Recruitment Agencies","REDACTED DATA","MATRIX SCM LTD","2227962","http://opencorporates.com/companies/gb/2227962","918498476"
"London Borough of Redbridge","http://opendatacommunities.org/doc/london-borough-council/redbridge","6BSOCIALSERV","Social Services","6CCHILLOOKED","Children Looked After","REV","Revenue","R2166","CP and EI - Child Protection Assmt Team Soc Care","01-EMPLOYEES","Employees","01A","Direct employee expenses","4","Agency Staff - Pay","3201714","201206",28/09/2011 00:00:00,840.84,"31230","Employment & Recruitment Agencies","REDACTED DATA","MATRIX SCM LTD","2227962","http://opencorporates.com/companies/gb/2227962","918498476"
"London Borough of Redbridge","http://opendatacommunities.org/doc/london-borough-council/redbridge","6BSOCIALSERV","Social Services","6CCHILLOOKED","Children Looked After","REV","Revenue","R2166","CP and EI - Child Protection Assmt Team Soc Care","01-EMPLOYEES","Employees","01A","Direct employee expenses","4","Agency Staff - Pay","3201714","201206",28/09/2011 00:00:00,840.84,"31230","Employment & Recruitment Agencies","REDACTED DATA","MATRIX SCM LTD","2227962","http://opencorporates.com/companies/gb/2227962","918498476"
"London Borough of Redbridge","http://opendatacommunities.org/doc/london-borough-council/redbridge","6BSOCIALSERV","Social Services","6CCHILLOOKED","Children Looked After","REV","Revenue","R2166","CP and EI - Child Protection Assmt Team Soc Care","01-EMPLOYEES","Employees","01A","Direct employee expenses","4","Agency Staff - Pay","3201714","201206",28/09/2011 00:00:00,840.84,"31230","Employment & Recruitment Agencies","REDACTED DATA","MATRIX SCM LTD","2227962","http://opencorporates.com/companies/gb/2227962","918498476"
"London Borough of Redbridge","http://opendatacommunities.org/doc/london-borough-council/redbridge","6BSOCIALSERV","Social Services","6CCHILLOOKED","Children Looked After","REV","Revenue","R2176","Ray Lodge (N) - Integrated Team Social Care","01-EMPLOYEES","Employees","01A","Direct employee expenses","4","Agency Staff - Pay","3201714","201206",28/09/2011 00:00:00,840.56,"31230","Employment & Recruitment Agencies","REDACTED DATA","MATRIX SCM LTD","2227962","http://opencorporates.com/companies/gb/2227962","918498476"
"London Borough of Redbridge","http://opendatacommunities.org/doc/london-borough-council/redbridge","6BSOCIALSERV","Social Services","6CCHILLOOKED","Children Looked After","REV","Revenue","R2181","CLAFH - Increased Social Worker Establishment","01-EMPLOYEES","Employees","01A","Direct employee expenses","4","Agency Staff - Pay","3201714","201206",28/09/2011 00:00:00,839.72,"31230","Employment & Recruitment Agencies","REDACTED DATA","MATRIX SCM LTD","2227962","http://opencorporates.com/companies/gb/2227962","918498476"
"London Borough of Redbridge","http://opendatacommunities.org/doc/london-borough-council/redbridge","6BSOCIALSERV","Social Services","6COTHC&FSERV","Other Children's & Families' Services","REV","Revenue","R2123","CLAFH - 13+ Team 1","01-EMPLOYEES","Employees","01A","Direct employee expenses","4","Agency Staff - Pay","3201714","201206",28/09/2011 00:00:00,831.04,"31230","Employment & Recruitment Agencies","REDACTED DATA","MATRIX SCM LTD","2227962","http://opencorporates.com/companies/gb/2227962","918498476"
"London Borough of Redbridge","http://opendatacommunities.org/doc/london-borough-council/redbridge","6BSOCIALSERV","Social Services","6CCHILLOOKED","Children Looked After","REV","Revenue","R2176","Ray Lodge (N) - Integrated Team Social Care","01-EMPLOYEES","Employees","01A","Direct employee expenses","4","Agency Staff - Pay","3201714","201206",28/09/2011 00:00:00,830.48,"31230","Employment & Recruitment Agencies","REDACTED DATA","MATRIX SCM LTD","2227962","http://opencorporates.com/companies/gb/2227962","918498476"
"London Borough of Redbridge","http://opendatacommunities.org/doc/london-borough-council/redbridge","5BGFHOUSING","General Fund Housing","5CHOUMGTSUPP","Housing Management & Support Services","REV","Revenue","R5529","HAC Assessment","01-EMPLOYEES","Employees","01A","Direct employee expenses","4","Agency Staff - Pay","3201714","201206",28/09/2011 00:00:00,828.44,"31230","Employment & Recruitment Agencies","REDACTED DATA","MATRIX SCM LTD","2227962","http://opencorporates.com/companies/gb/2227962","918498476"
"London Borough of Redbridge","http://opendatacommunities.org/doc/london-borough-council/redbridge","1BOTHEROPI&E","Other Operating Income & Expenditure","1CTRADSURDEF","Trading Account Surpluses & Deficits","REV","Revenue","R9353","Advisory Team","01-EMPLOYEES","Employees","01A","Direct employee expenses","4","Agency Staff - Pay","3201714","201206",28/09/2011 00:00:00,825.91,"31230","Employment & Recruitment Agencies","REDACTED DATA","MATRIX SCM LTD","2227962","http://opencorporates.com/companies/gb/2227962","918498476"
"London Borough of Redbridge","http://opendatacommunities.org/doc/london-borough-council/redbridge","6BSOCIALSERV","Social Services","6COTHC&FSERV","Other Children's & Families' Services","REV","Revenue","R2125","CLAFH - 13+ Team 2","01-EMPLOYEES","Employees","01A","Direct employee expenses","4","Agency Staff - Pay","3201714","201206",28/09/2011 00:00:00,823.96,"31230","Employment & Recruitment Agencies","REDACTED DATA","MATRIX SCM LTD","2227962","http://opencorporates.com/companies/gb/2227962","918498476"
"London Borough of Redbridge","http://opendatacommunities.org/doc/london-borough-council/redbridge","1BOTHEROPI&E","Other Operating Income & Expenditure","1CTRADSURDEF","Trading Account Surpluses & Deficits","REV","Revenue","R9252","IT Services","01-EMPLOYEES","Employees","01A","Direct employee expenses","4","Agency Staff - Pay","3201714","201206",28/09/2011 00:00:00,823.08,"31230","Employment & Recruitment Agencies","REDACTED DATA","MATRIX SCM LTD","2227962","http://opencorporates.com/companies/gb/2227962","918498476"
"London Borough of Redbridge","http://opendatacommunities.org/doc/london-borough-council/redbridge","6BSOCIALSERV","Social Services","6COTHC&FSERV","Other Children's & Families' Services","REV","Revenue","R2125","CLAFH - 13+ Team 2","01-EMPLOYEES","Employees","01A","Direct employee expenses","4","Agency Staff - Pay","3201714","201206",28/09/2011 00:00:00,819.16,"31230","Employment & Recruitment Agencies","REDACTED DATA","MATRIX SCM LTD","2227962","http://opencorporates.com/companies/gb/2227962","918498476"
"London Borough of Redbridge","http://opendatacommunities.org/doc/london-borough-council/redbridge","6BADULTSOCIA","Adult Social Care","6COLDINCMENT","Older People (65 or over) incl. Older Mentally Ill","REV","Revenue","R4169","Intermediate Care","01-EMPLOYEES","Employees","01A","Direct employee expenses","4","Agency Staff - Pay","3201714","201206",28/09/2011 00:00:00,818.76,"31230","Employment & Recruitment Agencies","REDACTED DATA","MATRIX SCM LTD","2227962","http://opencorporates.com/companies/gb/2227962","918498476"
"London Borough of Redbridge","http://opendatacommunities.org/doc/london-borough-council/redbridge","6BADULTSOCIA","Adult Social Care","6COLDINCMENT","Older People (65 or over) incl. Older Mentally Ill","REV","Revenue","R4169","Intermediate Care","01-EMPLOYEES","Employees","01A","Direct employee expenses","4","Agency Staff - Pay","3201714","201206",28/09/2011 00:00:00,818.76,"31230","Employment & Recruitment Agencies","REDACTED DATA","MATRIX SCM LTD","2227962","http://opencorporates.com/companies/gb/2227962","918498476"
"London Borough of Redbridge","http://opendatacommunities.org/doc/london-borough-council/redbridge","6BADULTSOCIA","Adult Social Care","6COLDINCMENT","Older People (65 or over) incl. Older Mentally Ill","REV","Revenue","R4169","Intermediate Care","01-EMPLOYEES","Employees","01A","Direct employee expenses","4","Agency Staff - Pay","3201714","201206",28/09/2011 00:00:00,818.76,"31230","Employment & Recruitment Agencies","REDACTED DATA","MATRIX SCM LTD","2227962","http://opencorporates.com/companies/gb/2227962","918498476"
"London Borough of Redbridge","http://opendatacommunities.org/doc/london-borough-council/redbridge","6BADULTSOCIA","Adult Social Care","6COLDINCMENT","Older People (65 or over) incl. Older Mentally Ill","REV","Revenue","R4169","Intermediate Care","01-EMPLOYEES","Employees","01A","Direct employee expenses","4","Agency Staff - Pay","3201714","201206",28/09/2011 00:00:00,818.76,"31230","Employment & Recruitment Agencies","REDACTED DATA","MATRIX SCM LTD","2227962","http://opencorporates.com/companies/gb/2227962","918498476"
"London Borough of Redbridge","http://opendatacommunities.org/doc/london-borough-council/redbridge","5BGFHOUSING","General Fund Housing","5CHOUSADVICE","Housing Advice","REV","Revenue","R5530","HAC Temporary Accomodation","01-EMPLOYEES","Employees","01A","Direct employee expenses","4","Agency Staff - Pay","3201714","201206",28/09/2011 00:00:00,817.9,"31230","Employment & Recruitment Agencies","REDACTED DATA","MATRIX SCM LTD","2227962","http://opencorporates.com/companies/gb/2227962","918498476"
"London Borough of Redbridge","http://opendatacommunities.org/doc/london-borough-council/redbridge","6BSOCIALSERV","Social Services","6CCHILLOOKED","Children Looked After","REV","Revenue","R2166","CP and EI - Child Protection Assmt Team Soc Care","01-EMPLOYEES","Employees","01A","Direct employee expenses","4","Agency Staff - Pay","3201714","201206",28/09/2011 00:00:00,816.76,"31230","Employment & Recruitment Agencies","REDACTED DATA","MATRIX SCM LTD","2227962","http://opencorporates.com/companies/gb/2227962","918498476"
"London Borough of Redbridge","http://opendatacommunities.org/doc/london-borough-council/redbridge","6BSOCIALSERV","Social Services","6CCHILLOOKED","Children Looked After","REV","Revenue","R2166","CP and EI - Child Protection Assmt Team Soc Care","01-EMPLOYEES","Employees","01A","Direct employee expenses","4","Agency Staff - Pay","3201714","201206",28/09/2011 00:00:00,816.76,"31230","Employment & Recruitment Agencies","REDACTED DATA","MATRIX SCM LTD","2227962","http://opencorporates.com/companies/gb/2227962","918498476"
"London Borough of Redbridge","http://opendatacommunities.org/doc/london-borough-council/redbridge","6BSOCIALSERV","Social Services","6COTHC&FSERV","Other Children's & Families' Services","REV","Revenue","R2167","CP and EI - Increased Social Worker Establishment","01-EMPLOYEES","Employees","01A","Direct employee expenses","9","Agency Staff Sickness Cover","3201714","201206",28/09/2011 00:00:00,816.76,"31230","Employment & Recruitment Agencies","REDACTED DATA","MATRIX SCM LTD","2227962","http://opencorporates.com/companies/gb/2227962","918498476"
"London Borough of Redbridge","http://opendatacommunities.org/doc/london-borough-council/redbridge","2BPLAN&DEVEL","Planning & Development Services","2CCOMMDEVT","Community Development","REV","Revenue","R6528","LLPG - CMF","01-EMPLOYEES","Employees","01A","Direct employee expenses","4","Agency Staff - Pay","3201714","201206",28/09/2011 00:00:00,810.26,"31230","Employment & Recruitment Agencies","REDACTED DATA","MATRIX SCM LTD","2227962","http://opencorporates.com/companies/gb/2227962","918498476"
"London Borough of Redbridge","http://opendatacommunities.org/doc/london-borough-council/redbridge","2BPLAN&DEVEL","Planning & Development Services","2CCOMMDEVT","Community Development","REV","Revenue","R6528","LLPG - CMF","01-EMPLOYEES","Employees","01A","Direct employee expenses","4","Agency Staff - Pay","3201714","201206",28/09/2011 00:00:00,807.5,"31230","Employment & Recruitment Agencies","REDACTED DATA","MATRIX SCM LTD","2227962","http://opencorporates.com/companies/gb/2227962","918498476"
"London Borough of Redbridge","http://opendatacommunities.org/doc/london-borough-council/redbridge","6BADULTSOCIA","Adult Social Care","6COLDINCMENT","Older People (65 or over) incl. Older Mentally Ill","REV","Revenue","R4136","Prevention and Well Being Team","01-EMPLOYEES","Employees","01A","Direct employee expenses","9","Agency Staff Sickness Cover","3201714","201206",28/09/2011 00:00:00,806.32,"31230","Employment & Recruitment Agencies","REDACTED DATA","MATRIX SCM LTD","2227962","http://opencorporates.com/companies/gb/2227962","918498476"
"London Borough of Redbridge","http://opendatacommunities.org/doc/london-borough-council/redbridge","4BTRANSPORT","Transport Planning, Policy & Strategy","4CMANGT&SUPP","Management & Support Services","REV","Revenue","R7000","Highways Executive","01-EMPLOYEES","Employees","01A","Direct employee expenses","4","Agency Staff - Pay","3201714","201206",28/09/2011 00:00:00,804.26,"31230","Employment & Recruitment Agencies","REDACTED DATA","MATRIX SCM LTD","2227962","http://opencorporates.com/companies/gb/2227962","918498476"
"London Borough of Redbridge","http://opendatacommunities.org/doc/london-borough-council/redbridge","5BGFHOUSING","General Fund Housing","5CHOUSADVICE","Housing Advice","REV","Revenue","R5530","HAC Temporary Accomodation","01-EMPLOYEES","Employees","01A","Direct employee expenses","4","Agency Staff - Pay","3201714","201206",28/09/2011 00:00:00,803.03,"31230","Employment & Recruitment Agencies","REDACTED DATA","MATRIX SCM LTD","2227962","http://opencorporates.com/companies/gb/2227962","918498476"
"London Borough of Redbridge","http://opendatacommunities.org/doc/london-borough-council/redbridge","6BSOCIALSERV","Social Services","6CCHILLOOKED","Children Looked After","REV","Revenue","R2140","CQ and F - Safeguarding and Care Planning Soc Care","01-EMPLOYEES","Employees","01A","Direct employee expenses","4","Agency Staff - Pay","60155846","201206",31/08/2011 00:00:00,800,"45255","Institutes - Professional","REDACTED DATA","CATHIE PATTISON","1243489947K","http://opencorporates.com/companies/gb/1243489947K","914644131"
"London Borough of Redbridge","http://opendatacommunities.org/doc/london-borough-council/redbridge","5BGFHOUSING","General Fund Housing","5CHOUSADVICE","Housing Advice","REV","Revenue","R5530","HAC Temporary Accomodation","01-EMPLOYEES","Employees","01A","Direct employee expenses","4","Agency Staff - Pay","3201714","201206",28/09/2011 00:00:00,799.15,"31230","Employment & Recruitment Agencies","REDACTED DATA","MATRIX SCM LTD","2227962","http://opencorporates.com/companies/gb/2227962","918498476"
"London Borough of Redbridge","http://opendatacommunities.org/doc/london-borough-council/redbridge","1BOTHEROPI&E","Other Operating Income & Expenditure","1CTRADSURDEF","Trading Account Surpluses & Deficits","REV","Revenue","R1430","Single Status","01-EMPLOYEES","Employees","01A","Direct employee expenses","4","Agency Staff - Pay","3201714","201206",28/09/2011 00:00:00,797.76,"31230","Employment & Recruitment Agencies","REDACTED DATA","MATRIX SCM LTD","2227962","http://opencorporates.com/companies/gb/2227962","918498476"
"London Borough of Redbridge","http://opendatacommunities.org/doc/london-borough-council/redbridge","5BGFHOUSING","General Fund Housing","5CHOUSADVICE","Housing Advice","REV","Revenue","R5533","Hylefords TA Refurbishment Project","01-EMPLOYEES","Employees","01A","Direct employee expenses","4","Agency Staff - Pay","3201714","201206",28/09/2011 00:00:00,796.84,"31230","Employment & Recruitment Agencies","REDACTED DATA","MATRIX SCM LTD","2227962","http://opencorporates.com/companies/gb/2227962","918498476"
"London Borough of Redbridge","http://opendatacommunities.org/doc/london-borough-council/redbridge","1BOTHEROPI&E","Other Operating Income & Expenditure","1CTRADSURDEF","Trading Account Surpluses & Deficits","REV","Revenue","R9252","IT Services","01-EMPLOYEES","Employees","01A","Direct employee expenses","4","Agency Staff - Pay","3201714","201206",28/09/2011 00:00:00,794.89,"31230","Employment & Recruitment Agencies","REDACTED DATA","MATRIX SCM LTD","2227962","http://opencorporates.com/companies/gb/2227962","918498476"
"London Borough of Redbridge","http://opendatacommunities.org/doc/london-borough-council/redbridge","5BGFHOUSING","General Fund Housing","5CHOUSADVICE","Housing Advice","REV","Revenue","R5530","HAC Temporary Accomodation","01-EMPLOYEES","Employees","01A","Direct employee expenses","4","Agency Staff - Pay","3201714","201206",28/09/2011 00:00:00,778.18,"31230","Employment & Recruitment Agencies","REDACTED DATA","MATRIX SCM LTD","2227962","http://opencorporates.com/companies/gb/2227962","918498476"
"London Borough of Redbridge","http://opendatacommunities.org/doc/london-borough-council/redbridge","3BNONSCHFUND","Non-School Funding","3CNONSCH","Non Schools","REV","Revenue","R3938","Orchard/Ray Lodge CC","01-EMPLOYEES","Employees","01A","Direct employee expenses","4","Agency Staff - Pay","3201714","201206",28/09/2011 00:00:00,774.38,"31230","Employment & Recruitment Agencies","REDACTED DATA","MATRIX SCM LTD","2227962","http://opencorporates.com/companies/gb/2227962","918498476"
"London Borough of Redbridge","http://opendatacommunities.org/doc/london-borough-council/redbridge","3BNONSCHFUND","Non-School Funding","3CNONSCH","Non Schools","REV","Revenue","R3938","Orchard/Ray Lodge CC","01-EMPLOYEES","Employees","01A","Direct employee expenses","4","Agency Staff - Pay","3201714","201206",28/09/2011 00:00:00,774.37,"31230","Employment & Recruitment Agencies","REDACTED DATA","MATRIX SCM LTD","2227962","http://opencorporates.com/companies/gb/2227962","918498476"
"London Borough of Redbridge","http://opendatacommunities.org/doc/london-borough-council/redbridge","3BNONSCHFUND","Non-School Funding","3CNONSCH","Non Schools","REV","Revenue","R3938","Orchard/Ray Lodge CC","01-EMPLOYEES","Employees","01A","Direct employee expenses","4","Agency Staff - Pay","3201714","201206",28/09/2011 00:00:00,774.37,"31230","Employment & Recruitment Agencies","REDACTED DATA","MATRIX SCM LTD","2227962","http://opencorporates.com/companies/gb/2227962","918498476"
"London Borough of Redbridge","http://opendatacommunities.org/doc/london-borough-council/redbridge","2BPLAN&DEVEL","Planning & Development Services","2CCOMMDEVT","Community Development","REV","Revenue","R6528","LLPG - CMF","01-EMPLOYEES","Employees","01A","Direct employee expenses","4","Agency Staff - Pay","3201714","201206",28/09/2011 00:00:00,771.98,"31230","Employment & Recruitment Agencies","REDACTED DATA","MATRIX SCM LTD","2227962","http://opencorporates.com/companies/gb/2227962","918498476"
"London Borough of Redbridge","http://opendatacommunities.org/doc/london-borough-council/redbridge","1BOTHEROPI&E","Other Operating Income & Expenditure","1CTRADSURDEF","Trading Account Surpluses & Deficits","REV","Revenue","R9152","Financial Services","01-EMPLOYEES","Employees","01A","Direct employee expenses","4","Agency Staff - Pay","3201714","201206",28/09/2011 00:00:00,771.85,"31230","Employment & Recruitment Agencies","REDACTED DATA","MATRIX SCM LTD","2227962","http://opencorporates.com/companies/gb/2227962","918498476"
"London Borough of Redbridge","http://opendatacommunities.org/doc/london-borough-council/redbridge","5BGFHOUSING","General Fund Housing","5CHOUMGTSUPP","Housing Management & Support Services","REV","Revenue","R5529","HAC Assessment","01-EMPLOYEES","Employees","01A","Direct employee expenses","4","Agency Staff - Pay","3201714","201206",28/09/2011 00:00:00,768.84,"31230","Employment & Recruitment Agencies","REDACTED DATA","MATRIX SCM LTD","2227962","http://opencorporates.com/companies/gb/2227962","918498476"
"London Borough of Redbridge","http://opendatacommunities.org/doc/london-borough-council/redbridge","4BTRANSPORT","Transport Planning, Policy & Strategy","4CMANGT&SUPP","Management & Support Services","REV","Revenue","R7000","Highways Executive","02-PREMISES","Premises","02A","Repairs, alteration and maintenance of buildings","3026","Minor Maintenance","60156806","201206",07/09/2011 00:00:00,768.6,"92358","Road Marking and Surfacing Equipment and Material Mnfrs","REDACTED DATA","MEON MARKETING LLP","OC358418","http://opencorporates.com/companies/gb/OC358418","109161394"
"London Borough of Redbridge","http://opendatacommunities.org/doc/london-borough-council/redbridge","4BMANGT&SUPP","Management & Support Services","4CTRANSPP&S","Transport Planning, Policy & Strategy","REV","Revenue","R7001","London Permit Scheme","01-EMPLOYEES","Employees","01A","Direct employee expenses","4","Agency Staff - Pay","3201714","201206",28/09/2011 00:00:00,764,"31230","Employment & Recruitment Agencies","REDACTED DATA","MATRIX SCM LTD","2227962","http://opencorporates.com/companies/gb/2227962","918498476"
"London Borough of Redbridge","http://opendatacommunities.org/doc/london-borough-council/redbridge","5BGFHOUSING","General Fund Housing","5CHOUSADVICE","Housing Advice","REV","Revenue","R5530","HAC Temporary Accomodation","01-EMPLOYEES","Employees","01A","Direct employee expenses","4","Agency Staff - Pay","3201714","201206",28/09/2011 00:00:00,763.36,"31230","Employment & Recruitment Agencies","REDACTED DATA","MATRIX SCM LTD","2227962","http://opencorporates.com/companies/gb/2227962","918498476"
"London Borough of Redbridge","http://opendatacommunities.org/doc/london-borough-council/redbridge","1BOTHEROPI&E","Other Operating Income & Expenditure","1CTRADSURDEF","Trading Account Surpluses & Deficits","REV","Revenue","R9252","IT Services","01-EMPLOYEES","Employees","01A","Direct employee expenses","4","Agency Staff - Pay","3199174","201206",12/09/2011 00:00:00,762.16,"31230","Employment & Recruitment Agencies","REDACTED DATA","ADECCO UK LIMITED","",,"232347975"
"London Borough of Redbridge","http://opendatacommunities.org/doc/london-borough-council/redbridge","1BOTHEROPI&E","Other Operating Income & Expenditure","1CTRADSURDEF","Trading Account Surpluses & Deficits","REV","Revenue","R9351","Litigation Team","01-EMPLOYEES","Employees","01A","Direct employee expenses","4","Agency Staff - Pay","3201714","201206",28/09/2011 00:00:00,760.39,"31230","Employment & Recruitment Agencies","REDACTED DATA","MATRIX SCM LTD","2227962","http://opencorporates.com/companies/gb/2227962","918498476"
"London Borough of Redbridge","http://opendatacommunities.org/doc/london-borough-council/redbridge","5BGFHOUSING","General Fund Housing","5CHOUSADVICE","Housing Advice","REV","Revenue","R5533","Hylefords TA Refurbishment Project","01-EMPLOYEES","Employees","01A","Direct employee expenses","4","Agency Staff - Pay","3201714","201206",28/09/2011 00:00:00,755.52,"31230","Employment & Recruitment Agencies","REDACTED DATA","MATRIX SCM LTD","2227962","http://opencorporates.com/companies/gb/2227962","918498476"
"London Borough of Redbridge","http://opendatacommunities.org/doc/london-borough-council/redbridge","1BOTHEROPI&E","Other Operating Income & Expenditure","1CTRADSURDEF","Trading Account Surpluses & Deficits","REV","Revenue","R9252","IT Services","01-EMPLOYEES","Employees","01A","Direct employee expenses","4","Agency Staff - Pay","3199174","201206",12/09/2011 00:00:00,753.48,"31230","Employment & Recruitment Agencies","REDACTED DATA","ADECCO UK LIMITED","",,"232347975"
"London Borough of Redbridge","http://opendatacommunities.org/doc/london-borough-council/redbridge","6BADULTSOCIA","Adult Social Care","6COLDINCMENT","Older People (65 or over) incl. Older Mentally Ill","REV","Revenue","R4169","Intermediate Care","01-EMPLOYEES","Employees","01A","Direct employee expenses","4","Agency Staff - Pay","3201714","201206",28/09/2011 00:00:00,748.48,"31230","Employment & Recruitment Agencies","REDACTED DATA","MATRIX SCM LTD","2227962","http://opencorporates.com/companies/gb/2227962","918498476"
"London Borough of Redbridge","http://opendatacommunities.org/doc/london-borough-council/redbridge","1BOTHEROPI&E","Other Operating Income & Expenditure","1CTRADSURDEF","Trading Account Surpluses & Deficits","REV","Revenue","R9252","IT Services","01-EMPLOYEES","Employees","01A","Direct employee expenses","4","Agency Staff - Pay","3201714","201206",28/09/2011 00:00:00,733.6,"31230","Employment & Recruitment Agencies","REDACTED DATA","MATRIX SCM LTD","2227962","http://opencorporates.com/companies/gb/2227962","918498476"
"London Borough of Redbridge","http://opendatacommunities.org/doc/london-borough-council/redbridge","5BGFHOUSING","General Fund Housing","5CHOUMGTSUPP","Housing Management & Support Services","REV","Revenue","R5529","HAC Assessment","01-EMPLOYEES","Employees","01A","Direct employee expenses","4","Agency Staff - Pay","3201714","201206",28/09/2011 00:00:00,733.33,"31230","Employment & Recruitment Agencies","REDACTED DATA","MATRIX SCM LTD","2227962","http://opencorporates.com/companies/gb/2227962","918498476"
"London Borough of Redbridge","http://opendatacommunities.org/doc/london-borough-council/redbridge","1BOTHEROPI&E","Other Operating Income & Expenditure","1CTRADSURDEF","Trading Account Surpluses & Deficits","REV","Revenue","R9353","Advisory Team","01-EMPLOYEES","Employees","01A","Direct employee expenses","4","Agency Staff - Pay","3201714","201206",28/09/2011 00:00:00,731.6,"31230","Employment & Recruitment Agencies","REDACTED DATA","MATRIX SCM LTD","2227962","http://opencorporates.com/companies/gb/2227962","918498476"
"London Borough of Redbridge","http://opendatacommunities.org/doc/london-borough-council/redbridge","5BGFHOUSING","General Fund Housing","5CHOUMGTSUPP","Housing Management & Support Services","REV","Revenue","R5529","HAC Assessment","01-EMPLOYEES","Employees","01A","Direct employee expenses","4","Agency Staff - Pay","3201714","201206",28/09/2011 00:00:00,722.37,"31230","Employment & Recruitment Agencies","REDACTED DATA","MATRIX SCM LTD","2227962","http://opencorporates.com/companies/gb/2227962","918498476"
"London Borough of Redbridge","http://opendatacommunities.org/doc/london-borough-council/redbridge","6BSOCIALSERV","Social Services","6CCHILLOOKED","Children Looked After","REV","Revenue","R2171","Ray Lodge (W) - Integrated Team Social Care","01-EMPLOYEES","Employees","01A","Direct employee expenses","4","Agency Staff - Pay","3201714","201206",28/09/2011 00:00:00,714,"31230","Employment & Recruitment Agencies","REDACTED DATA","MATRIX SCM LTD","2227962","http://opencorporates.com/companies/gb/2227962","918498476"
"London Borough of Redbridge","http://opendatacommunities.org/doc/london-borough-council/redbridge","2BPLAN&DEVEL","Planning & Development Services","2CCOMMDEVT","Community Development","REV","Revenue","R6527","Information Management Team.","01-EMPLOYEES","Employees","01A","Direct employee expenses","4","Agency Staff - Pay","3201714","201206",28/09/2011 00:00:00,712.5,"31230","Employment & Recruitment Agencies","REDACTED DATA","MATRIX SCM LTD","2227962","http://opencorporates.com/companies/gb/2227962","918498476"
"London Borough of Redbridge","http://opendatacommunities.org/doc/london-borough-council/redbridge","2BPLAN&DEVEL","Planning & Development Services","2CCOMMDEVT","Community Development","REV","Revenue","R6527","Information Management Team.","01-EMPLOYEES","Employees","01A","Direct employee expenses","4","Agency Staff - Pay","3201714","201206",28/09/2011 00:00:00,712.5,"31230","Employment & Recruitment Agencies","REDACTED DATA","MATRIX SCM LTD","2227962","http://opencorporates.com/companies/gb/2227962","918498476"
"London Borough of Redbridge","http://opendatacommunities.org/doc/london-borough-council/redbridge","3BNONSCHFUND","Non-School Funding","3CNONSCH","Non Schools","REV","Revenue","R2039","West Childrens Centre","01-EMPLOYEES","Employees","01A","Direct employee expenses","4","Agency Staff - Pay","3201714","201206",28/09/2011 00:00:00,712.1,"31230","Employment & Recruitment Agencies","REDACTED DATA","MATRIX SCM LTD","2227962","http://opencorporates.com/companies/gb/2227962","918498476"
"London Borough of Redbridge","http://opendatacommunities.org/doc/london-borough-council/redbridge","3BNONSCHFUND","Non-School Funding","3CNONSCH","Non Schools","REV","Revenue","R2039","West Childrens Centre","01-EMPLOYEES","Employees","01A","Direct employee expenses","4","Agency Staff - Pay","3201714","201206",28/09/2011 00:00:00,712.08,"31230","Employment & Recruitment Agencies","REDACTED DATA","MATRIX SCM LTD","2227962","http://opencorporates.com/companies/gb/2227962","918498476"
"London Borough of Redbridge","http://opendatacommunities.org/doc/london-borough-council/redbridge","3BNONSCHFUND","Non-School Funding","3CNONSCH","Non Schools","REV","Revenue","R2039","West Childrens Centre","01-EMPLOYEES","Employees","01A","Direct employee expenses","4","Agency Staff - Pay","3201714","201206",28/09/2011 00:00:00,712.08,"31230","Employment & Recruitment Agencies","REDACTED DATA","MATRIX SCM LTD","2227962","http://opencorporates.com/companies/gb/2227962","918498476"
"London Borough of Redbridge","http://opendatacommunities.org/doc/london-borough-council/redbridge","3BNONSCHFUND","Non-School Funding","3CNONSCH","Non Schools","REV","Revenue","R2039","West Childrens Centre","01-EMPLOYEES","Employees","01A","Direct employee expenses","4","Agency Staff - Pay","3201714","201206",28/09/2011 00:00:00,712.08,"31230","Employment & Recruitment Agencies","REDACTED DATA","MATRIX SCM LTD","2227962","http://opencorporates.com/companies/gb/2227962","918498476"
"London Borough of Redbridge","http://opendatacommunities.org/doc/london-borough-council/redbridge","5BGFHOUSING","General Fund Housing","5CHOUSADVICE","Housing Advice","REV","Revenue","R5533","Hylefords TA Refurbishment Project","01-EMPLOYEES","Employees","01A","Direct employee expenses","4","Agency Staff - Pay","3201714","201206",28/09/2011 00:00:00,708.3,"31230","Employment & Recruitment Agencies","REDACTED DATA","MATRIX SCM LTD","2227962","http://opencorporates.com/companies/gb/2227962","918498476"
"London Borough of Redbridge","http://opendatacommunities.org/doc/london-borough-council/redbridge","1BOTHEROPI&E","Other Operating Income & Expenditure","1CTRADSURDEF","Trading Account Surpluses & Deficits","REV","Revenue","R9152","Financial Services","01-EMPLOYEES","Employees","01A","Direct employee expenses","4","Agency Staff - Pay","3201714","201206",28/09/2011 00:00:00,705.9,"31230","Employment & Recruitment Agencies","REDACTED DATA","MATRIX SCM LTD","2227962","http://opencorporates.com/companies/gb/2227962","918498476"
"London Borough of Redbridge","http://opendatacommunities.org/doc/london-borough-council/redbridge","3BNONSCHFUND","Non-School Funding","3CNONSCH","Non Schools","REV","Revenue","R3938","Orchard/Ray Lodge CC","01-EMPLOYEES","Employees","01A","Direct employee expenses","4","Agency Staff - Pay","3201714","201206",28/09/2011 00:00:00,703.46,"31230","Employment & Recruitment Agencies","REDACTED DATA","MATRIX SCM LTD","2227962","http://opencorporates.com/companies/gb/2227962","918498476"
"London Borough of Redbridge","http://opendatacommunities.org/doc/london-borough-council/redbridge","1BOTHEROPI&E","Other Operating Income & Expenditure","1CTRADSURDEF","Trading Account Surpluses & Deficits","REV","Revenue","R9354","Legal Disbursements","04-SUPPLIES","Supplies And Services","04H","Grants and subscriptions","5954","Professional Fees","60156900","201206",01/08/2011 00:00:00,700,"6700","Barristers","REDACTED DATA","JANE HODGSON","",,"788274277"
"London Borough of Redbridge","http://opendatacommunities.org/doc/london-borough-council/redbridge","5BGFHOUSING","General Fund Housing","5CHOUMGTSUPP","Housing Management & Support Services","REV","Revenue","R5511","Homelessness Grants","01-EMPLOYEES","Employees","01A","Direct employee expenses","4","Agency Staff - Pay","3201714","201206",28/09/2011 00:00:00,699.12,"31230","Employment & Recruitment Agencies","REDACTED DATA","MATRIX SCM LTD","2227962","http://opencorporates.com/companies/gb/2227962","918498476"
"London Borough of Redbridge","http://opendatacommunities.org/doc/london-borough-council/redbridge","1BCENTRALPUB","Central Services to the Public","1CTRADSURDEF","Trading Account Surpluses & Deficits","REV","Revenue","R5824","P and B Telephone Team","01-EMPLOYEES","Employees","01A","Direct employee expenses","4","Agency Staff - Pay","3201714","201206",28/09/2011 00:00:00,698.25,"31230","Employment & Recruitment Agencies","REDACTED DATA","MATRIX SCM LTD","2227962","http://opencorporates.com/companies/gb/2227962","918498476"
"London Borough of Redbridge","http://opendatacommunities.org/doc/london-borough-council/redbridge","1BCENTRALPUB","Central Services to the Public","1CTRADSURDEF","Trading Account Surpluses & Deficits","REV","Revenue","R5824","P and B Telephone Team","01-EMPLOYEES","Employees","01A","Direct employee expenses","4","Agency Staff - Pay","3201714","201206",28/09/2011 00:00:00,698.25,"31230","Employment & Recruitment Agencies","REDACTED DATA","MATRIX SCM LTD","2227962","http://opencorporates.com/companies/gb/2227962","918498476"
"London Borough of Redbridge","http://opendatacommunities.org/doc/london-borough-council/redbridge","1BCENTRALPUB","Central Services to the Public","1CTRADSURDEF","Trading Account Surpluses & Deficits","REV","Revenue","R5824","P and B Telephone Team","01-EMPLOYEES","Employees","01A","Direct employee expenses","4","Agency Staff - Pay","3201714","201206",28/09/2011 00:00:00,698.25,"31230","Employment & Recruitment Agencies","REDACTED DATA","MATRIX SCM LTD","2227962","http://opencorporates.com/companies/gb/2227962","918498476"
"London Borough of Redbridge","http://opendatacommunities.org/doc/london-borough-council/redbridge","1BCENTRALPUB","Central Services to the Public","1CTRADSURDEF","Trading Account Surpluses & Deficits","REV","Revenue","R5824","P and B Telephone Team","01-EMPLOYEES","Employees","01A","Direct employee expenses","4","Agency Staff - Pay","3201714","201206",28/09/2011 00:00:00,698.25,"31230","Employment & Recruitment Agencies","REDACTED DATA","MATRIX SCM LTD","2227962","http://opencorporates.com/companies/gb/2227962","918498476"
"London Borough of Redbridge","http://opendatacommunities.org/doc/london-borough-council/redbridge","1BOTHEROPI&E","Other Operating Income & Expenditure","1CTRADSURDEF","Trading Account Surpluses & Deficits","REV","Revenue","R9252","IT Services","01-EMPLOYEES","Employees","01A","Direct employee expenses","4","Agency Staff - Pay","3201714","201206",28/09/2011 00:00:00,694.5,"31230","Employment & Recruitment Agencies","REDACTED DATA","MATRIX SCM LTD","2227962","http://opencorporates.com/companies/gb/2227962","918498476"
"London Borough of Redbridge","http://opendatacommunities.org/doc/london-borough-council/redbridge","1BCENTRALPUB","Central Services to the Public","1CLOCALTAXCO","Local Tax Collection","REV","Revenue","R5760","Council Tax Collection","01-EMPLOYEES","Employees","01A","Direct employee expenses","4","Agency Staff - Pay","3201714","201206",28/09/2011 00:00:00,694.08,"31230","Employment & Recruitment Agencies","REDACTED DATA","MATRIX SCM LTD","2227962","http://opencorporates.com/companies/gb/2227962","918498476"
"London Borough of Redbridge","http://opendatacommunities.org/doc/london-borough-council/redbridge","1BCENTRALPUB","Central Services to the Public","1CLOCALTAXCO","Local Tax Collection","REV","Revenue","R5760","Council Tax Collection","01-EMPLOYEES","Employees","01A","Direct employee expenses","4","Agency Staff - Pay","3201714","201206",28/09/2011 00:00:00,694.08,"31230","Employment & Recruitment Agencies","REDACTED DATA","MATRIX SCM LTD","2227962","http://opencorporates.com/companies/gb/2227962","918498476"
"London Borough of Redbridge","http://opendatacommunities.org/doc/london-borough-council/redbridge","1BCENTRALPUB","Central Services to the Public","1CLOCALTAXCO","Local Tax Collection","REV","Revenue","R5760","Council Tax Collection","01-EMPLOYEES","Employees","01A","Direct employee expenses","4","Agency Staff - Pay","3201714","201206",28/09/2011 00:00:00,694.08,"31230","Employment & Recruitment Agencies","REDACTED DATA","MATRIX SCM LTD","2227962","http://opencorporates.com/companies/gb/2227962","918498476"
"London Borough of Redbridge","http://opendatacommunities.org/doc/london-borough-council/redbridge","1BCENTRALPUB","Central Services to the Public","1CLOCALTAXCO","Local Tax Collection","REV","Revenue","R5760","Council Tax Collection","01-EMPLOYEES","Employees","01A","Direct employee expenses","4","Agency Staff - Pay","3201714","201206",28/09/2011 00:00:00,694.08,"31230","Employment & Recruitment Agencies","REDACTED DATA","MATRIX SCM LTD","2227962","http://opencorporates.com/companies/gb/2227962","918498476"
"London Borough of Redbridge","http://opendatacommunities.org/doc/london-borough-council/redbridge","1BCENTRALPUB","Central Services to the Public","1CLOCALTAXCO","Local Tax Collection","REV","Revenue","R5760","Council Tax Collection","01-EMPLOYEES","Employees","01A","Direct employee expenses","4","Agency Staff - Pay","3201714","201206",28/09/2011 00:00:00,694.08,"31230","Employment & Recruitment Agencies","REDACTED DATA","MATRIX SCM LTD","2227962","http://opencorporates.com/companies/gb/2227962","918498476"
"London Borough of Redbridge","http://opendatacommunities.org/doc/london-borough-council/redbridge","1BCENTRALPUB","Central Services to the Public","1CLOCALTAXCO","Local Tax Collection","REV","Revenue","R5760","Council Tax Collection","01-EMPLOYEES","Employees","01A","Direct employee expenses","4","Agency Staff - Pay","3201714","201206",28/09/2011 00:00:00,694.08,"31230","Employment & Recruitment Agencies","REDACTED DATA","MATRIX SCM LTD","2227962","http://opencorporates.com/companies/gb/2227962","918498476"
"London Borough of Redbridge","http://opendatacommunities.org/doc/london-borough-council/redbridge","1BCENTRALPUB","Central Services to the Public","1CLOCALTAXCO","Local Tax Collection","REV","Revenue","R5760","Council Tax Collection","01-EMPLOYEES","Employees","01A","Direct employee expenses","4","Agency Staff - Pay","3201714","201206",28/09/2011 00:00:00,694.08,"31230","Employment & Recruitment Agencies","REDACTED DATA","MATRIX SCM LTD","2227962","http://opencorporates.com/companies/gb/2227962","918498476"
"London Borough of Redbridge","http://opendatacommunities.org/doc/london-borough-council/redbridge","6BADULTSOCIA","Adult Social Care","6COLDINCMENT","Older People (65 or over) incl. Older Mentally Ill","REV","Revenue","R4169","Intermediate Care","01-EMPLOYEES","Employees","01A","Direct employee expenses","4","Agency Staff - Pay","3201714","201206",28/09/2011 00:00:00,690.02,"31230","Employment & Recruitment Agencies","REDACTED DATA","MATRIX SCM LTD","2227962","http://opencorporates.com/companies/gb/2227962","918498476"
"London Borough of Redbridge","http://opendatacommunities.org/doc/london-borough-council/redbridge","5BGFHOUSING","General Fund Housing","5CHOUMGTSUPP","Housing Management & Support Services","REV","Revenue","R5511","Homelessness Grants","01-EMPLOYEES","Employees","01A","Direct employee expenses","4","Agency Staff - Pay","3201714","201206",28/09/2011 00:00:00,687.52,"31230","Employment & Recruitment Agencies","REDACTED DATA","MATRIX SCM LTD","2227962","http://opencorporates.com/companies/gb/2227962","918498476"
"London Borough of Redbridge","http://opendatacommunities.org/doc/london-borough-council/redbridge","5BGFHOUSING","General Fund Housing","5CHOUSADVICE","Housing Advice","REV","Revenue","R5533","Hylefords TA Refurbishment Project","01-EMPLOYEES","Employees","01A","Direct employee expenses","4","Agency Staff - Pay","3201714","201206",28/09/2011 00:00:00,681.21,"31230","Employment & Recruitment Agencies","REDACTED DATA","MATRIX SCM LTD","2227962","http://opencorporates.com/companies/gb/2227962","918498476"
"London Borough of Redbridge","http://opendatacommunities.org/doc/london-borough-council/redbridge","1BOTHEROPI&E","Other Operating Income & Expenditure","1CTRADSURDEF","Trading Account Surpluses & Deficits","REV","Revenue","R9460","Human Resources misc","01-EMPLOYEES","Employees","01A","Direct employee expenses","4","Agency Staff - Pay","3199174","201206",12/09/2011 00:00:00,679.73,"31230","Employment & Recruitment Agencies","REDACTED DATA","ADECCO UK LIMITED","",,"232347975"
"London Borough of Redbridge","http://opendatacommunities.org/doc/london-borough-council/redbridge","1BCENTRALPUB","Central Services to the Public","1CLOCALTAXCO","Local Tax Collection","REV","Revenue","R5760","Council Tax Collection","01-EMPLOYEES","Employees","01A","Direct employee expenses","4","Agency Staff - Pay","3201714","201206",28/09/2011 00:00:00,679.62,"31230","Employment & Recruitment Agencies","REDACTED DATA","MATRIX SCM LTD","2227962","http://opencorporates.com/companies/gb/2227962","918498476"
"London Borough of Redbridge","http://opendatacommunities.org/doc/london-borough-council/redbridge","4BMANGT&SUPP","Management & Support Services","4CTRANSPP&S","Transport Planning, Policy & Strategy","REV","Revenue","R7001","London Permit Scheme","01-EMPLOYEES","Employees","01A","Direct employee expenses","4","Agency Staff - Pay","3201714","201206",28/09/2011 00:00:00,676.94,"31230","Employment & Recruitment Agencies","REDACTED DATA","MATRIX SCM LTD","2227962","http://opencorporates.com/companies/gb/2227962","918498476"
"London Borough of Redbridge","http://opendatacommunities.org/doc/london-borough-council/redbridge","2BPLAN&DEVEL","Planning & Development Services","2CCOMMDEVT","Community Development","REV","Revenue","R6528","LLPG - CMF","01-EMPLOYEES","Employees","01A","Direct employee expenses","4","Agency Staff - Pay","3201714","201206",28/09/2011 00:00:00,676.88,"31230","Employment & Recruitment Agencies","REDACTED DATA","MATRIX SCM LTD","2227962","http://opencorporates.com/companies/gb/2227962","918498476"
"London Borough of Redbridge","http://opendatacommunities.org/doc/london-borough-council/redbridge","2BPLAN&DEVEL","Planning & Development Services","2CCOMMDEVT","Community Development","REV","Revenue","R6527","Information Management Team.","01-EMPLOYEES","Employees","01A","Direct employee expenses","4","Agency Staff - Pay","3201714","201206",28/09/2011 00:00:00,675.01,"31230","Employment & Recruitment Agencies","REDACTED DATA","MATRIX SCM LTD","2227962","http://opencorporates.com/companies/gb/2227962","918498476"
"London Borough of Redbridge","http://opendatacommunities.org/doc/london-borough-council/redbridge","1BCENTRALPUB","Central Services to the Public","1CLOCALTAXCO","Local Tax Collection","REV","Revenue","R5760","Council Tax Collection","01-EMPLOYEES","Employees","01A","Direct employee expenses","4","Agency Staff - Pay","3201714","201206",28/09/2011 00:00:00,674.8,"31230","Employment & Recruitment Agencies","REDACTED DATA","MATRIX SCM LTD","2227962","http://opencorporates.com/companies/gb/2227962","918498476"
"London Borough of Redbridge","http://opendatacommunities.org/doc/london-borough-council/redbridge","1BCENTRALPUB","Central Services to the Public","1CLOCALTAXCO","Local Tax Collection","REV","Revenue","R5760","Council Tax Collection","01-EMPLOYEES","Employees","01A","Direct employee expenses","4","Agency Staff - Pay","3201714","201206",28/09/2011 00:00:00,674.8,"31230","Employment & Recruitment Agencies","REDACTED DATA","MATRIX SCM LTD","2227962","http://opencorporates.com/companies/gb/2227962","918498476"
"London Borough of Redbridge","http://opendatacommunities.org/doc/london-borough-council/redbridge","1BCENTRALPUB","Central Services to the Public","1CLOCALTAXCO","Local Tax Collection","REV","Revenue","R5760","Council Tax Collection","01-EMPLOYEES","Employees","01A","Direct employee expenses","4","Agency Staff - Pay","3201714","201206",28/09/2011 00:00:00,674.8,"31230","Employment & Recruitment Agencies","REDACTED DATA","MATRIX SCM LTD","2227962","http://opencorporates.com/companies/gb/2227962","918498476"
"London Borough of Redbridge","http://opendatacommunities.org/doc/london-borough-council/redbridge","3BNONSCHFUND","Non-School Funding","3CNONSCH","Non Schools","REV","Revenue","R3938","Orchard/Ray Lodge CC","01-EMPLOYEES","Employees","01A","Direct employee expenses","4","Agency Staff - Pay","3201714","201206",28/09/2011 00:00:00,674.15,"31230","Employment & Recruitment Agencies","REDACTED DATA","MATRIX SCM LTD","2227962","http://opencorporates.com/companies/gb/2227962","918498476"
"London Borough of Redbridge","http://opendatacommunities.org/doc/london-borough-council/redbridge","1BOTHEROPI&E","Other Operating Income & Expenditure","1CTRADSURDEF","Trading Account Surpluses & Deficits","REV","Revenue","R9351","Litigation Team","01-EMPLOYEES","Employees","01A","Direct employee expenses","4","Agency Staff - Pay","3201714","201206",28/09/2011 00:00:00,668.62,"31230","Employment & Recruitment Agencies","REDACTED DATA","MATRIX SCM LTD","2227962","http://opencorporates.com/companies/gb/2227962","918498476"
"London Borough of Redbridge","http://opendatacommunities.org/doc/london-borough-council/redbridge","1BOTHEROPI&E","Other Operating Income & Expenditure","1CTRADSURDEF","Trading Account Surpluses & Deficits","REV","Revenue","R9460","Human Resources misc","01-EMPLOYEES","Employees","01A","Direct employee expenses","4","Agency Staff - Pay","3199174","201206",12/09/2011 00:00:00,666.71,"31230","Employment & Recruitment Agencies","REDACTED DATA","ADECCO UK LIMITED","",,"232347975"
"London Borough of Redbridge","http://opendatacommunities.org/doc/london-borough-council/redbridge","5BGFHOUSING","General Fund Housing","5CHOUMGTSUPP","Housing Management & Support Services","REV","Revenue","R5529","HAC Assessment","04-SUPPLIES","Supplies And Services","04K","Miscellaneous expenses","6267","2010 Coversion Costs","70031446","201206",01/08/2011 00:00:00,666.64,"47846","Letting Agents","REDACTED DATA","OMEGA LETTINGS LTD","3662604","http://opencorporates.com/companies/gb/3662604","735892103"
"London Borough of Redbridge","http://opendatacommunities.org/doc/london-borough-council/redbridge","1BOTHEROPI&E","Other Operating Income & Expenditure","1CTRADSURDEF","Trading Account Surpluses & Deficits","REV","Revenue","R9252","IT Services","01-EMPLOYEES","Employees","01A","Direct employee expenses","4","Agency Staff - Pay","3201714","201206",28/09/2011 00:00:00,659.6,"31230","Employment & Recruitment Agencies","REDACTED DATA","MATRIX SCM LTD","2227962","http://opencorporates.com/companies/gb/2227962","918498476"
"London Borough of Redbridge","http://opendatacommunities.org/doc/london-borough-council/redbridge","5BGFHOUSING","General Fund Housing","5CHOUMGTSUPP","Housing Management & Support Services","REV","Revenue","R5529","HAC Assessment","01-EMPLOYEES","Employees","01A","Direct employee expenses","4","Agency Staff - Pay","3201714","201206",28/09/2011 00:00:00,656.71,"31230","Employment & Recruitment Agencies","REDACTED DATA","MATRIX SCM LTD","2227962","http://opencorporates.com/companies/gb/2227962","918498476"
"London Borough of Redbridge","http://opendatacommunities.org/doc/london-borough-council/redbridge","5BGFHOUSING","General Fund Housing","5CHOUSADVICE","Housing Advice","REV","Revenue","R5530","HAC Temporary Accomodation","01-EMPLOYEES","Employees","01A","Direct employee expenses","4","Agency Staff - Pay","3199174","201206",12/09/2011 00:00:00,656.37,"31230","Employment & Recruitment Agencies","REDACTED DATA","ADECCO UK LIMITED","",,"232347975"
"London Borough of Redbridge","http://opendatacommunities.org/doc/london-borough-council/redbridge","1BCENTRALPUB","Central Services to the Public","1CLOCALTAXCO","Local Tax Collection","REV","Revenue","R5760","Council Tax Collection","01-EMPLOYEES","Employees","01A","Direct employee expenses","4","Agency Staff - Pay","3201714","201206",28/09/2011 00:00:00,650.7,"31230","Employment & Recruitment Agencies","REDACTED DATA","MATRIX SCM LTD","2227962","http://opencorporates.com/companies/gb/2227962","918498476"
"London Borough of Redbridge","http://opendatacommunities.org/doc/london-borough-council/redbridge","4BTRANSPORT","Transport Planning, Policy & Strategy","4CMANGT&SUPP","Management & Support Services","REV","Revenue","R7000","Highways Executive","01-EMPLOYEES","Employees","01A","Direct employee expenses","4","Agency Staff - Pay","3201714","201206",28/09/2011 00:00:00,650.38,"31230","Employment & Recruitment Agencies","REDACTED DATA","MATRIX SCM LTD","2227962","http://opencorporates.com/companies/gb/2227962","918498476"
"London Borough of Redbridge","http://opendatacommunities.org/doc/london-borough-council/redbridge","4BTRANSPORT","Transport Planning, Policy & Strategy","4CMANGT&SUPP","Management & Support Services","REV","Revenue","R7000","Highways Executive","01-EMPLOYEES","Employees","01A","Direct employee expenses","4","Agency Staff - Pay","3201714","201206",28/09/2011 00:00:00,649.64,"31230","Employment & Recruitment Agencies","REDACTED DATA","MATRIX SCM LTD","2227962","http://opencorporates.com/companies/gb/2227962","918498476"
"London Borough of Redbridge","http://opendatacommunities.org/doc/london-borough-council/redbridge","5BGFHOUSING","General Fund Housing","5CHOUMGTSUPP","Housing Management & Support Services","REV","Revenue","R5511","Homelessness Grants","01-EMPLOYEES","Employees","01A","Direct employee expenses","4","Agency Staff - Pay","3201714","201206",28/09/2011 00:00:00,649.5,"31230","Employment & Recruitment Agencies","REDACTED DATA","MATRIX SCM LTD","2227962","http://opencorporates.com/companies/gb/2227962","918498476"
"London Borough of Redbridge","http://opendatacommunities.org/doc/london-borough-council/redbridge","1BCENTRALPUB","Central Services to the Public","1CLOCALTAXCO","Local Tax Collection","REV","Revenue","R5760","Council Tax Collection","01-EMPLOYEES","Employees","01A","Direct employee expenses","4","Agency Staff - Pay","3201714","201206",28/09/2011 00:00:00,645.88,"31230","Employment & Recruitment Agencies","REDACTED DATA","MATRIX SCM LTD","2227962","http://opencorporates.com/companies/gb/2227962","918498476"
"London Borough of Redbridge","http://opendatacommunities.org/doc/london-borough-council/redbridge","5BGFHOUSING","General Fund Housing","5CHOUSBENADM","Housing Benefits Administration","REV","Revenue","R5771","Benefits Administration","01-EMPLOYEES","Employees","01A","Direct employee expenses","4","Agency Staff - Pay","3201714","201206",28/09/2011 00:00:00,644.81,"31230","Employment & Recruitment Agencies","REDACTED DATA","MATRIX SCM LTD","2227962","http://opencorporates.com/companies/gb/2227962","918498476"
"London Borough of Redbridge","http://opendatacommunities.org/doc/london-borough-council/redbridge","5BGFHOUSING","General Fund Housing","5CHOUSADVICE","Housing Advice","REV","Revenue","R5530","HAC Temporary Accomodation","01-EMPLOYEES","Employees","01A","Direct employee expenses","4","Agency Staff - Pay","3201714","201206",28/09/2011 00:00:00,639.6,"31230","Employment & Recruitment Agencies","REDACTED DATA","MATRIX SCM LTD","2227962","http://opencorporates.com/companies/gb/2227962","918498476"
"London Borough of Redbridge","http://opendatacommunities.org/doc/london-borough-council/redbridge","5BGFHOUSING","General Fund Housing","5CHOUSBENADM","Housing Benefits Administration","REV","Revenue","R5771","Benefits Administration","01-EMPLOYEES","Employees","01A","Direct employee expenses","4","Agency Staff - Pay","3201714","201206",28/09/2011 00:00:00,638.16,"31230","Employment & Recruitment Agencies","REDACTED DATA","MATRIX SCM LTD","2227962","http://opencorporates.com/companies/gb/2227962","918498476"
"London Borough of Redbridge","http://opendatacommunities.org/doc/london-borough-council/redbridge","5BGFHOUSING","General Fund Housing","5CHOUSBENADM","Housing Benefits Administration","REV","Revenue","R5771","Benefits Administration","01-EMPLOYEES","Employees","01A","Direct employee expenses","4","Agency Staff - Pay","3201714","201206",28/09/2011 00:00:00,638.16,"31230","Employment & Recruitment Agencies","REDACTED DATA","MATRIX SCM LTD","2227962","http://opencorporates.com/companies/gb/2227962","918498476"
"London Borough of Redbridge","http://opendatacommunities.org/doc/london-borough-council/redbridge","1BCENTRALPUB","Central Services to the Public","1CTRADSURDEF","Trading Account Surpluses & Deficits","REV","Revenue","R5824","P and B Telephone Team","01-EMPLOYEES","Employees","01A","Direct employee expenses","4","Agency Staff - Pay","3201714","201206",28/09/2011 00:00:00,628.43,"31230","Employment & Recruitment Agencies","REDACTED DATA","MATRIX SCM LTD","2227962","http://opencorporates.com/companies/gb/2227962","918498476"
"London Borough of Redbridge","http://opendatacommunities.org/doc/london-borough-council/redbridge","4BTRANSPORT","Transport Planning, Policy & Strategy","4CMANGT&SUPP","Management & Support Services","REV","Revenue","R7000","Highways Executive","01-EMPLOYEES","Employees","01A","Direct employee expenses","4","Agency Staff - Pay","3201714","201206",28/09/2011 00:00:00,627.48,"31230","Employment & Recruitment Agencies","REDACTED DATA","MATRIX SCM LTD","2227962","http://opencorporates.com/companies/gb/2227962","918498476"
"London Borough of Redbridge","http://opendatacommunities.org/doc/london-borough-council/redbridge","2BPLAN&DEVEL","Planning & Development Services","2CCOMMDEVT","Community Development","REV","Revenue","R6528","LLPG - CMF","01-EMPLOYEES","Employees","01A","Direct employee expenses","4","Agency Staff - Pay","3201714","201206",28/09/2011 00:00:00,623.45,"31230","Employment & Recruitment Agencies","REDACTED DATA","MATRIX SCM LTD","2227962","http://opencorporates.com/companies/gb/2227962","918498476"
"London Borough of Redbridge","http://opendatacommunities.org/doc/london-borough-council/redbridge","1BCENTRALPUB","Central Services to the Public","1CLOCALTAXCO","Local Tax Collection","REV","Revenue","R5760","Council Tax Collection","01-EMPLOYEES","Employees","01A","Direct employee expenses","4","Agency Staff - Pay","3201714","201206",28/09/2011 00:00:00,616.96,"31230","Employment & Recruitment Agencies","REDACTED DATA","MATRIX SCM LTD","2227962","http://opencorporates.com/companies/gb/2227962","918498476"
"London Borough of Redbridge","http://opendatacommunities.org/doc/london-borough-council/redbridge","1BCENTRALPUB","Central Services to the Public","1CLOCALTAXCO","Local Tax Collection","REV","Revenue","R5760","Council Tax Collection","01-EMPLOYEES","Employees","01A","Direct employee expenses","4","Agency Staff - Pay","3201714","201206",28/09/2011 00:00:00,616.96,"31230","Employment & Recruitment Agencies","REDACTED DATA","MATRIX SCM LTD","2227962","http://opencorporates.com/companies/gb/2227962","918498476"
"London Borough of Redbridge","http://opendatacommunities.org/doc/london-borough-council/redbridge","6BSOCIALSERV","Social Services","6COTHC&FSERV","Other Children's & Families' Services","REV","Revenue","R2167","CP and EI - Increased Social Worker Establishment","01-EMPLOYEES","Employees","01A","Direct employee expenses","9","Agency Staff Sickness Cover","3201714","201206",28/09/2011 00:00:00,612.57,"31230","Employment & Recruitment Agencies","REDACTED DATA","MATRIX SCM LTD","2227962","http://opencorporates.com/companies/gb/2227962","918498476"
"London Borough of Redbridge","http://opendatacommunities.org/doc/london-borough-council/redbridge","3BNONSCHFUND","Non-School Funding","3CNONSCH","Non Schools","REV","Revenue","R2039","West Childrens Centre","01-EMPLOYEES","Employees","01A","Direct employee expenses","4","Agency Staff - Pay","3199174","201206",12/09/2011 00:00:00,609.65,"31230","Employment & Recruitment Agencies","REDACTED DATA","ADECCO UK LIMITED","",,"232347975"
"London Borough of Redbridge","http://opendatacommunities.org/doc/london-borough-council/redbridge","5BGFHOUSING","General Fund Housing","5CHOUSADVICE","Housing Advice","REV","Revenue","R5530","HAC Temporary Accomodation","01-EMPLOYEES","Employees","01A","Direct employee expenses","4","Agency Staff - Pay","3199174","201206",12/09/2011 00:00:00,608.17,"31230","Employment & Recruitment Agencies","REDACTED DATA","ADECCO UK LIMITED","",,"232347975"
"London Borough of Redbridge","http://opendatacommunities.org/doc/london-borough-council/redbridge","5BGFHOUSING","General Fund Housing","5CHOUSADVICE","Housing Advice","REV","Revenue","R5530","HAC Temporary Accomodation","01-EMPLOYEES","Employees","01A","Direct employee expenses","4","Agency Staff - Pay","3199174","201206",12/09/2011 00:00:00,604.07,"31230","Employment & Recruitment Agencies","REDACTED DATA","ADECCO UK LIMITED","",,"232347975"
"London Borough of Redbridge","http://opendatacommunities.org/doc/london-borough-council/redbridge","4BMANGT&SUPP","Management & Support Services","4CTRANSPP&S","Transport Planning, Policy & Strategy","REV","Revenue","R7001","London Permit Scheme","01-EMPLOYEES","Employees","01A","Direct employee expenses","4","Agency Staff - Pay","3201714","201206",28/09/2011 00:00:00,601.5,"31230","Employment & Recruitment Agencies","REDACTED DATA","MATRIX SCM LTD","2227962","http://opencorporates.com/companies/gb/2227962","918498476"
"London Borough of Redbridge","http://opendatacommunities.org/doc/london-borough-council/redbridge","1BCENTRALPUB","Central Services to the Public","1CLOCALTAXCO","Local Tax Collection","REV","Revenue","R5760","Council Tax Collection","01-EMPLOYEES","Employees","01A","Direct employee expenses","4","Agency Staff - Pay","3201714","201206",28/09/2011 00:00:00,597.68,"31230","Employment & Recruitment Agencies","REDACTED DATA","MATRIX SCM LTD","2227962","http://opencorporates.com/companies/gb/2227962","918498476"
"London Borough of Redbridge","http://opendatacommunities.org/doc/london-borough-council/redbridge","4BTRANSPORT","Transport Planning, Policy & Strategy","4CMANGT&SUPP","Management & Support Services","REV","Revenue","R7000","Highways Executive","02-PREMISES","Premises","02A","Repairs, alteration and maintenance of buildings","3037","Service Contracts","60157660","201206",21/09/2011 00:00:00,583.56,"57614","Photocopiers","REDACTED DATA","CANON UK LTD","1264300","http://opencorporates.com/companies/gb/1264300","523797128"
"London Borough of Redbridge","http://opendatacommunities.org/doc/london-borough-council/redbridge","3BNONSCHFUND","Non-School Funding","3CNONSCH","Non Schools","REV","Revenue","R3938","Orchard/Ray Lodge CC","01-EMPLOYEES","Employees","01A","Direct employee expenses","4","Agency Staff - Pay","3201714","201206",28/09/2011 00:00:00,573.64,"31230","Employment & Recruitment Agencies","REDACTED DATA","MATRIX SCM LTD","2227962","http://opencorporates.com/companies/gb/2227962","918498476"
"London Borough of Redbridge","http://opendatacommunities.org/doc/london-borough-council/redbridge","3BNONSCHFUND","Non-School Funding","3CNONSCH","Non Schools","REV","Revenue","R3938","Orchard/Ray Lodge CC","01-EMPLOYEES","Employees","01A","Direct employee expenses","4","Agency Staff - Pay","3201714","201206",28/09/2011 00:00:00,568.69,"31230","Employment & Recruitment Agencies","REDACTED DATA","MATRIX SCM LTD","2227962","http://opencorporates.com/companies/gb/2227962","918498476"
"London Borough of Redbridge","http://opendatacommunities.org/doc/london-borough-council/redbridge","3BNONSCHFUND","Non-School Funding","3CNONSCH","Non Schools","REV","Revenue","R3938","Orchard/Ray Lodge CC","01-EMPLOYEES","Employees","01A","Direct employee expenses","4","Agency Staff - Pay","3201714","201206",28/09/2011 00:00:00,568.69,"31230","Employment & Recruitment Agencies","REDACTED DATA","MATRIX SCM LTD","2227962","http://opencorporates.com/companies/gb/2227962","918498476"
"London Borough of Redbridge","http://opendatacommunities.org/doc/london-borough-council/redbridge","5BGFHOUSING","General Fund Housing","5CHOUSADVICE","Housing Advice","REV","Revenue","R5533","Hylefords TA Refurbishment Project","01-EMPLOYEES","Employees","01A","Direct employee expenses","4","Agency Staff - Pay","3201714","201206",28/09/2011 00:00:00,567.68,"31230","Employment & Recruitment Agencies","REDACTED DATA","MATRIX SCM LTD","2227962","http://opencorporates.com/companies/gb/2227962","918498476"
"London Borough of Redbridge","http://opendatacommunities.org/doc/london-borough-council/redbridge","1BOTHEROPI&E","Other Operating Income & Expenditure","1CTRADSURDEF","Trading Account Surpluses & Deficits","REV","Revenue","R9152","Financial Services","01-EMPLOYEES","Employees","01A","Direct employee expenses","4","Agency Staff - Pay","3199174","201206",12/09/2011 00:00:00,566.21,"31230","Employment & Recruitment Agencies","REDACTED DATA","ADECCO UK LIMITED","",,"232347975"
"London Borough of Redbridge","http://opendatacommunities.org/doc/london-borough-council/redbridge","1BOTHEROPI&E","Other Operating Income & Expenditure","1CTRADSURDEF","Trading Account Surpluses & Deficits","REV","Revenue","R9152","Financial Services","01-EMPLOYEES","Employees","01A","Direct employee expenses","4","Agency Staff - Pay","3199174","201206",12/09/2011 00:00:00,566.21,"31230","Employment & Recruitment Agencies","REDACTED DATA","ADECCO UK LIMITED","",,"232347975"
"London Borough of Redbridge","http://opendatacommunities.org/doc/london-borough-council/redbridge","1BOTHEROPI&E","Other Operating Income & Expenditure","1CTRADSURDEF","Trading Account Surpluses & Deficits","REV","Revenue","R9152","Financial Services","01-EMPLOYEES","Employees","01A","Direct employee expenses","4","Agency Staff - Pay","3201714","201206",28/09/2011 00:00:00,564.72,"31230","Employment & Recruitment Agencies","REDACTED DATA","MATRIX SCM LTD","2227962","http://opencorporates.com/companies/gb/2227962","918498476"
"London Borough of Redbridge","http://opendatacommunities.org/doc/london-borough-council/redbridge","6BSOCIALSERV","Social Services","6CCHILLOOKED","Children Looked After","REV","Revenue","R2171","Ray Lodge (W) - Integrated Team Social Care","01-EMPLOYEES","Employees","01A","Direct employee expenses","4","Agency Staff - Pay","3201714","201206",28/09/2011 00:00:00,560.42,"31230","Employment & Recruitment Agencies","REDACTED DATA","MATRIX SCM LTD","2227962","http://opencorporates.com/companies/gb/2227962","918498476"
"London Borough of Redbridge","http://opendatacommunities.org/doc/london-borough-council/redbridge","1BCENTRALPUB","Central Services to the Public","1CTRADSURDEF","Trading Account Surpluses & Deficits","REV","Revenue","R5824","P and B Telephone Team","01-EMPLOYEES","Employees","01A","Direct employee expenses","4","Agency Staff - Pay","3201714","201206",28/09/2011 00:00:00,558.6,"31230","Employment & Recruitment Agencies","REDACTED DATA","MATRIX SCM LTD","2227962","http://opencorporates.com/companies/gb/2227962","918498476"
"London Borough of Redbridge","http://opendatacommunities.org/doc/london-borough-council/redbridge","1BOTHEROPI&E","Other Operating Income & Expenditure","1CTRADSURDEF","Trading Account Surpluses & Deficits","REV","Revenue","R9252","IT Services","01-EMPLOYEES","Employees","01A","Direct employee expenses","4","Agency Staff - Pay","3201714","201206",28/09/2011 00:00:00,555.6,"31230","Employment & Recruitment Agencies","REDACTED DATA","MATRIX SCM LTD","2227962","http://opencorporates.com/companies/gb/2227962","918498476"
"London Borough of Redbridge","http://opendatacommunities.org/doc/london-borough-council/redbridge","5BGFHOUSING","General Fund Housing","5CHOUSADVICE","Housing Advice","REV","Revenue","R5530","HAC Temporary Accomodation","01-EMPLOYEES","Employees","01A","Direct employee expenses","4","Agency Staff - Pay","3201714","201206",28/09/2011 00:00:00,555.05,"31230","Employment & Recruitment Agencies","REDACTED DATA","MATRIX SCM LTD","2227962","http://opencorporates.com/companies/gb/2227962","918498476"
"London Borough of Redbridge","http://opendatacommunities.org/doc/london-borough-council/redbridge","3BNONSCHFUND","Non-School Funding","3CNONSCH","Non Schools","REV","Revenue","R2039","West Childrens Centre","01-EMPLOYEES","Employees","01A","Direct employee expenses","4","Agency Staff - Pay","3201714","201206",28/09/2011 00:00:00,553.84,"31230","Employment & Recruitment Agencies","REDACTED DATA","MATRIX SCM LTD","2227962","http://opencorporates.com/companies/gb/2227962","918498476"
"London Borough of Redbridge","http://opendatacommunities.org/doc/london-borough-council/redbridge","1BCENTRALPUB","Central Services to the Public","1CLOCALTAXCO","Local Tax Collection","REV","Revenue","R5760","Council Tax Collection","01-EMPLOYEES","Employees","01A","Direct employee expenses","4","Agency Staff - Pay","3201714","201206",28/09/2011 00:00:00,535.02,"31230","Employment & Recruitment Agencies","REDACTED DATA","MATRIX SCM LTD","2227962","http://opencorporates.com/companies/gb/2227962","918498476"
